Body Name,Date Paid,Transaction Number,Amount,Supplier Name,Supplier Type,Expense Area,Cost Centre Description,Expense Type
Cambridgeshire County Council,04-Jun-20,51301331104,"-238,128.00",VODAFONE CORPORATE LTD,TRADE SUPPLIER,"Telephony, CPSN & MFD",Corporate Telephony,Computer hardware - maintenance
Cambridgeshire County Council,22-Jun-20,51301315830,"-87,109.86",KISIMUL SCHOOL,CARE ESTABLISHMENT,SEN Placements,Placements - Education,Independent School Placements
Cambridgeshire County Council,25-Jun-20,51301384139,"-32,062.80",OCS GROUP UK LTD,TRADE SUPPLIER,Parking Enforcement,Civil Parking Enforcement,Professional Fees and Hired Services
Cambridgeshire County Council,30-Jun-20,51301394475,"-12,214.26",Key Living Project,CARE ESTABLISHMENT,LAC Placements,Placements - supported accommodation,Agency Placements - In County
Cambridgeshire County Council,11-Jun-20,51301389200,"-10,557.63",Lincolns Care Ltd,CARE ESTABLISHMENT,LAC Placements,Placements - supported accommodation,Agency Placements - In County
Cambridgeshire County Council,11-Jun-20,51301389203,"-7,104.35",Lincolns Care Ltd,CARE ESTABLISHMENT,LAC Placements,Placements - supported accommodation,Agency Placements - In County
Cambridgeshire County Council,26-Jun-20,51301383034,"-5,286.00",Fews Marquees Ltd,TRADE SUPPLIER,Emergency Management,Emergency Management - COVID-19,Professional Fees and Hired Services
Cambridgeshire County Council,11-Jun-20,51301389072,"-5,236.80",BANYA FAMILY PLACEMENT AGENCY,CARE ESTABLISHMENT,LAC Placements,Placements - independent fostering,Agency Placements - Out of  County
Cambridgeshire County Council,05-Jun-20,51301380956,"-4,470.00",Florinee Homes Ltd,CARE ESTABLISHMENT,LAC Placements,Placements - supported accommodation,Agency Placements - In County
Cambridgeshire County Council,22-Jun-20,51301351945,"-4,123.24",KISIMUL SCHOOL,CARE ESTABLISHMENT,SEN Placements,Placements - Education,Independent School Placements
Cambridgeshire County Council,24-Jun-20,51301391789,"-3,786.56",Action For Children Services Ltd,EDUCATION,Community Support Service,Community Support Service ECF,Grants to Voluntary Bodies
Cambridgeshire County Council,04-Jun-20,51301380629,"-2,697.37",AFFINITY TRUST,CARE ESTABLISHMENT,LD - Fenland Locality - Cost of Care,LD - Fenland  - Care,Supported Living
Cambridgeshire County Council,04-Jun-20,51301380629,"-2,697.37",AFFINITY TRUST,CARE ESTABLISHMENT,LD - Fenland Locality - Cost of Care,LD - Fenland  - Care,Supported Living
Cambridgeshire County Council,04-Jun-20,51301380629,"-2,697.37",AFFINITY TRUST,CARE ESTABLISHMENT,LD - Fenland Locality - Cost of Care,LD - Fenland  - Care,Supported Living
Cambridgeshire County Council,04-Jun-20,51301380629,"-2,697.37",AFFINITY TRUST,CARE ESTABLISHMENT,LD - Fenland Locality - Cost of Care,LD - Fenland  - Care,Supported Living
Cambridgeshire County Council,04-Jun-20,51301380629,"-2,697.37",AFFINITY TRUST,CARE ESTABLISHMENT,LD - Fenland Locality - Cost of Care,LD - Fenland  - Care,Supported Living
Cambridgeshire County Council,04-Jun-20,51301380629,"-2,697.37",AFFINITY TRUST,CARE ESTABLISHMENT,LD - Fenland Locality - Cost of Care,LD - Fenland  - Care,Supported Living
Cambridgeshire County Council,04-Jun-20,51301380629,"-2,697.37",AFFINITY TRUST,CARE ESTABLISHMENT,LD - Fenland Locality - Cost of Care,LD - Fenland  - Care,Supported Living
Cambridgeshire County Council,04-Jun-20,51301380629,"-2,697.37",AFFINITY TRUST,CARE ESTABLISHMENT,LD - Fenland Locality - Cost of Care,LD - Fenland  - Care,Supported Living
Cambridgeshire County Council,04-Jun-20,51301380629,"-2,697.37",AFFINITY TRUST,CARE ESTABLISHMENT,LD - Fenland Locality - Cost of Care,LD - Fenland  - Care,Supported Living
Cambridgeshire County Council,04-Jun-20,51301380629,"-2,697.37",AFFINITY TRUST,CARE ESTABLISHMENT,LD - Fenland Locality - Cost of Care,LD - Fenland  - Care,Supported Living
Cambridgeshire County Council,04-Jun-20,51301380629,"-2,697.37",AFFINITY TRUST,CARE ESTABLISHMENT,LD - Fenland Locality - Cost of Care,LD - Fenland  - Care,Supported Living
Cambridgeshire County Council,04-Jun-20,51301380629,"-2,697.37",AFFINITY TRUST,CARE ESTABLISHMENT,LD - Fenland Locality - Cost of Care,LD - Fenland  - Care,Supported Living
Cambridgeshire County Council,04-Jun-20,51301380629,"-2,697.37",AFFINITY TRUST,CARE ESTABLISHMENT,LD - Fenland Locality - Cost of Care,LD - Fenland  - Care,Supported Living
Cambridgeshire County Council,04-Jun-20,51301380125,"-2,662.94",Focus Care Agency,CARE ESTABLISHMENT,LD - Young Adults Team,LD - Young Adults - Care,Supported Living
Cambridgeshire County Council,04-Jun-20,51301380125,"-2,662.94",Focus Care Agency,CARE ESTABLISHMENT,LD - Young Adults Team,LD - Young Adults - Care,Supported Living
Cambridgeshire County Council,04-Jun-20,51301380125,"-2,662.94",Focus Care Agency,CARE ESTABLISHMENT,LD - Young Adults Team,LD - Young Adults - Care,Supported Living
Cambridgeshire County Council,04-Jun-20,51301380125,"-2,662.94",Focus Care Agency,CARE ESTABLISHMENT,LD - Young Adults Team,LD - Young Adults - Care,Supported Living
Cambridgeshire County Council,04-Jun-20,51301380125,"-2,662.94",Focus Care Agency,CARE ESTABLISHMENT,LD - Young Adults Team,LD - Young Adults - Care,Supported Living
Cambridgeshire County Council,04-Jun-20,51301380125,"-2,662.94",Focus Care Agency,CARE ESTABLISHMENT,LD - Young Adults Team,LD - Young Adults - Care,Supported Living
Cambridgeshire County Council,04-Jun-20,51301380125,"-2,662.94",Focus Care Agency,CARE ESTABLISHMENT,LD - Young Adults Team,LD - Young Adults - Care,Supported Living
Cambridgeshire County Council,01-Jun-20,51301378148,"-2,630.58",PC HOMES,CARE ESTABLISHMENT,Unaccompanied Asylum Seeking Children,Unaccompanied Asylum Seeking Children <18,Asylum Seekers
Cambridgeshire County Council,01-Jun-20,51301378151,"-2,630.58",PC HOMES,CARE ESTABLISHMENT,Unaccompanied Asylum Seeking Children,Unaccompanied Asylum Seeking Children <18,Asylum Seekers
Cambridgeshire County Council,23-Jun-20,51301393324,"-2,463.75",Glebe Farm,COMPANY,LD - Young Adults Team,LD - Young Adults - Care,Residential Care
Cambridgeshire County Council,23-Jun-20,51301393324,"-2,463.75",Glebe Farm,COMPANY,LD - Young Adults Team,LD - Young Adults - Care,Residential Care
Cambridgeshire County Council,23-Jun-20,51301393324,"-2,463.75",Glebe Farm,COMPANY,LD - Young Adults Team,LD - Young Adults - Care,Residential Care
Cambridgeshire County Council,23-Jun-20,51301393324,"-2,463.75",Glebe Farm,COMPANY,LD - Young Adults Team,LD - Young Adults - Care,Residential Care
Cambridgeshire County Council,23-Jun-20,51301393324,"-2,463.75",Glebe Farm,COMPANY,LD - Young Adults Team,LD - Young Adults - Care,Residential Care
Cambridgeshire County Council,23-Jun-20,51301393324,"-2,463.75",Glebe Farm,COMPANY,LD - Young Adults Team,LD - Young Adults - Care,Residential Care
Cambridgeshire County Council,23-Jun-20,51301393324,"-2,463.75",Glebe Farm,COMPANY,LD - Young Adults Team,LD - Young Adults - Care,Residential Care
Cambridgeshire County Council,23-Jun-20,51301393324,"-2,463.75",Glebe Farm,COMPANY,LD - Young Adults Team,LD - Young Adults - Care,Residential Care
Cambridgeshire County Council,23-Jun-20,51301393324,"-2,463.75",Glebe Farm,COMPANY,LD - Young Adults Team,LD - Young Adults - Care,Residential Care
Cambridgeshire County Council,23-Jun-20,51301393324,"-2,463.75",Glebe Farm,COMPANY,LD - Young Adults Team,LD - Young Adults - Care,Residential Care
Cambridgeshire County Council,23-Jun-20,51301393324,"-2,463.75",Glebe Farm,COMPANY,LD - Young Adults Team,LD - Young Adults - Care,Residential Care
Cambridgeshire County Council,23-Jun-20,51301393324,"-2,463.75",Glebe Farm,COMPANY,LD - Young Adults Team,LD - Young Adults - Care,Residential Care
Cambridgeshire County Council,23-Jun-20,51301393324,"-2,463.75",Glebe Farm,COMPANY,LD - Young Adults Team,LD - Young Adults - Care,Residential Care
Cambridgeshire County Council,23-Jun-20,51301393324,"-2,463.75",Glebe Farm,COMPANY,LD - Young Adults Team,LD - Young Adults - Care,Residential Care
Cambridgeshire County Council,23-Jun-20,51301393324,"-2,463.75",Glebe Farm,COMPANY,LD - Young Adults Team,LD - Young Adults - Care,Residential Care
Cambridgeshire County Council,23-Jun-20,51301393324,"-2,463.75",Glebe Farm,COMPANY,LD - Young Adults Team,LD - Young Adults - Care,Residential Care
Cambridgeshire County Council,23-Jun-20,51301393324,"-2,463.75",Glebe Farm,COMPANY,LD - Young Adults Team,LD - Young Adults - Care,Residential Care
Cambridgeshire County Council,23-Jun-20,51301393324,"-2,463.75",Glebe Farm,COMPANY,LD - Young Adults Team,LD - Young Adults - Care,Residential Care
Cambridgeshire County Council,23-Jun-20,51301393324,"-2,463.75",Glebe Farm,COMPANY,LD - Young Adults Team,LD - Young Adults - Care,Residential Care
Cambridgeshire County Council,23-Jun-20,51301393324,"-2,463.75",Glebe Farm,COMPANY,LD - Young Adults Team,LD - Young Adults - Care,Residential Care
Cambridgeshire County Council,23-Jun-20,51301393324,"-2,463.75",Glebe Farm,COMPANY,LD - Young Adults Team,LD - Young Adults - Care,Residential Care
Cambridgeshire County Council,23-Jun-20,51301393324,"-2,463.75",Glebe Farm,COMPANY,LD - Young Adults Team,LD - Young Adults - Care,Residential Care
Cambridgeshire County Council,23-Jun-20,51301393324,"-2,463.75",Glebe Farm,COMPANY,LD - Young Adults Team,LD - Young Adults - Care,Residential Care
Cambridgeshire County Council,23-Jun-20,51301393324,"-2,463.75",Glebe Farm,COMPANY,LD - Young Adults Team,LD - Young Adults - Care,Residential Care
Cambridgeshire County Council,23-Jun-20,51301393324,"-2,463.75",Glebe Farm,COMPANY,LD - Young Adults Team,LD - Young Adults - Care,Residential Care
Cambridgeshire County Council,23-Jun-20,51301393324,"-2,463.75",Glebe Farm,COMPANY,LD - Young Adults Team,LD - Young Adults - Care,Residential Care
Cambridgeshire County Council,23-Jun-20,51301393324,"-2,463.75",Glebe Farm,COMPANY,LD - Young Adults Team,LD - Young Adults - Care,Residential Care
Cambridgeshire County Council,23-Jun-20,51301393324,"-2,463.75",Glebe Farm,COMPANY,LD - Young Adults Team,LD - Young Adults - Care,Residential Care
Cambridgeshire County Council,23-Jun-20,51301393324,"-2,463.75",Glebe Farm,COMPANY,LD - Young Adults Team,LD - Young Adults - Care,Residential Care
Cambridgeshire County Council,23-Jun-20,51301393324,"-2,463.75",Glebe Farm,COMPANY,LD - Young Adults Team,LD - Young Adults - Care,Residential Care
Cambridgeshire County Council,23-Jun-20,51301393324,"-2,463.75",Glebe Farm,COMPANY,LD - Young Adults Team,LD - Young Adults - Care,Residential Care
Cambridgeshire County Council,23-Jun-20,51301393324,"-2,463.75",Glebe Farm,COMPANY,LD - Young Adults Team,LD - Young Adults - Care,Residential Care
Cambridgeshire County Council,23-Jun-20,51301393324,"-2,463.75",Glebe Farm,COMPANY,LD - Young Adults Team,LD - Young Adults - Care,Residential Care
Cambridgeshire County Council,23-Jun-20,51301393324,"-2,463.75",Glebe Farm,COMPANY,LD - Young Adults Team,LD - Young Adults - Care,Residential Care
Cambridgeshire County Council,23-Jun-20,51301393324,"-2,463.75",Glebe Farm,COMPANY,LD - Young Adults Team,LD - Young Adults - Care,Residential Care
Cambridgeshire County Council,23-Jun-20,51301393324,"-2,463.75",Glebe Farm,COMPANY,LD - Young Adults Team,LD - Young Adults - Care,Residential Care
Cambridgeshire County Council,23-Jun-20,51301393324,"-2,463.75",Glebe Farm,COMPANY,LD - Young Adults Team,LD - Young Adults - Care,Residential Care
Cambridgeshire County Council,23-Jun-20,51301393324,"-2,463.75",Glebe Farm,COMPANY,LD - Young Adults Team,LD - Young Adults - Care,Residential Care
Cambridgeshire County Council,23-Jun-20,51301393324,"-2,463.75",Glebe Farm,COMPANY,LD - Young Adults Team,LD - Young Adults - Care,Residential Care
Cambridgeshire County Council,23-Jun-20,51301393324,"-2,463.75",Glebe Farm,COMPANY,LD - Young Adults Team,LD - Young Adults - Care,Residential Care
Cambridgeshire County Council,23-Jun-20,51301393324,"-2,463.75",Glebe Farm,COMPANY,LD - Young Adults Team,LD - Young Adults - Care,Residential Care
Cambridgeshire County Council,23-Jun-20,51301393324,"-2,463.75",Glebe Farm,COMPANY,LD - Young Adults Team,LD - Young Adults - Care,Residential Care
Cambridgeshire County Council,23-Jun-20,51301393324,"-2,463.75",Glebe Farm,COMPANY,LD - Young Adults Team,LD - Young Adults - Care,Residential Care
Cambridgeshire County Council,23-Jun-20,51301393324,"-2,463.75",Glebe Farm,COMPANY,LD - Young Adults Team,LD - Young Adults - Care,Residential Care
Cambridgeshire County Council,23-Jun-20,51301393324,"-2,463.75",Glebe Farm,COMPANY,LD - Young Adults Team,LD - Young Adults - Care,Residential Care
Cambridgeshire County Council,23-Jun-20,51301393324,"-2,463.75",Glebe Farm,COMPANY,LD - Young Adults Team,LD - Young Adults - Care,Residential Care
Cambridgeshire County Council,23-Jun-20,51301393324,"-2,463.75",Glebe Farm,COMPANY,LD - Young Adults Team,LD - Young Adults - Care,Residential Care
Cambridgeshire County Council,23-Jun-20,51301393324,"-2,463.75",Glebe Farm,COMPANY,LD - Young Adults Team,LD - Young Adults - Care,Residential Care
Cambridgeshire County Council,23-Jun-20,51301393324,"-2,463.75",Glebe Farm,COMPANY,LD - Young Adults Team,LD - Young Adults - Care,Residential Care
Cambridgeshire County Council,23-Jun-20,51301393324,"-2,463.75",Glebe Farm,COMPANY,LD - Young Adults Team,LD - Young Adults - Care,Residential Care
Cambridgeshire County Council,23-Jun-20,51301393324,"-2,463.75",Glebe Farm,COMPANY,LD - Young Adults Team,LD - Young Adults - Care,Residential Care
Cambridgeshire County Council,23-Jun-20,51301393324,"-2,463.75",Glebe Farm,COMPANY,LD - Young Adults Team,LD - Young Adults - Care,Residential Care
Cambridgeshire County Council,23-Jun-20,51301393324,"-2,463.75",Glebe Farm,COMPANY,LD - Young Adults Team,LD - Young Adults - Care,Residential Care
Cambridgeshire County Council,23-Jun-20,51301393324,"-2,463.75",Glebe Farm,COMPANY,LD - Young Adults Team,LD - Young Adults - Care,Residential Care
Cambridgeshire County Council,23-Jun-20,51301393324,"-2,463.75",Glebe Farm,COMPANY,LD - Young Adults Team,LD - Young Adults - Care,Residential Care
Cambridgeshire County Council,23-Jun-20,51301393324,"-2,463.75",Glebe Farm,COMPANY,LD - Young Adults Team,LD - Young Adults - Care,Residential Care
Cambridgeshire County Council,23-Jun-20,51301393324,"-2,463.75",Glebe Farm,COMPANY,LD - Young Adults Team,LD - Young Adults - Care,Residential Care
Cambridgeshire County Council,23-Jun-20,51301393324,"-2,463.75",Glebe Farm,COMPANY,LD - Young Adults Team,LD - Young Adults - Care,Residential Care
Cambridgeshire County Council,23-Jun-20,51301393324,"-2,463.75",Glebe Farm,COMPANY,LD - Young Adults Team,LD - Young Adults - Care,Residential Care
Cambridgeshire County Council,23-Jun-20,51301393324,"-2,463.75",Glebe Farm,COMPANY,LD - Young Adults Team,LD - Young Adults - Care,Residential Care
Cambridgeshire County Council,23-Jun-20,51301393324,"-2,463.75",Glebe Farm,COMPANY,LD - Young Adults Team,LD - Young Adults - Care,Residential Care
Cambridgeshire County Council,23-Jun-20,51301393324,"-2,463.75",Glebe Farm,COMPANY,LD - Young Adults Team,LD - Young Adults - Care,Residential Care
Cambridgeshire County Council,23-Jun-20,51301393324,"-2,463.75",Glebe Farm,COMPANY,LD - Young Adults Team,LD - Young Adults - Care,Residential Care
Cambridgeshire County Council,23-Jun-20,51301393324,"-2,463.75",Glebe Farm,COMPANY,LD - Young Adults Team,LD - Young Adults - Care,Residential Care
Cambridgeshire County Council,23-Jun-20,51301393324,"-2,463.75",Glebe Farm,COMPANY,LD - Young Adults Team,LD - Young Adults - Care,Residential Care
Cambridgeshire County Council,23-Jun-20,51301393324,"-2,463.75",Glebe Farm,COMPANY,LD - Young Adults Team,LD - Young Adults - Care,Residential Care
Cambridgeshire County Council,23-Jun-20,51301393324,"-2,463.75",Glebe Farm,COMPANY,LD - Young Adults Team,LD - Young Adults - Care,Residential Care
Cambridgeshire County Council,23-Jun-20,51301393324,"-2,463.75",Glebe Farm,COMPANY,LD - Young Adults Team,LD - Young Adults - Care,Residential Care
Cambridgeshire County Council,23-Jun-20,51301393324,"-2,463.75",Glebe Farm,COMPANY,LD - Young Adults Team,LD - Young Adults - Care,Residential Care
Cambridgeshire County Council,23-Jun-20,51301393324,"-2,463.75",Glebe Farm,COMPANY,LD - Young Adults Team,LD - Young Adults - Care,Residential Care
Cambridgeshire County Council,23-Jun-20,51301393324,"-2,463.75",Glebe Farm,COMPANY,LD - Young Adults Team,LD - Young Adults - Care,Residential Care
Cambridgeshire County Council,23-Jun-20,51301393324,"-2,463.75",Glebe Farm,COMPANY,LD - Young Adults Team,LD - Young Adults - Care,Residential Care
Cambridgeshire County Council,23-Jun-20,51301393324,"-2,463.75",Glebe Farm,COMPANY,LD - Young Adults Team,LD - Young Adults - Care,Residential Care
Cambridgeshire County Council,23-Jun-20,51301393324,"-2,463.75",Glebe Farm,COMPANY,LD - Young Adults Team,LD - Young Adults - Care,Residential Care
Cambridgeshire County Council,23-Jun-20,51301393324,"-2,463.75",Glebe Farm,COMPANY,LD - Young Adults Team,LD - Young Adults - Care,Residential Care
Cambridgeshire County Council,23-Jun-20,51301393324,"-2,463.75",Glebe Farm,COMPANY,LD - Young Adults Team,LD - Young Adults - Care,Residential Care
Cambridgeshire County Council,23-Jun-20,51301393324,"-2,463.75",Glebe Farm,COMPANY,LD - Young Adults Team,LD - Young Adults - Care,Residential Care
Cambridgeshire County Council,23-Jun-20,51301393324,"-2,463.75",Glebe Farm,COMPANY,LD - Young Adults Team,LD - Young Adults - Care,Residential Care
Cambridgeshire County Council,23-Jun-20,51301393324,"-2,463.75",Glebe Farm,COMPANY,LD - Young Adults Team,LD - Young Adults - Care,Residential Care
Cambridgeshire County Council,23-Jun-20,51301393324,"-2,463.75",Glebe Farm,COMPANY,LD - Young Adults Team,LD - Young Adults - Care,Residential Care
Cambridgeshire County Council,23-Jun-20,51301393324,"-2,463.75",Glebe Farm,COMPANY,LD - Young Adults Team,LD - Young Adults - Care,Residential Care
Cambridgeshire County Council,23-Jun-20,51301393324,"-2,463.75",Glebe Farm,COMPANY,LD - Young Adults Team,LD - Young Adults - Care,Residential Care
Cambridgeshire County Council,23-Jun-20,51301393324,"-2,463.75",Glebe Farm,COMPANY,LD - Young Adults Team,LD - Young Adults - Care,Residential Care
Cambridgeshire County Council,23-Jun-20,51301363763,"-2,457.00",VOICEABILITY,TRADE SUPPLIER,Adults Commissioning - short term prevention,OP Blocks and Grants,Grants to Voluntary Bodies
Cambridgeshire County Council,25-Jun-20,51301393617,"-2,429.37",FENLAND DISTRICT COUNCIL,OTHER PUBLIC BODIES,Corporate Offices,March Business Centre,Business rates
Cambridgeshire County Council,10-Jun-20,51301385730,"-2,366.75",Accomplish Group Support Limited,CARE ESTABLISHMENT,Autism and Adult Support - Cost of Care,Autism and Adult Support - Care,Residential Care
Cambridgeshire County Council,10-Jun-20,51301385730,"-2,366.75",Accomplish Group Support Limited,CARE ESTABLISHMENT,Autism and Adult Support - Cost of Care,Autism and Adult Support - Care,Residential Care
Cambridgeshire County Council,10-Jun-20,51301385730,"-2,366.75",Accomplish Group Support Limited,CARE ESTABLISHMENT,Autism and Adult Support - Cost of Care,Autism and Adult Support - Care,Residential Care
Cambridgeshire County Council,04-Jun-20,51301380629,"-2,312.03",AFFINITY TRUST,CARE ESTABLISHMENT,LD - Fenland Locality - Cost of Care,LD - Fenland  - Care,Supported Living
Cambridgeshire County Council,04-Jun-20,51301380125,"-2,282.52",Focus Care Agency,CARE ESTABLISHMENT,LD - Young Adults Team,LD - Young Adults - Care,Supported Living
Cambridgeshire County Council,09-Jun-20,51301384590,"-2,232.51",SUFFOLK COUNTY COUNCIL,OTHER PUBLIC BODIES,LAC Placements,Placements - independent fostering,Agency Placements - Out of  County
Cambridgeshire County Council,22-Jun-20,51301388931,"-2,197.14",SOUTHERN ELECTRIC PLC,TRADE SUPPLIER,Corporate Offices,"Bernard Sunley Centre, Papworth Everard",Electricity
Cambridgeshire County Council,10-Jun-20,51301387412,"-2,124.56",WESTMINSTER HOMECARE LIMITED,CARE ESTABLISHMENT,AMH - City South,Cambridge South Mental Health,Domiciliary Care
Cambridgeshire County Council,23-Jun-20,51301393324,"-2,111.79",Glebe Farm,COMPANY,LD - Young Adults Team,LD - Young Adults - Care,Residential Care
Cambridgeshire County Council,10-Jun-20,51301380702,"-2,111.00",AURORA ORCHARD MANOR,CARE ESTABLISHMENT,LD - Young Adults Team,LD - Young Adults - Special Needs,Supported Living
Cambridgeshire County Council,10-Jun-20,51301380702,"-2,111.00",AURORA ORCHARD MANOR,CARE ESTABLISHMENT,LD - Young Adults Team,LD - Young Adults - Special Needs,Supported Living
Cambridgeshire County Council,10-Jun-20,51301380702,"-2,111.00",AURORA ORCHARD MANOR,CARE ESTABLISHMENT,LD - Young Adults Team,LD - Young Adults - Special Needs,Supported Living
Cambridgeshire County Council,10-Jun-20,51301380702,"-2,111.00",AURORA ORCHARD MANOR,CARE ESTABLISHMENT,LD - Young Adults Team,LD - Young Adults - Special Needs,Supported Living
Cambridgeshire County Council,10-Jun-20,51301380702,"-2,111.00",AURORA ORCHARD MANOR,CARE ESTABLISHMENT,LD - Young Adults Team,LD - Young Adults - Special Needs,Supported Living
Cambridgeshire County Council,10-Jun-20,51301380702,"-2,111.00",AURORA ORCHARD MANOR,CARE ESTABLISHMENT,LD - Young Adults Team,LD - Young Adults - Special Needs,Supported Living
Cambridgeshire County Council,10-Jun-20,51301380702,"-2,111.00",AURORA ORCHARD MANOR,CARE ESTABLISHMENT,LD - Young Adults Team,LD - Young Adults - Special Needs,Supported Living
Cambridgeshire County Council,10-Jun-20,51301380702,"-2,111.00",AURORA ORCHARD MANOR,CARE ESTABLISHMENT,LD - Young Adults Team,LD - Young Adults - Special Needs,Supported Living
Cambridgeshire County Council,10-Jun-20,51301380702,"-2,111.00",AURORA ORCHARD MANOR,CARE ESTABLISHMENT,LD - Young Adults Team,LD - Young Adults - Special Needs,Supported Living
Cambridgeshire County Council,10-Jun-20,51301380702,"-2,111.00",AURORA ORCHARD MANOR,CARE ESTABLISHMENT,LD - Young Adults Team,LD - Young Adults - Special Needs,Supported Living
Cambridgeshire County Council,10-Jun-20,51301380702,"-2,111.00",AURORA ORCHARD MANOR,CARE ESTABLISHMENT,LD - Young Adults Team,LD - Young Adults - Special Needs,Supported Living
Cambridgeshire County Council,10-Jun-20,51301380702,"-2,111.00",AURORA ORCHARD MANOR,CARE ESTABLISHMENT,LD - Young Adults Team,LD - Young Adults - Special Needs,Supported Living
Cambridgeshire County Council,10-Jun-20,51301380702,"-2,111.00",AURORA ORCHARD MANOR,CARE ESTABLISHMENT,LD - Young Adults Team,LD - Young Adults - Special Needs,Supported Living
Cambridgeshire County Council,10-Jun-20,51301380702,"-2,111.00",AURORA ORCHARD MANOR,CARE ESTABLISHMENT,LD - Young Adults Team,LD - Young Adults - Special Needs,Supported Living
Cambridgeshire County Council,10-Jun-20,51301380702,"-2,111.00",AURORA ORCHARD MANOR,CARE ESTABLISHMENT,LD - Young Adults Team,LD - Young Adults - Special Needs,Supported Living
Cambridgeshire County Council,10-Jun-20,51301388489,"-2,041.92",AURORA ORCHARD MANOR,CARE ESTABLISHMENT,LD - Young Adults Team,LD - Young Adults - Care,Residential Care
Cambridgeshire County Council,10-Jun-20,51301388489,"-2,041.92",AURORA ORCHARD MANOR,CARE ESTABLISHMENT,LD - Young Adults Team,LD - Young Adults - Care,Residential Care
Cambridgeshire County Council,10-Jun-20,51301388489,"-2,041.92",AURORA ORCHARD MANOR,CARE ESTABLISHMENT,LD - Young Adults Team,LD - Young Adults - Care,Residential Care
Cambridgeshire County Council,10-Jun-20,51301388489,"-2,041.92",AURORA ORCHARD MANOR,CARE ESTABLISHMENT,LD - Young Adults Team,LD - Young Adults - Care,Residential Care
Cambridgeshire County Council,10-Jun-20,51301388489,"-2,041.92",AURORA ORCHARD MANOR,CARE ESTABLISHMENT,LD - Young Adults Team,LD - Young Adults - Care,Residential Care
Cambridgeshire County Council,10-Jun-20,51301388489,"-2,041.92",AURORA ORCHARD MANOR,CARE ESTABLISHMENT,LD - Young Adults Team,LD - Young Adults - Care,Residential Care
Cambridgeshire County Council,10-Jun-20,51301388489,"-2,041.92",AURORA ORCHARD MANOR,CARE ESTABLISHMENT,LD - Young Adults Team,LD - Young Adults - Care,Residential Care
Cambridgeshire County Council,10-Jun-20,51301388489,"-2,041.92",AURORA ORCHARD MANOR,CARE ESTABLISHMENT,LD - Young Adults Team,LD - Young Adults - Care,Residential Care
Cambridgeshire County Council,10-Jun-20,51301388489,"-2,041.92",AURORA ORCHARD MANOR,CARE ESTABLISHMENT,LD - Young Adults Team,LD - Young Adults - Care,Residential Care
Cambridgeshire County Council,10-Jun-20,51301388489,"-2,041.92",AURORA ORCHARD MANOR,CARE ESTABLISHMENT,LD - Young Adults Team,LD - Young Adults - Care,Residential Care
Cambridgeshire County Council,10-Jun-20,51301388489,"-2,041.92",AURORA ORCHARD MANOR,CARE ESTABLISHMENT,LD - Young Adults Team,LD - Young Adults - Care,Residential Care
Cambridgeshire County Council,10-Jun-20,51301388489,"-2,041.92",AURORA ORCHARD MANOR,CARE ESTABLISHMENT,LD - Young Adults Team,LD - Young Adults - Care,Residential Care
Cambridgeshire County Council,10-Jun-20,51301388489,"-2,041.92",AURORA ORCHARD MANOR,CARE ESTABLISHMENT,LD - Young Adults Team,LD - Young Adults - Care,Residential Care
Cambridgeshire County Council,10-Jun-20,51301388489,"-2,041.92",AURORA ORCHARD MANOR,CARE ESTABLISHMENT,LD - Young Adults Team,LD - Young Adults - Care,Residential Care
Cambridgeshire County Council,10-Jun-20,51301388489,"-2,041.92",AURORA ORCHARD MANOR,CARE ESTABLISHMENT,LD - Young Adults Team,LD - Young Adults - Care,Residential Care
Cambridgeshire County Council,10-Jun-20,51301388489,"-2,041.92",AURORA ORCHARD MANOR,CARE ESTABLISHMENT,LD - Young Adults Team,LD - Young Adults - Care,Residential Care
Cambridgeshire County Council,10-Jun-20,51301388489,"-2,041.92",AURORA ORCHARD MANOR,CARE ESTABLISHMENT,LD - Young Adults Team,LD - Young Adults - Care,Residential Care
Cambridgeshire County Council,10-Jun-20,51301388489,"-2,041.92",AURORA ORCHARD MANOR,CARE ESTABLISHMENT,LD - Young Adults Team,LD - Young Adults - Care,Residential Care
Cambridgeshire County Council,10-Jun-20,51301388489,"-2,041.92",AURORA ORCHARD MANOR,CARE ESTABLISHMENT,LD - Young Adults Team,LD - Young Adults - Care,Residential Care
Cambridgeshire County Council,10-Jun-20,51301388489,"-2,041.92",AURORA ORCHARD MANOR,CARE ESTABLISHMENT,LD - Young Adults Team,LD - Young Adults - Care,Residential Care
Cambridgeshire County Council,10-Jun-20,51301388489,"-2,041.92",AURORA ORCHARD MANOR,CARE ESTABLISHMENT,LD - Young Adults Team,LD - Young Adults - Care,Residential Care
Cambridgeshire County Council,10-Jun-20,51301388489,"-2,041.92",AURORA ORCHARD MANOR,CARE ESTABLISHMENT,LD - Young Adults Team,LD - Young Adults - Care,Residential Care
Cambridgeshire County Council,10-Jun-20,51301388489,"-2,041.92",AURORA ORCHARD MANOR,CARE ESTABLISHMENT,LD - Young Adults Team,LD - Young Adults - Care,Residential Care
Cambridgeshire County Council,10-Jun-20,51301388489,"-2,041.92",AURORA ORCHARD MANOR,CARE ESTABLISHMENT,LD - Young Adults Team,LD - Young Adults - Care,Residential Care
Cambridgeshire County Council,10-Jun-20,51301388489,"-2,041.92",AURORA ORCHARD MANOR,CARE ESTABLISHMENT,LD - Young Adults Team,LD - Young Adults - Care,Residential Care
Cambridgeshire County Council,10-Jun-20,51301388489,"-2,041.92",AURORA ORCHARD MANOR,CARE ESTABLISHMENT,LD - Young Adults Team,LD - Young Adults - Care,Residential Care
Cambridgeshire County Council,10-Jun-20,51301388489,"-2,041.92",AURORA ORCHARD MANOR,CARE ESTABLISHMENT,LD - Young Adults Team,LD - Young Adults - Care,Residential Care
Cambridgeshire County Council,10-Jun-20,51301388489,"-2,041.92",AURORA ORCHARD MANOR,CARE ESTABLISHMENT,LD - Young Adults Team,LD - Young Adults - Care,Residential Care
Cambridgeshire County Council,10-Jun-20,51301388489,"-2,041.92",AURORA ORCHARD MANOR,CARE ESTABLISHMENT,LD - Young Adults Team,LD - Young Adults - Care,Residential Care
Cambridgeshire County Council,10-Jun-20,51301388489,"-2,041.92",AURORA ORCHARD MANOR,CARE ESTABLISHMENT,LD - Young Adults Team,LD - Young Adults - Care,Residential Care
Cambridgeshire County Council,10-Jun-20,51301388489,"-2,041.92",AURORA ORCHARD MANOR,CARE ESTABLISHMENT,LD - Young Adults Team,LD - Young Adults - Care,Residential Care
Cambridgeshire County Council,10-Jun-20,51301388489,"-2,041.92",AURORA ORCHARD MANOR,CARE ESTABLISHMENT,LD - Young Adults Team,LD - Young Adults - Care,Residential Care
Cambridgeshire County Council,10-Jun-20,51301388489,"-2,041.92",AURORA ORCHARD MANOR,CARE ESTABLISHMENT,LD - Young Adults Team,LD - Young Adults - Care,Residential Care
Cambridgeshire County Council,10-Jun-20,51301388489,"-2,041.92",AURORA ORCHARD MANOR,CARE ESTABLISHMENT,LD - Young Adults Team,LD - Young Adults - Care,Residential Care
Cambridgeshire County Council,10-Jun-20,51301388489,"-2,041.92",AURORA ORCHARD MANOR,CARE ESTABLISHMENT,LD - Young Adults Team,LD - Young Adults - Care,Residential Care
Cambridgeshire County Council,10-Jun-20,51301388489,"-2,041.92",AURORA ORCHARD MANOR,CARE ESTABLISHMENT,LD - Young Adults Team,LD - Young Adults - Care,Residential Care
Cambridgeshire County Council,10-Jun-20,51301375230,"-2,036.00",AURORA ORCHARD MANOR,CARE ESTABLISHMENT,LD - Young Adults Team,LD - Young Adults - Care,Residential Care
Cambridgeshire County Council,10-Jun-20,51301388489,"-2,036.00",AURORA ORCHARD MANOR,CARE ESTABLISHMENT,LD - Young Adults Team,LD - Young Adults - Care,Residential Care
Cambridgeshire County Council,10-Jun-20,51301388489,"-2,036.00",AURORA ORCHARD MANOR,CARE ESTABLISHMENT,LD - Young Adults Team,LD - Young Adults - Care,Residential Care
Cambridgeshire County Council,10-Jun-20,51301388489,"-2,036.00",AURORA ORCHARD MANOR,CARE ESTABLISHMENT,LD - Young Adults Team,LD - Young Adults - Care,Residential Care
Cambridgeshire County Council,10-Jun-20,51301388489,"-2,036.00",AURORA ORCHARD MANOR,CARE ESTABLISHMENT,LD - Young Adults Team,LD - Young Adults - Care,Residential Care
Cambridgeshire County Council,10-Jun-20,51301375230,"-2,036.00",AURORA ORCHARD MANOR,CARE ESTABLISHMENT,LD - Young Adults Team,LD - Young Adults - Care,Residential Care
Cambridgeshire County Council,10-Jun-20,51301388489,"-2,036.00",AURORA ORCHARD MANOR,CARE ESTABLISHMENT,LD - Young Adults Team,LD - Young Adults - Care,Residential Care
Cambridgeshire County Council,10-Jun-20,51301388489,"-2,036.00",AURORA ORCHARD MANOR,CARE ESTABLISHMENT,LD - Young Adults Team,LD - Young Adults - Care,Residential Care
Cambridgeshire County Council,10-Jun-20,51301388489,"-2,036.00",AURORA ORCHARD MANOR,CARE ESTABLISHMENT,LD - Young Adults Team,LD - Young Adults - Care,Residential Care
Cambridgeshire County Council,10-Jun-20,51301388489,"-2,036.00",AURORA ORCHARD MANOR,CARE ESTABLISHMENT,LD - Young Adults Team,LD - Young Adults - Care,Residential Care
Cambridgeshire County Council,10-Jun-20,51301375230,"-2,036.00",AURORA ORCHARD MANOR,CARE ESTABLISHMENT,LD - Young Adults Team,LD - Young Adults - Care,Residential Care
Cambridgeshire County Council,10-Jun-20,51301375230,"-2,036.00",AURORA ORCHARD MANOR,CARE ESTABLISHMENT,LD - Young Adults Team,LD - Young Adults - Care,Residential Care
Cambridgeshire County Council,10-Jun-20,51301375230,"-2,036.00",AURORA ORCHARD MANOR,CARE ESTABLISHMENT,LD - Young Adults Team,LD - Young Adults - Care,Residential Care
Cambridgeshire County Council,10-Jun-20,51301375230,"-2,036.00",AURORA ORCHARD MANOR,CARE ESTABLISHMENT,LD - Young Adults Team,LD - Young Adults - Care,Residential Care
Cambridgeshire County Council,10-Jun-20,51301375230,"-2,036.00",AURORA ORCHARD MANOR,CARE ESTABLISHMENT,LD - Young Adults Team,LD - Young Adults - Care,Residential Care
Cambridgeshire County Council,10-Jun-20,51301388489,"-2,036.00",AURORA ORCHARD MANOR,CARE ESTABLISHMENT,LD - Young Adults Team,LD - Young Adults - Care,Residential Care
Cambridgeshire County Council,10-Jun-20,51301375230,"-2,036.00",AURORA ORCHARD MANOR,CARE ESTABLISHMENT,LD - Young Adults Team,LD - Young Adults - Care,Residential Care
Cambridgeshire County Council,10-Jun-20,51301375230,"-2,036.00",AURORA ORCHARD MANOR,CARE ESTABLISHMENT,LD - Young Adults Team,LD - Young Adults - Care,Residential Care
Cambridgeshire County Council,10-Jun-20,51301388489,"-2,036.00",AURORA ORCHARD MANOR,CARE ESTABLISHMENT,LD - Young Adults Team,LD - Young Adults - Care,Residential Care
Cambridgeshire County Council,10-Jun-20,51301375230,"-2,036.00",AURORA ORCHARD MANOR,CARE ESTABLISHMENT,LD - Young Adults Team,LD - Young Adults - Care,Residential Care
Cambridgeshire County Council,10-Jun-20,51301388489,"-2,036.00",AURORA ORCHARD MANOR,CARE ESTABLISHMENT,LD - Young Adults Team,LD - Young Adults - Care,Residential Care
Cambridgeshire County Council,10-Jun-20,51301375230,"-2,036.00",AURORA ORCHARD MANOR,CARE ESTABLISHMENT,LD - Young Adults Team,LD - Young Adults - Care,Residential Care
Cambridgeshire County Council,10-Jun-20,51301388489,"-2,036.00",AURORA ORCHARD MANOR,CARE ESTABLISHMENT,LD - Young Adults Team,LD - Young Adults - Care,Residential Care
Cambridgeshire County Council,10-Jun-20,51301375230,"-2,036.00",AURORA ORCHARD MANOR,CARE ESTABLISHMENT,LD - Young Adults Team,LD - Young Adults - Care,Residential Care
Cambridgeshire County Council,10-Jun-20,51301375230,"-2,036.00",AURORA ORCHARD MANOR,CARE ESTABLISHMENT,LD - Young Adults Team,LD - Young Adults - Care,Residential Care
Cambridgeshire County Council,10-Jun-20,51301388489,"-2,036.00",AURORA ORCHARD MANOR,CARE ESTABLISHMENT,LD - Young Adults Team,LD - Young Adults - Care,Residential Care
Cambridgeshire County Council,10-Jun-20,51301375230,"-2,036.00",AURORA ORCHARD MANOR,CARE ESTABLISHMENT,LD - Young Adults Team,LD - Young Adults - Care,Residential Care
Cambridgeshire County Council,10-Jun-20,51301375230,"-2,036.00",AURORA ORCHARD MANOR,CARE ESTABLISHMENT,LD - Young Adults Team,LD - Young Adults - Care,Residential Care
Cambridgeshire County Council,10-Jun-20,51301388489,"-2,036.00",AURORA ORCHARD MANOR,CARE ESTABLISHMENT,LD - Young Adults Team,LD - Young Adults - Care,Residential Care
Cambridgeshire County Council,10-Jun-20,51301388489,"-2,036.00",AURORA ORCHARD MANOR,CARE ESTABLISHMENT,LD - Young Adults Team,LD - Young Adults - Care,Residential Care
Cambridgeshire County Council,10-Jun-20,51301388489,"-2,036.00",AURORA ORCHARD MANOR,CARE ESTABLISHMENT,LD - Young Adults Team,LD - Young Adults - Care,Residential Care
Cambridgeshire County Council,10-Jun-20,51301388489,"-2,036.00",AURORA ORCHARD MANOR,CARE ESTABLISHMENT,LD - Young Adults Team,LD - Young Adults - Care,Residential Care
Cambridgeshire County Council,10-Jun-20,51301375230,"-2,036.00",AURORA ORCHARD MANOR,CARE ESTABLISHMENT,LD - Young Adults Team,LD - Young Adults - Care,Residential Care
Cambridgeshire County Council,10-Jun-20,51301375230,"-2,036.00",AURORA ORCHARD MANOR,CARE ESTABLISHMENT,LD - Young Adults Team,LD - Young Adults - Care,Residential Care
Cambridgeshire County Council,10-Jun-20,51301375230,"-2,036.00",AURORA ORCHARD MANOR,CARE ESTABLISHMENT,LD - Young Adults Team,LD - Young Adults - Care,Residential Care
Cambridgeshire County Council,10-Jun-20,51301375230,"-2,036.00",AURORA ORCHARD MANOR,CARE ESTABLISHMENT,LD - Young Adults Team,LD - Young Adults - Care,Residential Care
Cambridgeshire County Council,10-Jun-20,51301388489,"-2,036.00",AURORA ORCHARD MANOR,CARE ESTABLISHMENT,LD - Young Adults Team,LD - Young Adults - Care,Residential Care
Cambridgeshire County Council,10-Jun-20,51301388489,"-2,036.00",AURORA ORCHARD MANOR,CARE ESTABLISHMENT,LD - Young Adults Team,LD - Young Adults - Care,Residential Care
Cambridgeshire County Council,10-Jun-20,51301375230,"-2,036.00",AURORA ORCHARD MANOR,CARE ESTABLISHMENT,LD - Young Adults Team,LD - Young Adults - Care,Residential Care
Cambridgeshire County Council,29-Jun-20,51301296567,"-2,016.00",COUNTRY GROUNDS MAINTENANCE LTD,COMPANY,Burwell House,Burwell House Residential Centre,Grounds Maintenance
Cambridgeshire County Council,05-Jun-20,51301379505,"-1,972.40",CAMBRIDGE DIAL-A-RIDE LTD,VOLUNTEER SERVICES,Concessionary Fares,Concessionary Fares,Support - subsidised bus routes
Cambridgeshire County Council,05-Jun-20,51301381139,"-1,844.88",UNIQUE CARE HOMES,CARE ESTABLISHMENT,LAC Placements,Placements - residential homes,Agency Placements - Out of  County
Cambridgeshire County Council,10-Jun-20,51301380702,"-1,809.43",AURORA ORCHARD MANOR,CARE ESTABLISHMENT,LD - Young Adults Team,LD - Young Adults - Special Needs,Supported Living
Cambridgeshire County Council,10-Jun-20,51301380936,"-1,800.00",BEDFORD COLLEGE,EDUCATION,Home to School Transport - Special,Home to School Transport Special - Out of County,Home to School - Contract
Cambridgeshire County Council,18-Jun-20,51301391401,"-1,728.54",THE NATIONAL FOSTERING AGENCY,CARE ESTABLISHMENT,LAC Placements,Placements - independent fostering,Agency Placements - Out of  County
Cambridgeshire County Council,04-Jun-20,51301380579,"-1,698.50",AFFINITY TRUST,CARE ESTABLISHMENT,LD - Hunts Locality - Cost of Care,LD - Huntingdonshire - Care,Supported Living
Cambridgeshire County Council,04-Jun-20,51301380579,"-1,698.50",AFFINITY TRUST,CARE ESTABLISHMENT,LD - Hunts Locality - Cost of Care,LD - Huntingdonshire - Care,Supported Living
Cambridgeshire County Council,04-Jun-20,51301380579,"-1,698.50",AFFINITY TRUST,CARE ESTABLISHMENT,LD - Hunts Locality - Cost of Care,LD - Huntingdonshire - Care,Supported Living
Cambridgeshire County Council,04-Jun-20,51301380579,"-1,698.50",AFFINITY TRUST,CARE ESTABLISHMENT,LD - Hunts Locality - Cost of Care,LD - Huntingdonshire - Care,Supported Living
Cambridgeshire County Council,04-Jun-20,51301380579,"-1,698.50",AFFINITY TRUST,CARE ESTABLISHMENT,LD - Hunts Locality - Cost of Care,LD - Huntingdonshire - Care,Supported Living
Cambridgeshire County Council,04-Jun-20,51301380579,"-1,698.50",AFFINITY TRUST,CARE ESTABLISHMENT,LD - Hunts Locality - Cost of Care,LD - Huntingdonshire - Care,Supported Living
Cambridgeshire County Council,04-Jun-20,51301380579,"-1,698.50",AFFINITY TRUST,CARE ESTABLISHMENT,LD - Hunts Locality - Cost of Care,LD - Huntingdonshire - Care,Supported Living
Cambridgeshire County Council,04-Jun-20,51301380579,"-1,698.50",AFFINITY TRUST,CARE ESTABLISHMENT,LD - Hunts Locality - Cost of Care,LD - Huntingdonshire - Care,Supported Living
Cambridgeshire County Council,25-Jun-20,51301393944,"-1,697.87",Redacted Personal Data ,INDIVIDUAL,Children's Disability Direct Payments,CSC Direct Payments,Direct Payments
Cambridgeshire County Council,10-Jun-20,51301388489,"-1,458.51",AURORA ORCHARD MANOR,CARE ESTABLISHMENT,LD - Young Adults Team,LD - Young Adults - Care,Residential Care
Cambridgeshire County Council,10-Jun-20,51301388489,"-1,454.29",AURORA ORCHARD MANOR,CARE ESTABLISHMENT,LD - Young Adults Team,LD - Young Adults - Care,Residential Care
Cambridgeshire County Council,23-Jun-20,51301393324,"-1,407.86",Glebe Farm,COMPANY,LD - Young Adults Team,LD - Young Adults - Care,Residential Care
Cambridgeshire County Council,04-Jun-20,51301375227,"-1,381.97",ALDERTON HOUSE,CARE ESTABLISHMENT,LD - East Locality - Cost of Care,LD - East Cambs - Care,Residential Care
Cambridgeshire County Council,04-Jun-20,51301375227,"-1,381.97",ALDERTON HOUSE,CARE ESTABLISHMENT,LD - East Locality - Cost of Care,LD - East Cambs - Care,Residential Care
Cambridgeshire County Council,04-Jun-20,51301375227,"-1,381.97",ALDERTON HOUSE,CARE ESTABLISHMENT,LD - East Locality - Cost of Care,LD - East Cambs - Care,Residential Care
Cambridgeshire County Council,04-Jun-20,51301375227,"-1,381.97",ALDERTON HOUSE,CARE ESTABLISHMENT,LD - East Locality - Cost of Care,LD - East Cambs - Care,Residential Care
Cambridgeshire County Council,04-Jun-20,51301375227,"-1,381.97",ALDERTON HOUSE,CARE ESTABLISHMENT,LD - East Locality - Cost of Care,LD - East Cambs - Care,Residential Care
Cambridgeshire County Council,04-Jun-20,51301375227,"-1,381.97",ALDERTON HOUSE,CARE ESTABLISHMENT,LD - East Locality - Cost of Care,LD - East Cambs - Care,Residential Care
Cambridgeshire County Council,04-Jun-20,51301375227,"-1,381.97",ALDERTON HOUSE,CARE ESTABLISHMENT,LD - East Locality - Cost of Care,LD - East Cambs - Care,Residential Care
Cambridgeshire County Council,04-Jun-20,51301375227,"-1,381.97",ALDERTON HOUSE,CARE ESTABLISHMENT,LD - East Locality - Cost of Care,LD - East Cambs - Care,Residential Care
Cambridgeshire County Council,04-Jun-20,51301375227,"-1,381.97",ALDERTON HOUSE,CARE ESTABLISHMENT,LD - East Locality - Cost of Care,LD - East Cambs - Care,Residential Care
Cambridgeshire County Council,04-Jun-20,51301375227,"-1,381.97",ALDERTON HOUSE,CARE ESTABLISHMENT,LD - East Locality - Cost of Care,LD - East Cambs - Care,Residential Care
Cambridgeshire County Council,04-Jun-20,51301375227,"-1,381.97",ALDERTON HOUSE,CARE ESTABLISHMENT,LD - East Locality - Cost of Care,LD - East Cambs - Care,Residential Care
Cambridgeshire County Council,23-Jun-20,51301392283,"-1,333.58",VODAFONE CORPORATE LTD,TRADE SUPPLIER,"Telephony, CPSN & MFD",Corporate Telephony,Computer hardware - purchase
Cambridgeshire County Council,25-Jun-20,51301393884,"-1,322.34",Redacted Personal Data ,INDIVIDUAL,Children's Disability Direct Payments,CSC Direct Payments,Direct Payments
Cambridgeshire County Council,25-Jun-20,51301393914,"-1,320.00",Redacted Personal Data ,SERVICE USER,LD - East Locality - Cost of Care,LD - East Cambs - Care,Direct Payments
Cambridgeshire County Council,25-Jun-20,51301393914,"-1,320.00",Redacted Personal Data ,SERVICE USER,LD - East Locality - Cost of Care,LD - East Cambs - Care,Direct Payments
Cambridgeshire County Council,25-Jun-20,51301393914,"-1,320.00",Redacted Personal Data ,SERVICE USER,LD - East Locality - Cost of Care,LD - East Cambs - Care,Direct Payments
Cambridgeshire County Council,04-Jun-20,51301379509,"-1,301.40",SEMI INDEPENDENT HOUSE,CARE ESTABLISHMENT,Unaccompanied Asylum Seeking Children,Unaccompanied Asylum Seeking Children <18,Asylum Seekers
Cambridgeshire County Council,10-Jun-20,51301385108,"-1,268.42",EAGLE WOOD NEUROLOGICAL CARE,CARE ESTABLISHMENT,OPMH - Hunts & Fens,Older People Mental Health Fenland,Nursing Care
Cambridgeshire County Council,10-Jun-20,51301387351,"-1,251.88",VOYAGE (LICHFIELD),CARE ESTABLISHMENT,LD - Fenland Locality - Cost of Care,LD - Fenland  - Care,Supported Living
Cambridgeshire County Council,10-Jun-20,51301387351,"-1,251.88",VOYAGE (LICHFIELD),CARE ESTABLISHMENT,LD - Fenland Locality - Cost of Care,LD - Fenland  - Care,Supported Living
Cambridgeshire County Council,10-Jun-20,51301387351,"-1,251.88",VOYAGE (LICHFIELD),CARE ESTABLISHMENT,LD - Fenland Locality - Cost of Care,LD - Fenland  - Care,Supported Living
Cambridgeshire County Council,10-Jun-20,51301387351,"-1,251.88",VOYAGE (LICHFIELD),CARE ESTABLISHMENT,LD - Fenland Locality - Cost of Care,LD - Fenland  - Care,Supported Living
Cambridgeshire County Council,10-Jun-20,51301387351,"-1,251.88",VOYAGE (LICHFIELD),CARE ESTABLISHMENT,LD - Fenland Locality - Cost of Care,LD - Fenland  - Care,Supported Living
Cambridgeshire County Council,10-Jun-20,51301387351,"-1,251.88",VOYAGE (LICHFIELD),CARE ESTABLISHMENT,LD - Fenland Locality - Cost of Care,LD - Fenland  - Care,Supported Living
Cambridgeshire County Council,10-Jun-20,51301387351,"-1,251.88",VOYAGE (LICHFIELD),CARE ESTABLISHMENT,LD - Fenland Locality - Cost of Care,LD - Fenland  - Care,Supported Living
Cambridgeshire County Council,10-Jun-20,51301387351,"-1,251.88",VOYAGE (LICHFIELD),CARE ESTABLISHMENT,LD - Fenland Locality - Cost of Care,LD - Fenland  - Care,Supported Living
Cambridgeshire County Council,10-Jun-20,51301387351,"-1,251.88",VOYAGE (LICHFIELD),CARE ESTABLISHMENT,LD - Fenland Locality - Cost of Care,LD - Fenland  - Care,Supported Living
Cambridgeshire County Council,10-Jun-20,51301387351,"-1,251.88",VOYAGE (LICHFIELD),CARE ESTABLISHMENT,LD - Fenland Locality - Cost of Care,LD - Fenland  - Care,Supported Living
Cambridgeshire County Council,10-Jun-20,51301387351,"-1,251.88",VOYAGE (LICHFIELD),CARE ESTABLISHMENT,LD - Fenland Locality - Cost of Care,LD - Fenland  - Care,Supported Living
Cambridgeshire County Council,23-Jun-20,51301375631,"-1,218.00",BEDFORD BOROUGH COUNCIL,OTHER PUBLIC BODIES,SEND Specialist Services - Education Psychology,SEND Specialist Services - Education Psychology,Staff Training & Development
Cambridgeshire County Council,10-Jun-20,51301382955,"-1,159.78",CCS MEDIA LIMITED,TRADE SUPPLIER,ICT Service,ICT Service Sales,Materials for resale
Cambridgeshire County Council,04-Jun-20,51301379660,"-1,155.63",THERA EAST ANGLIA,CARE ESTABLISHMENT,LD - Hunts Locality - Cost of Care,LD - Huntingdonshire - Care,Domiciliary Care
Cambridgeshire County Council,04-Jun-20,51301379660,"-1,155.63",THERA EAST ANGLIA,CARE ESTABLISHMENT,LD - Hunts Locality - Cost of Care,LD - Huntingdonshire - Care,Domiciliary Care
Cambridgeshire County Council,04-Jun-20,51301379660,"-1,155.63",THERA EAST ANGLIA,CARE ESTABLISHMENT,LD - Hunts Locality - Cost of Care,LD - Huntingdonshire - Care,Domiciliary Care
Cambridgeshire County Council,04-Jun-20,51301379660,"-1,155.63",THERA EAST ANGLIA,CARE ESTABLISHMENT,LD - Hunts Locality - Cost of Care,LD - Huntingdonshire - Care,Domiciliary Care
Cambridgeshire County Council,04-Jun-20,51301379660,"-1,155.63",THERA EAST ANGLIA,CARE ESTABLISHMENT,LD - Hunts Locality - Cost of Care,LD - Huntingdonshire - Care,Domiciliary Care
Cambridgeshire County Council,04-Jun-20,51301379660,"-1,155.63",THERA EAST ANGLIA,CARE ESTABLISHMENT,LD - Hunts Locality - Cost of Care,LD - Huntingdonshire - Care,Domiciliary Care
Cambridgeshire County Council,04-Jun-20,51301379660,"-1,155.63",THERA EAST ANGLIA,CARE ESTABLISHMENT,LD - Hunts Locality - Cost of Care,LD - Huntingdonshire - Care,Domiciliary Care
Cambridgeshire County Council,24-Jun-20,51301393632,"-1,116.00",24/7 Support UK Limited,CARE ESTABLISHMENT,LAC Placements,Placements - supported accommodation,Agency Placements - In County
Cambridgeshire County Council,10-Jun-20,51301385782,"-1,100.00",OAKLANDS CARE HOME,CARE ESTABLISHMENT,OP - East Cambs Locality - Cost of Care,East Cambs - O P Team - Care,Residential Care
Cambridgeshire County Council,10-Jun-20,51301385782,"-1,100.00",OAKLANDS CARE HOME,CARE ESTABLISHMENT,OP - East Cambs Locality - Cost of Care,East Cambs - O P Team - Care,Residential Care
Cambridgeshire County Council,04-Jun-20,51301380927,"-1,085.14",104 TENNYSON ROAD,CARE ESTABLISHMENT,AMH - Hunts & Fens,Hunts Mental Health Team,Residential Care
Cambridgeshire County Council,04-Jun-20,51301380928,"-1,085.14",104 TENNYSON ROAD,CARE ESTABLISHMENT,AMH - Hunts & Fens,Hunts Mental Health Team,Residential Care
Cambridgeshire County Council,04-Jun-20,51301380929,"-1,085.14",104 TENNYSON ROAD,CARE ESTABLISHMENT,AMH - Hunts & Fens,Hunts Mental Health Team,Residential Care
Cambridgeshire County Council,04-Jun-20,51301380926,"-1,085.14",104 TENNYSON ROAD,CARE ESTABLISHMENT,AMH - Hunts & Fens,Hunts Mental Health Team,Residential Care
Cambridgeshire County Council,04-Jun-20,51301379422,"-1,078.74",24/7 Support UK Limited,CARE ESTABLISHMENT,Unaccompanied Asylum Seeking Children,Unaccompanied Asylum Seeking Children <18,Asylum Seekers
Cambridgeshire County Council,10-Jun-20,51301387351,"-1,073.04",VOYAGE (LICHFIELD),CARE ESTABLISHMENT,LD - Fenland Locality - Cost of Care,LD - Fenland  - Care,Supported Living
Cambridgeshire County Council,23-Jun-20,51301393314,"-1,070.56",VODAFONE CENTRAL LTD,COMPANY,"Telephony, CPSN & MFD",EastNet,Computer software - purchase
Cambridgeshire County Council,10-Jun-20,51301386077,"-1,067.44",THE CAMBRIDGE NURSING CENTRE,CARE ESTABLISHMENT,OP - City & South Locality - Cost of Care,Older People - City & South - Care,Nursing Care
Cambridgeshire County Council,10-Jun-20,51301386077,"-1,067.44",THE CAMBRIDGE NURSING CENTRE,CARE ESTABLISHMENT,OP - City & South Locality - Cost of Care,Older People - City & South - Care,Nursing Care
Cambridgeshire County Council,10-Jun-20,51301386077,"-1,067.44",THE CAMBRIDGE NURSING CENTRE,CARE ESTABLISHMENT,OP - City & South Locality - Cost of Care,Older People - City & South - Care,Nursing Care
Cambridgeshire County Council,10-Jun-20,51301386077,"-1,067.44",THE CAMBRIDGE NURSING CENTRE,CARE ESTABLISHMENT,OP - City & South Locality - Cost of Care,Older People - City & South - Care,Nursing Care
Cambridgeshire County Council,10-Jun-20,51301386077,"-1,067.44",THE CAMBRIDGE NURSING CENTRE,CARE ESTABLISHMENT,OP - City & South Locality - Cost of Care,Older People - City & South - Care,Nursing Care
Cambridgeshire County Council,10-Jun-20,51301386077,"-1,067.44",THE CAMBRIDGE NURSING CENTRE,CARE ESTABLISHMENT,OP - City & South Locality - Cost of Care,Older People - City & South - Care,Nursing Care
Cambridgeshire County Council,10-Jun-20,51301386077,"-1,067.44",THE CAMBRIDGE NURSING CENTRE,CARE ESTABLISHMENT,OP - City & South Locality - Cost of Care,Older People - City & South - Care,Nursing Care
Cambridgeshire County Council,10-Jun-20,51301386077,"-1,067.44",THE CAMBRIDGE NURSING CENTRE,CARE ESTABLISHMENT,OP - City & South Locality - Cost of Care,Older People - City & South - Care,Nursing Care
Cambridgeshire County Council,10-Jun-20,51301386077,"-1,067.44",THE CAMBRIDGE NURSING CENTRE,CARE ESTABLISHMENT,OP - City & South Locality - Cost of Care,Older People - City & South - Care,Nursing Care
Cambridgeshire County Council,10-Jun-20,51301386077,"-1,067.44",THE CAMBRIDGE NURSING CENTRE,CARE ESTABLISHMENT,OP - City & South Locality - Cost of Care,Older People - City & South - Care,Nursing Care
Cambridgeshire County Council,10-Jun-20,51301386077,"-1,067.44",THE CAMBRIDGE NURSING CENTRE,CARE ESTABLISHMENT,OP - City & South Locality - Cost of Care,Older People - City & South - Care,Nursing Care
Cambridgeshire County Council,10-Jun-20,51301386077,"-1,067.44",THE CAMBRIDGE NURSING CENTRE,CARE ESTABLISHMENT,OP - City & South Locality - Cost of Care,Older People - City & South - Care,Nursing Care
Cambridgeshire County Council,10-Jun-20,51301386077,"-1,067.44",THE CAMBRIDGE NURSING CENTRE,CARE ESTABLISHMENT,OP - City & South Locality - Cost of Care,Older People - City & South - Care,Nursing Care
Cambridgeshire County Council,10-Jun-20,51301386077,"-1,067.44",THE CAMBRIDGE NURSING CENTRE,CARE ESTABLISHMENT,OP - City & South Locality - Cost of Care,Older People - City & South - Care,Nursing Care
Cambridgeshire County Council,10-Jun-20,51301386077,"-1,067.44",THE CAMBRIDGE NURSING CENTRE,CARE ESTABLISHMENT,OP - City & South Locality - Cost of Care,Older People - City & South - Care,Nursing Care
Cambridgeshire County Council,10-Jun-20,51301386077,"-1,067.44",THE CAMBRIDGE NURSING CENTRE,CARE ESTABLISHMENT,OP - City & South Locality - Cost of Care,Older People - City & South - Care,Nursing Care
Cambridgeshire County Council,10-Jun-20,51301386077,"-1,067.44",THE CAMBRIDGE NURSING CENTRE,CARE ESTABLISHMENT,OP - City & South Locality - Cost of Care,Older People - City & South - Care,Nursing Care
Cambridgeshire County Council,10-Jun-20,51301386077,"-1,067.44",THE CAMBRIDGE NURSING CENTRE,CARE ESTABLISHMENT,OP - City & South Locality - Cost of Care,Older People - City & South - Care,Nursing Care
Cambridgeshire County Council,10-Jun-20,51301386077,"-1,067.44",THE CAMBRIDGE NURSING CENTRE,CARE ESTABLISHMENT,OP - City & South Locality - Cost of Care,Older People - City & South - Care,Nursing Care
Cambridgeshire County Council,23-Jun-20,51301393324,"-1,055.89",Glebe Farm,COMPANY,LD - Young Adults Team,LD - Young Adults - Care,Residential Care
Cambridgeshire County Council,02-Jun-20,51301378472,"-1,008.00",24/7 Support UK Limited,CARE ESTABLISHMENT,LAC Placements,Placements - supported accommodation,Agency Placements - In County
Cambridgeshire County Council,10-Jun-20,51301385825,-991.93,THE CAMBRIDGE HOUSING SOCIETY LTD,CARE ESTABLISHMENT,OP - City & South Locality - Cost of Care,Older People - City & South - Care,Residential Care
Cambridgeshire County Council,10-Jun-20,51301385825,-991.93,THE CAMBRIDGE HOUSING SOCIETY LTD,CARE ESTABLISHMENT,OP - City & South Locality - Cost of Care,Older People - City & South - Care,Residential Care
Cambridgeshire County Council,10-Jun-20,51301385825,-991.93,THE CAMBRIDGE HOUSING SOCIETY LTD,CARE ESTABLISHMENT,OP - City & South Locality - Cost of Care,Older People - City & South - Care,Residential Care
Cambridgeshire County Council,10-Jun-20,51301385825,-991.93,THE CAMBRIDGE HOUSING SOCIETY LTD,CARE ESTABLISHMENT,OP - City & South Locality - Cost of Care,Older People - City & South - Care,Residential Care
Cambridgeshire County Council,10-Jun-20,51301388605,-983.51,Redacted Personal Data ,INDIVIDUAL,Children's Disability Direct Payments,CSC Direct Payments,Direct Payments
Cambridgeshire County Council,05-Jun-20,51301375775,-960.00,Conduent Parking Enforcement Solutions Limited,TRADE SUPPLIER,Parking Enforcement,On Street Parking,Professional Fees and Hired Services
Cambridgeshire County Council,25-Jun-20,51301393919,-955.66,Redacted Personal Data ,SERVICE USER,LD - Fenland Locality - Cost of Care,LD - Fenland  - Care,Direct Payments
Cambridgeshire County Council,25-Jun-20,51301393919,-955.66,Redacted Personal Data ,SERVICE USER,LD - Fenland Locality - Cost of Care,LD - Fenland  - Care,Direct Payments
Cambridgeshire County Council,25-Jun-20,51301393919,-955.66,Redacted Personal Data ,SERVICE USER,LD - Fenland Locality - Cost of Care,LD - Fenland  - Care,Direct Payments
Cambridgeshire County Council,04-Jun-20,51301380035,-951.18,FLORIDA AVENUE (VOYAGE),CARE ESTABLISHMENT,LD - Hunts Locality - Cost of Care,LD - Huntingdonshire - Care,Supported Living
Cambridgeshire County Council,04-Jun-20,51301380035,-951.18,FLORIDA AVENUE (VOYAGE),CARE ESTABLISHMENT,LD - Hunts Locality - Cost of Care,LD - Huntingdonshire - Care,Supported Living
Cambridgeshire County Council,04-Jun-20,51301380035,-951.18,FLORIDA AVENUE (VOYAGE),CARE ESTABLISHMENT,LD - Hunts Locality - Cost of Care,LD - Huntingdonshire - Care,Supported Living
Cambridgeshire County Council,04-Jun-20,51301380035,-951.18,FLORIDA AVENUE (VOYAGE),CARE ESTABLISHMENT,LD - Hunts Locality - Cost of Care,LD - Huntingdonshire - Care,Supported Living
Cambridgeshire County Council,04-Jun-20,51301380035,-951.18,FLORIDA AVENUE (VOYAGE),CARE ESTABLISHMENT,LD - Hunts Locality - Cost of Care,LD - Huntingdonshire - Care,Supported Living
Cambridgeshire County Council,04-Jun-20,51301380035,-951.18,FLORIDA AVENUE (VOYAGE),CARE ESTABLISHMENT,LD - Hunts Locality - Cost of Care,LD - Huntingdonshire - Care,Supported Living
Cambridgeshire County Council,10-Jun-20,51301385716,-934.00,WATERBEACH LODGE (SCIMITAR),CARE ESTABLISHMENT,OP - City & South Locality - Cost of Care,Older People - City & South - Care,Residential Care
Cambridgeshire County Council,10-Jun-20,51301388417,-915.06,PAULINE BURNETT HOUSE,CARE ESTABLISHMENT,LD - South Locality - Cost of Care,LD - South Cambs - Care,Residential Care
Cambridgeshire County Council,10-Jun-20,51301388417,-915.06,PAULINE BURNETT HOUSE,CARE ESTABLISHMENT,LD - South Locality - Cost of Care,LD - South Cambs - Care,Residential Care
Cambridgeshire County Council,10-Jun-20,51301388417,-915.06,PAULINE BURNETT HOUSE,CARE ESTABLISHMENT,LD - South Locality - Cost of Care,LD - South Cambs - Care,Residential Care
Cambridgeshire County Council,10-Jun-20,51301388417,-915.06,PAULINE BURNETT HOUSE,CARE ESTABLISHMENT,LD - South Locality - Cost of Care,LD - South Cambs - Care,Residential Care
Cambridgeshire County Council,15-Jun-20,51301356619,-907.55,HILTON PARK CARE CENTRE,CARE ESTABLISHMENT,LD - South Locality - Cost of Care,LD - South Cambs - Care,Short Term Other
Cambridgeshire County Council,15-Jun-20,51301356619,-907.55,HILTON PARK CARE CENTRE,CARE ESTABLISHMENT,LD - South Locality - Cost of Care,LD - South Cambs - Care,Short Term Other
Cambridgeshire County Council,15-Jun-20,51301356619,-907.55,HILTON PARK CARE CENTRE,CARE ESTABLISHMENT,LD - South Locality - Cost of Care,LD - South Cambs - Care,Short Term Other
Cambridgeshire County Council,15-Jun-20,51301356619,-907.55,HILTON PARK CARE CENTRE,CARE ESTABLISHMENT,LD - South Locality - Cost of Care,LD - South Cambs - Care,Short Term Other
Cambridgeshire County Council,15-Jun-20,51301356619,-907.55,HILTON PARK CARE CENTRE,CARE ESTABLISHMENT,LD - South Locality - Cost of Care,LD - South Cambs - Care,Short Term Other
Cambridgeshire County Council,15-Jun-20,51301356619,-907.55,HILTON PARK CARE CENTRE,CARE ESTABLISHMENT,LD - South Locality - Cost of Care,LD - South Cambs - Care,Short Term Other
Cambridgeshire County Council,15-Jun-20,51301356619,-907.55,HILTON PARK CARE CENTRE,CARE ESTABLISHMENT,LD - South Locality - Cost of Care,LD - South Cambs - Care,Short Term Other
Cambridgeshire County Council,15-Jun-20,51301356619,-907.55,HILTON PARK CARE CENTRE,CARE ESTABLISHMENT,LD - South Locality - Cost of Care,LD - South Cambs - Care,Short Term Other
Cambridgeshire County Council,15-Jun-20,51301356619,-907.55,HILTON PARK CARE CENTRE,CARE ESTABLISHMENT,LD - South Locality - Cost of Care,LD - South Cambs - Care,Short Term Other
Cambridgeshire County Council,15-Jun-20,51301356619,-907.55,HILTON PARK CARE CENTRE,CARE ESTABLISHMENT,LD - South Locality - Cost of Care,LD - South Cambs - Care,Short Term Other
Cambridgeshire County Council,15-Jun-20,51301356619,-907.55,HILTON PARK CARE CENTRE,CARE ESTABLISHMENT,LD - South Locality - Cost of Care,LD - South Cambs - Care,Short Term Other
Cambridgeshire County Council,15-Jun-20,51301356619,-907.55,HILTON PARK CARE CENTRE,CARE ESTABLISHMENT,LD - South Locality - Cost of Care,LD - South Cambs - Care,Short Term Other
Cambridgeshire County Council,10-Jun-20,51301385399,-895.00,GLENNFIELD CARE CENTRE (OP),CARE ESTABLISHMENT,OP - Fenland Locality - Cost of Care,Older People - Fenland - Care,Nursing Care
Cambridgeshire County Council,10-Jun-20,51301385399,-895.00,GLENNFIELD CARE CENTRE (OP),CARE ESTABLISHMENT,OP - Fenland Locality - Cost of Care,Older People - Fenland - Care,Nursing Care
Cambridgeshire County Council,10-Jun-20,51301385399,-895.00,GLENNFIELD CARE CENTRE (OP),CARE ESTABLISHMENT,OP - Fenland Locality - Cost of Care,Older People - Fenland - Care,Nursing Care
Cambridgeshire County Council,10-Jun-20,51301385399,-895.00,GLENNFIELD CARE CENTRE (OP),CARE ESTABLISHMENT,OP - Fenland Locality - Cost of Care,Older People - Fenland - Care,Nursing Care
Cambridgeshire County Council,10-Jun-20,51301385399,-895.00,GLENNFIELD CARE CENTRE (OP),CARE ESTABLISHMENT,OP - Fenland Locality - Cost of Care,Older People - Fenland - Care,Nursing Care
Cambridgeshire County Council,10-Jun-20,51301385399,-895.00,GLENNFIELD CARE CENTRE (OP),CARE ESTABLISHMENT,OP - Fenland Locality - Cost of Care,Older People - Fenland - Care,Nursing Care
Cambridgeshire County Council,10-Jun-20,51301385399,-895.00,GLENNFIELD CARE CENTRE (OP),CARE ESTABLISHMENT,OP - Fenland Locality - Cost of Care,Older People - Fenland - Care,Nursing Care
Cambridgeshire County Council,10-Jun-20,51301385399,-895.00,GLENNFIELD CARE CENTRE (OP),CARE ESTABLISHMENT,OP - Fenland Locality - Cost of Care,Older People - Fenland - Care,Nursing Care
Cambridgeshire County Council,10-Jun-20,51301385399,-895.00,GLENNFIELD CARE CENTRE (OP),CARE ESTABLISHMENT,OP - Fenland Locality - Cost of Care,Older People - Fenland - Care,Nursing Care
Cambridgeshire County Council,10-Jun-20,51301385399,-895.00,GLENNFIELD CARE CENTRE (OP),CARE ESTABLISHMENT,OP - Fenland Locality - Cost of Care,Older People - Fenland - Care,Nursing Care
Cambridgeshire County Council,04-Jun-20,51301375215,-886.62,CONQUEST CARE HOMES (SOHAM) LTD,CARE ESTABLISHMENT,LD - East Locality - Cost of Care,LD - East Cambs - Care,Residential Care
Cambridgeshire County Council,04-Jun-20,51301375215,-886.62,CONQUEST CARE HOMES (SOHAM) LTD,CARE ESTABLISHMENT,LD - East Locality - Cost of Care,LD - East Cambs - Care,Residential Care
Cambridgeshire County Council,04-Jun-20,51301375215,-886.62,CONQUEST CARE HOMES (SOHAM) LTD,CARE ESTABLISHMENT,LD - East Locality - Cost of Care,LD - East Cambs - Care,Residential Care
Cambridgeshire County Council,04-Jun-20,51301375215,-886.62,CONQUEST CARE HOMES (SOHAM) LTD,CARE ESTABLISHMENT,LD - East Locality - Cost of Care,LD - East Cambs - Care,Residential Care
Cambridgeshire County Council,04-Jun-20,51301375215,-886.62,CONQUEST CARE HOMES (SOHAM) LTD,CARE ESTABLISHMENT,LD - East Locality - Cost of Care,LD - East Cambs - Care,Residential Care
Cambridgeshire County Council,04-Jun-20,51301375215,-886.62,CONQUEST CARE HOMES (SOHAM) LTD,CARE ESTABLISHMENT,LD - East Locality - Cost of Care,LD - East Cambs - Care,Residential Care
Cambridgeshire County Council,04-Jun-20,51301375215,-886.62,CONQUEST CARE HOMES (SOHAM) LTD,CARE ESTABLISHMENT,LD - East Locality - Cost of Care,LD - East Cambs - Care,Residential Care
Cambridgeshire County Council,04-Jun-20,51301375215,-886.62,CONQUEST CARE HOMES (SOHAM) LTD,CARE ESTABLISHMENT,LD - East Locality - Cost of Care,LD - East Cambs - Care,Residential Care
Cambridgeshire County Council,04-Jun-20,51301375215,-886.62,CONQUEST CARE HOMES (SOHAM) LTD,CARE ESTABLISHMENT,LD - East Locality - Cost of Care,LD - East Cambs - Care,Residential Care
Cambridgeshire County Council,04-Jun-20,51301375215,-886.62,CONQUEST CARE HOMES (SOHAM) LTD,CARE ESTABLISHMENT,LD - East Locality - Cost of Care,LD - East Cambs - Care,Residential Care
Cambridgeshire County Council,04-Jun-20,51301375215,-886.62,CONQUEST CARE HOMES (SOHAM) LTD,CARE ESTABLISHMENT,LD - East Locality - Cost of Care,LD - East Cambs - Care,Residential Care
Cambridgeshire County Council,10-Jun-20,51301375230,-872.57,AURORA ORCHARD MANOR,CARE ESTABLISHMENT,LD - Young Adults Team,LD - Young Adults - Care,Residential Care
Cambridgeshire County Council,10-Jun-20,51301388489,-872.57,AURORA ORCHARD MANOR,CARE ESTABLISHMENT,LD - Young Adults Team,LD - Young Adults - Care,Residential Care
Cambridgeshire County Council,25-Jun-20,51301393704,-855.00,DURHAM COUNTY COUNCIL,OTHER PUBLIC BODIES,LAC Placements,Placements - secure accommodation,Agency Placements - Out of  County
Cambridgeshire County Council,10-Jun-20,51301385825,-850.23,THE CAMBRIDGE HOUSING SOCIETY LTD,CARE ESTABLISHMENT,OP - City & South Locality - Cost of Care,Older People - City & South - Care,Residential Care
Cambridgeshire County Council,19-Jun-20,51301391507,-848.16,LOCATE ACCOMMODATION,CARE ESTABLISHMENT,Unaccompanied Asylum Seeking Children,Unaccompanied Asylum Seeking Children >18 Leaving Care,Living Spport Grants - Financial Assistance 18+
Cambridgeshire County Council,10-Jun-20,51301388405,-843.59,MAKING SPACE,CARE ESTABLISHMENT,AMH - City South,Cambridge South Mental Health,Nursing Care
Cambridgeshire County Council,10-Jun-20,51301388405,-843.59,MAKING SPACE,CARE ESTABLISHMENT,AMH - City South,Cambridge South Mental Health,Nursing Care
Cambridgeshire County Council,10-Jun-20,51301388405,-843.59,MAKING SPACE,CARE ESTABLISHMENT,AMH - City South,Cambridge South Mental Health,Nursing Care
Cambridgeshire County Council,10-Jun-20,51301388405,-843.59,MAKING SPACE,CARE ESTABLISHMENT,AMH - City South,Cambridge South Mental Health,Nursing Care
Cambridgeshire County Council,10-Jun-20,51301388405,-843.59,MAKING SPACE,CARE ESTABLISHMENT,AMH - City South,Cambridge South Mental Health,Nursing Care
Cambridgeshire County Council,12-Jun-20,51301388743,-836.44,FENLAND DISTRICT COUNCIL,OTHER PUBLIC BODIES,Corporate Offices,Murrow Children's Centre,Business rates
Cambridgeshire County Council,23-Jun-20,51301393324,-821.25,Glebe Farm,COMPANY,LD - Young Adults Team,LD - Young Adults - Care,Residential Care
Cambridgeshire County Council,23-Jun-20,51301393324,-821.25,Glebe Farm,COMPANY,LD - Young Adults Team,LD - Young Adults - Care,Residential Care
Cambridgeshire County Council,23-Jun-20,51301393324,-821.25,Glebe Farm,COMPANY,LD - Young Adults Team,LD - Young Adults - Care,Residential Care
Cambridgeshire County Council,23-Jun-20,51301393324,-821.25,Glebe Farm,COMPANY,LD - Young Adults Team,LD - Young Adults - Care,Residential Care
Cambridgeshire County Council,23-Jun-20,51301393324,-821.25,Glebe Farm,COMPANY,LD - Young Adults Team,LD - Young Adults - Care,Residential Care
Cambridgeshire County Council,23-Jun-20,51301393324,-821.25,Glebe Farm,COMPANY,LD - Young Adults Team,LD - Young Adults - Care,Residential Care
Cambridgeshire County Council,23-Jun-20,51301393324,-821.25,Glebe Farm,COMPANY,LD - Young Adults Team,LD - Young Adults - Care,Residential Care
Cambridgeshire County Council,23-Jun-20,51301393324,-821.25,Glebe Farm,COMPANY,LD - Young Adults Team,LD - Young Adults - Care,Residential Care
Cambridgeshire County Council,23-Jun-20,51301393324,-821.25,Glebe Farm,COMPANY,LD - Young Adults Team,LD - Young Adults - Care,Residential Care
Cambridgeshire County Council,23-Jun-20,51301393324,-821.25,Glebe Farm,COMPANY,LD - Young Adults Team,LD - Young Adults - Care,Residential Care
Cambridgeshire County Council,23-Jun-20,51301393324,-821.25,Glebe Farm,COMPANY,LD - Young Adults Team,LD - Young Adults - Care,Residential Care
Cambridgeshire County Council,23-Jun-20,51301393324,-821.25,Glebe Farm,COMPANY,LD - Young Adults Team,LD - Young Adults - Care,Residential Care
Cambridgeshire County Council,23-Jun-20,51301393324,-821.25,Glebe Farm,COMPANY,LD - Young Adults Team,LD - Young Adults - Care,Residential Care
Cambridgeshire County Council,23-Jun-20,51301393324,-821.25,Glebe Farm,COMPANY,LD - Young Adults Team,LD - Young Adults - Care,Residential Care
Cambridgeshire County Council,23-Jun-20,51301393324,-821.25,Glebe Farm,COMPANY,LD - Young Adults Team,LD - Young Adults - Care,Residential Care
Cambridgeshire County Council,23-Jun-20,51301393324,-821.25,Glebe Farm,COMPANY,LD - Young Adults Team,LD - Young Adults - Care,Residential Care
Cambridgeshire County Council,23-Jun-20,51301393324,-821.25,Glebe Farm,COMPANY,LD - Young Adults Team,LD - Young Adults - Care,Residential Care
Cambridgeshire County Council,23-Jun-20,51301393324,-821.25,Glebe Farm,COMPANY,LD - Young Adults Team,LD - Young Adults - Care,Residential Care
Cambridgeshire County Council,23-Jun-20,51301393324,-821.25,Glebe Farm,COMPANY,LD - Young Adults Team,LD - Young Adults - Care,Residential Care
Cambridgeshire County Council,23-Jun-20,51301393324,-821.25,Glebe Farm,COMPANY,LD - Young Adults Team,LD - Young Adults - Care,Residential Care
Cambridgeshire County Council,23-Jun-20,51301393324,-821.25,Glebe Farm,COMPANY,LD - Young Adults Team,LD - Young Adults - Care,Residential Care
Cambridgeshire County Council,23-Jun-20,51301393324,-821.25,Glebe Farm,COMPANY,LD - Young Adults Team,LD - Young Adults - Care,Residential Care
Cambridgeshire County Council,23-Jun-20,51301393324,-821.25,Glebe Farm,COMPANY,LD - Young Adults Team,LD - Young Adults - Care,Residential Care
Cambridgeshire County Council,23-Jun-20,51301393324,-821.25,Glebe Farm,COMPANY,LD - Young Adults Team,LD - Young Adults - Care,Residential Care
Cambridgeshire County Council,23-Jun-20,51301393324,-821.25,Glebe Farm,COMPANY,LD - Young Adults Team,LD - Young Adults - Care,Residential Care
Cambridgeshire County Council,23-Jun-20,51301393324,-821.25,Glebe Farm,COMPANY,LD - Young Adults Team,LD - Young Adults - Care,Residential Care
Cambridgeshire County Council,23-Jun-20,51301393324,-821.25,Glebe Farm,COMPANY,LD - Young Adults Team,LD - Young Adults - Care,Residential Care
Cambridgeshire County Council,23-Jun-20,51301393324,-821.25,Glebe Farm,COMPANY,LD - Young Adults Team,LD - Young Adults - Care,Residential Care
Cambridgeshire County Council,23-Jun-20,51301393324,-821.25,Glebe Farm,COMPANY,LD - Young Adults Team,LD - Young Adults - Care,Residential Care
Cambridgeshire County Council,23-Jun-20,51301393324,-821.25,Glebe Farm,COMPANY,LD - Young Adults Team,LD - Young Adults - Care,Residential Care
Cambridgeshire County Council,23-Jun-20,51301393324,-821.25,Glebe Farm,COMPANY,LD - Young Adults Team,LD - Young Adults - Care,Residential Care
Cambridgeshire County Council,23-Jun-20,51301393324,-821.25,Glebe Farm,COMPANY,LD - Young Adults Team,LD - Young Adults - Care,Residential Care
Cambridgeshire County Council,23-Jun-20,51301393324,-821.25,Glebe Farm,COMPANY,LD - Young Adults Team,LD - Young Adults - Care,Residential Care
Cambridgeshire County Council,23-Jun-20,51301393324,-821.25,Glebe Farm,COMPANY,LD - Young Adults Team,LD - Young Adults - Care,Residential Care
Cambridgeshire County Council,23-Jun-20,51301393324,-821.25,Glebe Farm,COMPANY,LD - Young Adults Team,LD - Young Adults - Care,Residential Care
Cambridgeshire County Council,23-Jun-20,51301393324,-821.25,Glebe Farm,COMPANY,LD - Young Adults Team,LD - Young Adults - Care,Residential Care
Cambridgeshire County Council,23-Jun-20,51301393324,-821.25,Glebe Farm,COMPANY,LD - Young Adults Team,LD - Young Adults - Care,Residential Care
Cambridgeshire County Council,23-Jun-20,51301393324,-821.25,Glebe Farm,COMPANY,LD - Young Adults Team,LD - Young Adults - Care,Residential Care
Cambridgeshire County Council,23-Jun-20,51301393324,-821.25,Glebe Farm,COMPANY,LD - Young Adults Team,LD - Young Adults - Care,Residential Care
Cambridgeshire County Council,23-Jun-20,51301393324,-821.25,Glebe Farm,COMPANY,LD - Young Adults Team,LD - Young Adults - Care,Residential Care
Cambridgeshire County Council,23-Jun-20,51301393324,-821.25,Glebe Farm,COMPANY,LD - Young Adults Team,LD - Young Adults - Care,Residential Care
Cambridgeshire County Council,23-Jun-20,51301393324,-821.25,Glebe Farm,COMPANY,LD - Young Adults Team,LD - Young Adults - Care,Residential Care
Cambridgeshire County Council,23-Jun-20,51301393324,-821.25,Glebe Farm,COMPANY,LD - Young Adults Team,LD - Young Adults - Care,Residential Care
Cambridgeshire County Council,23-Jun-20,51301393324,-821.25,Glebe Farm,COMPANY,LD - Young Adults Team,LD - Young Adults - Care,Residential Care
Cambridgeshire County Council,23-Jun-20,51301393324,-821.25,Glebe Farm,COMPANY,LD - Young Adults Team,LD - Young Adults - Care,Residential Care
Cambridgeshire County Council,23-Jun-20,51301393324,-821.25,Glebe Farm,COMPANY,LD - Young Adults Team,LD - Young Adults - Care,Residential Care
Cambridgeshire County Council,23-Jun-20,51301393324,-821.25,Glebe Farm,COMPANY,LD - Young Adults Team,LD - Young Adults - Care,Residential Care
Cambridgeshire County Council,23-Jun-20,51301393324,-821.25,Glebe Farm,COMPANY,LD - Young Adults Team,LD - Young Adults - Care,Residential Care
Cambridgeshire County Council,23-Jun-20,51301393324,-821.25,Glebe Farm,COMPANY,LD - Young Adults Team,LD - Young Adults - Care,Residential Care
Cambridgeshire County Council,23-Jun-20,51301393324,-821.25,Glebe Farm,COMPANY,LD - Young Adults Team,LD - Young Adults - Care,Residential Care
Cambridgeshire County Council,23-Jun-20,51301393324,-821.25,Glebe Farm,COMPANY,LD - Young Adults Team,LD - Young Adults - Care,Residential Care
Cambridgeshire County Council,23-Jun-20,51301393324,-821.25,Glebe Farm,COMPANY,LD - Young Adults Team,LD - Young Adults - Care,Residential Care
Cambridgeshire County Council,23-Jun-20,51301393324,-821.25,Glebe Farm,COMPANY,LD - Young Adults Team,LD - Young Adults - Care,Residential Care
Cambridgeshire County Council,23-Jun-20,51301393324,-821.25,Glebe Farm,COMPANY,LD - Young Adults Team,LD - Young Adults - Care,Residential Care
Cambridgeshire County Council,23-Jun-20,51301393324,-821.25,Glebe Farm,COMPANY,LD - Young Adults Team,LD - Young Adults - Care,Residential Care
Cambridgeshire County Council,23-Jun-20,51301393324,-821.25,Glebe Farm,COMPANY,LD - Young Adults Team,LD - Young Adults - Care,Residential Care
Cambridgeshire County Council,23-Jun-20,51301393324,-821.25,Glebe Farm,COMPANY,LD - Young Adults Team,LD - Young Adults - Care,Residential Care
Cambridgeshire County Council,23-Jun-20,51301393324,-821.25,Glebe Farm,COMPANY,LD - Young Adults Team,LD - Young Adults - Care,Residential Care
Cambridgeshire County Council,23-Jun-20,51301393324,-821.25,Glebe Farm,COMPANY,LD - Young Adults Team,LD - Young Adults - Care,Residential Care
Cambridgeshire County Council,23-Jun-20,51301393324,-821.25,Glebe Farm,COMPANY,LD - Young Adults Team,LD - Young Adults - Care,Residential Care
Cambridgeshire County Council,23-Jun-20,51301393324,-821.25,Glebe Farm,COMPANY,LD - Young Adults Team,LD - Young Adults - Care,Residential Care
Cambridgeshire County Council,23-Jun-20,51301393324,-821.25,Glebe Farm,COMPANY,LD - Young Adults Team,LD - Young Adults - Care,Residential Care
Cambridgeshire County Council,12-Jun-20,51301389481,-820.00,A CLASS CARE LTD,CARE ESTABLISHMENT,OP - City & South Locality - Cost of Care,Older People - City & South - Care,Homecare
Cambridgeshire County Council,12-Jun-20,51301389481,-820.00,A CLASS CARE LTD,CARE ESTABLISHMENT,OP - City & South Locality - Cost of Care,Older People - City & South - Care,Homecare
Cambridgeshire County Council,12-Jun-20,51301389481,-820.00,A CLASS CARE LTD,CARE ESTABLISHMENT,OP - City & South Locality - Cost of Care,Older People - City & South - Care,Homecare
Cambridgeshire County Council,12-Jun-20,51301389481,-820.00,A CLASS CARE LTD,CARE ESTABLISHMENT,OP - City & South Locality - Cost of Care,Older People - City & South - Care,Homecare
Cambridgeshire County Council,12-Jun-20,51301389481,-820.00,A CLASS CARE LTD,CARE ESTABLISHMENT,OP - City & South Locality - Cost of Care,Older People - City & South - Care,Homecare
Cambridgeshire County Council,12-Jun-20,51301389481,-820.00,A CLASS CARE LTD,CARE ESTABLISHMENT,OP - City & South Locality - Cost of Care,Older People - City & South - Care,Homecare
Cambridgeshire County Council,12-Jun-20,51301389481,-820.00,A CLASS CARE LTD,CARE ESTABLISHMENT,OP - City & South Locality - Cost of Care,Older People - City & South - Care,Homecare
Cambridgeshire County Council,04-Jun-20,51301380035,-815.30,FLORIDA AVENUE (VOYAGE),CARE ESTABLISHMENT,LD - Hunts Locality - Cost of Care,LD - Huntingdonshire - Care,Supported Living
Cambridgeshire County Council,08-Jun-20,51301382021,-815.03,Redacted Personal Data ,SERVICE USER,LD - Young Adults Team,LD - Young Adults - Care,Direct Payments
Cambridgeshire County Council,08-Jun-20,51301382021,-815.03,Redacted Personal Data ,SERVICE USER,LD - Young Adults Team,LD - Young Adults - Care,Direct Payments
Cambridgeshire County Council,08-Jun-20,51301382021,-815.03,Redacted Personal Data ,SERVICE USER,LD - Young Adults Team,LD - Young Adults - Care,Direct Payments
Cambridgeshire County Council,08-Jun-20,51301382021,-815.03,Redacted Personal Data ,SERVICE USER,LD - Young Adults Team,LD - Young Adults - Care,Direct Payments
Cambridgeshire County Council,08-Jun-20,51301382021,-815.03,Redacted Personal Data ,SERVICE USER,LD - Young Adults Team,LD - Young Adults - Care,Direct Payments
Cambridgeshire County Council,08-Jun-20,51301382021,-815.03,Redacted Personal Data ,SERVICE USER,LD - Young Adults Team,LD - Young Adults - Care,Direct Payments
Cambridgeshire County Council,08-Jun-20,51301382021,-815.03,Redacted Personal Data ,SERVICE USER,LD - Young Adults Team,LD - Young Adults - Care,Direct Payments
Cambridgeshire County Council,08-Jun-20,51301382021,-815.03,Redacted Personal Data ,SERVICE USER,LD - Young Adults Team,LD - Young Adults - Care,Direct Payments
Cambridgeshire County Council,08-Jun-20,51301382021,-815.03,Redacted Personal Data ,SERVICE USER,LD - Young Adults Team,LD - Young Adults - Care,Direct Payments
Cambridgeshire County Council,08-Jun-20,51301382021,-815.03,Redacted Personal Data ,SERVICE USER,LD - Young Adults Team,LD - Young Adults - Care,Direct Payments
Cambridgeshire County Council,12-Jun-20,51301389428,-802.00,FOUR OAKS HEALTHCARE LIMITED,CARE ESTABLISHMENT,OP - City & South Locality - Cost of Care,Older People - City & South - Care,Homecare
Cambridgeshire County Council,12-Jun-20,51301389428,-802.00,FOUR OAKS HEALTHCARE LIMITED,CARE ESTABLISHMENT,OP - City & South Locality - Cost of Care,Older People - City & South - Care,Homecare
Cambridgeshire County Council,12-Jun-20,51301389428,-802.00,FOUR OAKS HEALTHCARE LIMITED,CARE ESTABLISHMENT,OP - City & South Locality - Cost of Care,Older People - City & South - Care,Homecare
Cambridgeshire County Council,12-Jun-20,51301389428,-802.00,FOUR OAKS HEALTHCARE LIMITED,CARE ESTABLISHMENT,OP - City & South Locality - Cost of Care,Older People - City & South - Care,Homecare
Cambridgeshire County Council,12-Jun-20,51301389428,-802.00,FOUR OAKS HEALTHCARE LIMITED,CARE ESTABLISHMENT,OP - City & South Locality - Cost of Care,Older People - City & South - Care,Homecare
Cambridgeshire County Council,12-Jun-20,51301389428,-802.00,FOUR OAKS HEALTHCARE LIMITED,CARE ESTABLISHMENT,OP - City & South Locality - Cost of Care,Older People - City & South - Care,Homecare
Cambridgeshire County Council,12-Jun-20,51301389428,-802.00,FOUR OAKS HEALTHCARE LIMITED,CARE ESTABLISHMENT,OP - City & South Locality - Cost of Care,Older People - City & South - Care,Homecare
Cambridgeshire County Council,12-Jun-20,51301389428,-802.00,FOUR OAKS HEALTHCARE LIMITED,CARE ESTABLISHMENT,OP - City & South Locality - Cost of Care,Older People - City & South - Care,Homecare
Cambridgeshire County Council,12-Jun-20,51301389428,-802.00,FOUR OAKS HEALTHCARE LIMITED,CARE ESTABLISHMENT,OP - City & South Locality - Cost of Care,Older People - City & South - Care,Homecare
Cambridgeshire County Council,12-Jun-20,51301389428,-802.00,FOUR OAKS HEALTHCARE LIMITED,CARE ESTABLISHMENT,OP - City & South Locality - Cost of Care,Older People - City & South - Care,Homecare
Cambridgeshire County Council,12-Jun-20,51301389514,-799.00,BETTER HEALTHCARE SERVICES LTD,CARE ESTABLISHMENT,Physical Disablity - Cost of Care,Countywide PD Service - Care,Domiciliary Care
Cambridgeshire County Council,04-Jun-20,51301375227,-789.70,ALDERTON HOUSE,CARE ESTABLISHMENT,LD - East Locality - Cost of Care,LD - East Cambs - Care,Residential Care
Cambridgeshire County Council,10-Jun-20,51301387172,-784.74,THE REGARD PARTNERSHIP,CARE ESTABLISHMENT,LD - Fenland Locality - Cost of Care,LD - Fenland  - Care,Supported Living
Cambridgeshire County Council,10-Jun-20,51301387172,-784.74,THE REGARD PARTNERSHIP,CARE ESTABLISHMENT,LD - Fenland Locality - Cost of Care,LD - Fenland  - Care,Supported Living
Cambridgeshire County Council,10-Jun-20,51301387172,-784.74,THE REGARD PARTNERSHIP,CARE ESTABLISHMENT,LD - Fenland Locality - Cost of Care,LD - Fenland  - Care,Supported Living
Cambridgeshire County Council,10-Jun-20,51301387172,-784.74,THE REGARD PARTNERSHIP,CARE ESTABLISHMENT,LD - Fenland Locality - Cost of Care,LD - Fenland  - Care,Supported Living
Cambridgeshire County Council,10-Jun-20,51301387172,-784.74,THE REGARD PARTNERSHIP,CARE ESTABLISHMENT,LD - Fenland Locality - Cost of Care,LD - Fenland  - Care,Supported Living
Cambridgeshire County Council,10-Jun-20,51301387172,-784.74,THE REGARD PARTNERSHIP,CARE ESTABLISHMENT,LD - Fenland Locality - Cost of Care,LD - Fenland  - Care,Supported Living
Cambridgeshire County Council,10-Jun-20,51301387172,-784.74,THE REGARD PARTNERSHIP,CARE ESTABLISHMENT,LD - Fenland Locality - Cost of Care,LD - Fenland  - Care,Supported Living
Cambridgeshire County Council,10-Jun-20,51301380124,-771.43,BROWN'S FIELD HOUSE (ABBEYFIELD SOCIETY),CARE ESTABLISHMENT,Strategic Management - Adults,Adults Assistant Director,Short Term Other
Cambridgeshire County Council,04-Jun-20,51301379774,-764.00,THE EDMUND TRUST,CARE ESTABLISHMENT,LD - South Locality - Cost of Care,LD - South Cambs - Care,Supported Living
Cambridgeshire County Council,04-Jun-20,51301379774,-764.00,THE EDMUND TRUST,CARE ESTABLISHMENT,LD - South Locality - Cost of Care,LD - South Cambs - Care,Supported Living
Cambridgeshire County Council,04-Jun-20,51301379774,-764.00,THE EDMUND TRUST,CARE ESTABLISHMENT,LD - South Locality - Cost of Care,LD - South Cambs - Care,Supported Living
Cambridgeshire County Council,10-Jun-20,51301388238,-763.04,BETTER HOME CARE,CARE ESTABLISHMENT,OP - City & South Locality - Cost of Care,Older People - City & South - Care,Domiciliary Care
Cambridgeshire County Council,10-Jun-20,51301388238,-763.04,BETTER HOME CARE,CARE ESTABLISHMENT,OP - City & South Locality - Cost of Care,Older People - City & South - Care,Domiciliary Care
Cambridgeshire County Council,10-Jun-20,51301388238,-763.04,BETTER HOME CARE,CARE ESTABLISHMENT,OP - City & South Locality - Cost of Care,Older People - City & South - Care,Domiciliary Care
Cambridgeshire County Council,25-Jun-20,51301393914,-754.29,Redacted Personal Data ,SERVICE USER,LD - East Locality - Cost of Care,LD - East Cambs - Care,Direct Payments
Cambridgeshire County Council,04-Jun-20,51301375227,-751.98,ALDERTON HOUSE,CARE ESTABLISHMENT,LD - East Locality - Cost of Care,LD - East Cambs - Care,Residential Care
Cambridgeshire County Council,04-Jun-20,51301375227,-751.98,ALDERTON HOUSE,CARE ESTABLISHMENT,LD - East Locality - Cost of Care,LD - East Cambs - Care,Residential Care
Cambridgeshire County Council,04-Jun-20,51301375227,-751.98,ALDERTON HOUSE,CARE ESTABLISHMENT,LD - East Locality - Cost of Care,LD - East Cambs - Care,Residential Care
Cambridgeshire County Council,04-Jun-20,51301375227,-751.98,ALDERTON HOUSE,CARE ESTABLISHMENT,LD - East Locality - Cost of Care,LD - East Cambs - Care,Residential Care
Cambridgeshire County Council,04-Jun-20,51301375227,-751.98,ALDERTON HOUSE,CARE ESTABLISHMENT,LD - East Locality - Cost of Care,LD - East Cambs - Care,Residential Care
Cambridgeshire County Council,04-Jun-20,51301375227,-751.98,ALDERTON HOUSE,CARE ESTABLISHMENT,LD - East Locality - Cost of Care,LD - East Cambs - Care,Residential Care
Cambridgeshire County Council,04-Jun-20,51301375227,-751.98,ALDERTON HOUSE,CARE ESTABLISHMENT,LD - East Locality - Cost of Care,LD - East Cambs - Care,Residential Care
Cambridgeshire County Council,04-Jun-20,51301375227,-751.98,ALDERTON HOUSE,CARE ESTABLISHMENT,LD - East Locality - Cost of Care,LD - East Cambs - Care,Residential Care
Cambridgeshire County Council,04-Jun-20,51301375227,-751.98,ALDERTON HOUSE,CARE ESTABLISHMENT,LD - East Locality - Cost of Care,LD - East Cambs - Care,Residential Care
Cambridgeshire County Council,04-Jun-20,51301375227,-751.98,ALDERTON HOUSE,CARE ESTABLISHMENT,LD - East Locality - Cost of Care,LD - East Cambs - Care,Residential Care
Cambridgeshire County Council,04-Jun-20,51301375227,-751.98,ALDERTON HOUSE,CARE ESTABLISHMENT,LD - East Locality - Cost of Care,LD - East Cambs - Care,Residential Care
Cambridgeshire County Council,10-Jun-20,51301385162,-750.00,GRACEFIELD NURSING AND RESIDENTIAL HOME,CARE ESTABLISHMENT,OP - City & South Locality - Cost of Care,Older People - City & South - Care,Residential Care
Cambridgeshire County Council,10-Jun-20,51301385162,-750.00,GRACEFIELD NURSING AND RESIDENTIAL HOME,CARE ESTABLISHMENT,OP - City & South Locality - Cost of Care,Older People - City & South - Care,Residential Care
Cambridgeshire County Council,10-Jun-20,51301385162,-750.00,GRACEFIELD NURSING AND RESIDENTIAL HOME,CARE ESTABLISHMENT,OP - City & South Locality - Cost of Care,Older People - City & South - Care,Residential Care
Cambridgeshire County Council,10-Jun-20,51301385757,-750.00,HATLEY COURT HAVEN LTD,CARE ESTABLISHMENT,OP - East Cambs Locality - Cost of Care,East Cambs - O P Team - Care,Residential Care
Cambridgeshire County Council,10-Jun-20,51301385757,-750.00,HATLEY COURT HAVEN LTD,CARE ESTABLISHMENT,OP - East Cambs Locality - Cost of Care,East Cambs - O P Team - Care,Residential Care
Cambridgeshire County Council,10-Jun-20,51301385757,-750.00,HATLEY COURT HAVEN LTD,CARE ESTABLISHMENT,OP - East Cambs Locality - Cost of Care,East Cambs - O P Team - Care,Residential Care
Cambridgeshire County Council,10-Jun-20,51301385757,-750.00,HATLEY COURT HAVEN LTD,CARE ESTABLISHMENT,OP - East Cambs Locality - Cost of Care,East Cambs - O P Team - Care,Residential Care
Cambridgeshire County Council,10-Jun-20,51301385757,-750.00,HATLEY COURT HAVEN LTD,CARE ESTABLISHMENT,OP - East Cambs Locality - Cost of Care,East Cambs - O P Team - Care,Residential Care
Cambridgeshire County Council,10-Jun-20,51301385757,-750.00,HATLEY COURT HAVEN LTD,CARE ESTABLISHMENT,OP - East Cambs Locality - Cost of Care,East Cambs - O P Team - Care,Residential Care
Cambridgeshire County Council,10-Jun-20,51301385757,-750.00,HATLEY COURT HAVEN LTD,CARE ESTABLISHMENT,OP - East Cambs Locality - Cost of Care,East Cambs - O P Team - Care,Residential Care
Cambridgeshire County Council,15-Jun-20,51301390783,-750.00,ROSE COTTAGE RESIDENTIAL HOME,CARE ESTABLISHMENT,OP - Hunts Locality - Cost of Care,Hunts OP Team - Care,Residential Care
Cambridgeshire County Council,15-Jun-20,51301390790,-750.00,ROSE COTTAGE RESIDENTIAL HOME,CARE ESTABLISHMENT,OP - Hunts Locality - Cost of Care,Hunts OP Team - Care,Residential Care
Cambridgeshire County Council,15-Jun-20,51301390796,-750.00,ROSE COTTAGE RESIDENTIAL HOME,CARE ESTABLISHMENT,OP - Hunts Locality - Cost of Care,Hunts OP Team - Care,Residential Care
Cambridgeshire County Council,15-Jun-20,51301390787,-750.00,ROSE COTTAGE RESIDENTIAL HOME,CARE ESTABLISHMENT,OP - Hunts Locality - Cost of Care,Hunts OP Team - Care,Residential Care
Cambridgeshire County Council,15-Jun-20,51301390786,-750.00,ROSE COTTAGE RESIDENTIAL HOME,CARE ESTABLISHMENT,OP - Hunts Locality - Cost of Care,Hunts OP Team - Care,Residential Care
Cambridgeshire County Council,15-Jun-20,51301390788,-750.00,ROSE COTTAGE RESIDENTIAL HOME,CARE ESTABLISHMENT,OP - Hunts Locality - Cost of Care,Hunts OP Team - Care,Residential Care
Cambridgeshire County Council,15-Jun-20,51301390795,-750.00,ROSE COTTAGE RESIDENTIAL HOME,CARE ESTABLISHMENT,OP - Hunts Locality - Cost of Care,Hunts OP Team - Care,Residential Care
Cambridgeshire County Council,15-Jun-20,51301390782,-750.00,ROSE COTTAGE RESIDENTIAL HOME,CARE ESTABLISHMENT,OP - Hunts Locality - Cost of Care,Hunts OP Team - Care,Residential Care
Cambridgeshire County Council,15-Jun-20,51301390785,-750.00,ROSE COTTAGE RESIDENTIAL HOME,CARE ESTABLISHMENT,OP - Hunts Locality - Cost of Care,Hunts OP Team - Care,Residential Care
Cambridgeshire County Council,15-Jun-20,51301390784,-750.00,ROSE COTTAGE RESIDENTIAL HOME,CARE ESTABLISHMENT,OP - Hunts Locality - Cost of Care,Hunts OP Team - Care,Residential Care
Cambridgeshire County Council,15-Jun-20,51301390789,-750.00,ROSE COTTAGE RESIDENTIAL HOME,CARE ESTABLISHMENT,OP - Hunts Locality - Cost of Care,Hunts OP Team - Care,Residential Care
Cambridgeshire County Council,15-Jun-20,51301390791,-750.00,ROSE COTTAGE RESIDENTIAL HOME,CARE ESTABLISHMENT,OP - Hunts Locality - Cost of Care,Hunts OP Team - Care,Residential Care
Cambridgeshire County Council,15-Jun-20,51301390792,-750.00,ROSE COTTAGE RESIDENTIAL HOME,CARE ESTABLISHMENT,OP - Hunts Locality - Cost of Care,Hunts OP Team - Care,Residential Care
Cambridgeshire County Council,15-Jun-20,51301390793,-750.00,ROSE COTTAGE RESIDENTIAL HOME,CARE ESTABLISHMENT,OP - Hunts Locality - Cost of Care,Hunts OP Team - Care,Residential Care
Cambridgeshire County Council,15-Jun-20,51301390794,-750.00,ROSE COTTAGE RESIDENTIAL HOME,CARE ESTABLISHMENT,OP - Hunts Locality - Cost of Care,Hunts OP Team - Care,Residential Care
Cambridgeshire County Council,22-Jun-20,51301393326,-750.00,ROSE COTTAGE RESIDENTIAL HOME,CARE ESTABLISHMENT,OP - Hunts Locality - Cost of Care,Hunts OP Team - Care,Residential Care
Cambridgeshire County Council,22-Jun-20,51301393327,-750.00,ROSE COTTAGE RESIDENTIAL HOME,CARE ESTABLISHMENT,OP - Hunts Locality - Cost of Care,Hunts OP Team - Care,Residential Care
Cambridgeshire County Council,10-Jun-20,51301385182,-749.45,Arlington Manor Care Home,CARE ESTABLISHMENT,OP - City & South Locality - Cost of Care,Older People - City & South - Care,Nursing Care
Cambridgeshire County Council,10-Jun-20,51301385182,-749.45,Arlington Manor Care Home,CARE ESTABLISHMENT,OP - City & South Locality - Cost of Care,Older People - City & South - Care,Nursing Care
Cambridgeshire County Council,10-Jun-20,51301385182,-749.45,Arlington Manor Care Home,CARE ESTABLISHMENT,OP - City & South Locality - Cost of Care,Older People - City & South - Care,Nursing Care
Cambridgeshire County Council,10-Jun-20,51301385182,-749.45,Arlington Manor Care Home,CARE ESTABLISHMENT,OP - City & South Locality - Cost of Care,Older People - City & South - Care,Nursing Care
Cambridgeshire County Council,10-Jun-20,51301385182,-749.45,Arlington Manor Care Home,CARE ESTABLISHMENT,OP - City & South Locality - Cost of Care,Older People - City & South - Care,Nursing Care
Cambridgeshire County Council,10-Jun-20,51301385182,-749.45,Arlington Manor Care Home,CARE ESTABLISHMENT,OP - City & South Locality - Cost of Care,Older People - City & South - Care,Nursing Care
Cambridgeshire County Council,10-Jun-20,51301385182,-749.45,Arlington Manor Care Home,CARE ESTABLISHMENT,OP - City & South Locality - Cost of Care,Older People - City & South - Care,Nursing Care
Cambridgeshire County Council,10-Jun-20,51301385182,-749.45,Arlington Manor Care Home,CARE ESTABLISHMENT,OP - City & South Locality - Cost of Care,Older People - City & South - Care,Nursing Care
Cambridgeshire County Council,10-Jun-20,51301385182,-749.45,Arlington Manor Care Home,CARE ESTABLISHMENT,OP - City & South Locality - Cost of Care,Older People - City & South - Care,Nursing Care
Cambridgeshire County Council,10-Jun-20,51301385182,-749.45,Arlington Manor Care Home,CARE ESTABLISHMENT,OP - City & South Locality - Cost of Care,Older People - City & South - Care,Nursing Care
Cambridgeshire County Council,10-Jun-20,51301385182,-749.45,Arlington Manor Care Home,CARE ESTABLISHMENT,OP - City & South Locality - Cost of Care,Older People - City & South - Care,Nursing Care
Cambridgeshire County Council,10-Jun-20,51301385182,-749.45,Arlington Manor Care Home,CARE ESTABLISHMENT,OP - City & South Locality - Cost of Care,Older People - City & South - Care,Nursing Care
Cambridgeshire County Council,10-Jun-20,51301388355,-748.81,MAYCROFT CARE HOME LTD,CARE ESTABLISHMENT,OP - City & South Locality - Cost of Care,Older People - City & South - Care,Residential Care
Cambridgeshire County Council,10-Jun-20,51301388355,-748.81,MAYCROFT CARE HOME LTD,CARE ESTABLISHMENT,OP - City & South Locality - Cost of Care,Older People - City & South - Care,Residential Care
Cambridgeshire County Council,10-Jun-20,51301388355,-748.81,MAYCROFT CARE HOME LTD,CARE ESTABLISHMENT,OP - City & South Locality - Cost of Care,Older People - City & South - Care,Residential Care
Cambridgeshire County Council,10-Jun-20,51301388355,-748.81,MAYCROFT CARE HOME LTD,CARE ESTABLISHMENT,OP - City & South Locality - Cost of Care,Older People - City & South - Care,Residential Care
Cambridgeshire County Council,10-Jun-20,51301386058,-734.44,ABBEY HEALTHCARE (HUNTINGDON) LTD,CARE ESTABLISHMENT,OP - Hunts Locality - Cost of Care,Hunts OP Team - Care,Nursing Care
Cambridgeshire County Council,10-Jun-20,51301386058,-734.44,ABBEY HEALTHCARE (HUNTINGDON) LTD,CARE ESTABLISHMENT,OP - Hunts Locality - Cost of Care,Hunts OP Team - Care,Nursing Care
Cambridgeshire County Council,10-Jun-20,51301386058,-734.44,ABBEY HEALTHCARE (HUNTINGDON) LTD,CARE ESTABLISHMENT,OP - Hunts Locality - Cost of Care,Hunts OP Team - Care,Nursing Care
Cambridgeshire County Council,10-Jun-20,51301386058,-734.44,ABBEY HEALTHCARE (HUNTINGDON) LTD,CARE ESTABLISHMENT,OP - Hunts Locality - Cost of Care,Hunts OP Team - Care,Nursing Care
Cambridgeshire County Council,10-Jun-20,51301386058,-734.44,ABBEY HEALTHCARE (HUNTINGDON) LTD,CARE ESTABLISHMENT,OP - Hunts Locality - Cost of Care,Hunts OP Team - Care,Nursing Care
Cambridgeshire County Council,10-Jun-20,51301386058,-734.44,ABBEY HEALTHCARE (HUNTINGDON) LTD,CARE ESTABLISHMENT,OP - Hunts Locality - Cost of Care,Hunts OP Team - Care,Nursing Care
Cambridgeshire County Council,10-Jun-20,51301386058,-734.44,ABBEY HEALTHCARE (HUNTINGDON) LTD,CARE ESTABLISHMENT,OP - Hunts Locality - Cost of Care,Hunts OP Team - Care,Nursing Care
Cambridgeshire County Council,10-Jun-20,51301386058,-734.44,ABBEY HEALTHCARE (HUNTINGDON) LTD,CARE ESTABLISHMENT,OP - Hunts Locality - Cost of Care,Hunts OP Team - Care,Nursing Care
Cambridgeshire County Council,10-Jun-20,51301386058,-734.44,ABBEY HEALTHCARE (HUNTINGDON) LTD,CARE ESTABLISHMENT,OP - Hunts Locality - Cost of Care,Hunts OP Team - Care,Nursing Care
Cambridgeshire County Council,10-Jun-20,51301386058,-734.44,ABBEY HEALTHCARE (HUNTINGDON) LTD,CARE ESTABLISHMENT,OP - Hunts Locality - Cost of Care,Hunts OP Team - Care,Nursing Care
Cambridgeshire County Council,10-Jun-20,51301386058,-734.44,ABBEY HEALTHCARE (HUNTINGDON) LTD,CARE ESTABLISHMENT,OP - Hunts Locality - Cost of Care,Hunts OP Team - Care,Nursing Care
Cambridgeshire County Council,10-Jun-20,51301386058,-734.44,ABBEY HEALTHCARE (HUNTINGDON) LTD,CARE ESTABLISHMENT,OP - Hunts Locality - Cost of Care,Hunts OP Team - Care,Nursing Care
Cambridgeshire County Council,10-Jun-20,51301386058,-734.44,ABBEY HEALTHCARE (HUNTINGDON) LTD,CARE ESTABLISHMENT,OP - Hunts Locality - Cost of Care,Hunts OP Team - Care,Nursing Care
Cambridgeshire County Council,10-Jun-20,51301385780,-734.00,SYMONDS HOUSE NURSING HOME,CARE ESTABLISHMENT,OP - City & South Locality - Cost of Care,Older People - City & South - Care,Nursing Care
Cambridgeshire County Council,10-Jun-20,51301385780,-734.00,SYMONDS HOUSE NURSING HOME,CARE ESTABLISHMENT,OP - City & South Locality - Cost of Care,Older People - City & South - Care,Nursing Care
Cambridgeshire County Council,19-Jun-20,51301375782,-730.42,Action For Children Services Ltd,EDUCATION,Community Support Service,Community Support Service ECF,Grants to Voluntary Bodies
Cambridgeshire County Council,04-Jun-20,51301380579,-727.93,AFFINITY TRUST,CARE ESTABLISHMENT,LD - Hunts Locality - Cost of Care,LD - Huntingdonshire - Care,Supported Living
Cambridgeshire County Council,10-Jun-20,51301385957,-700.00,HC-ONE,CARE ESTABLISHMENT,OP - Hunts Locality - Cost of Care,Hunts OP Team - Care,Residential Care
Cambridgeshire County Council,10-Jun-20,51301385957,-700.00,HC-ONE,CARE ESTABLISHMENT,OP - Hunts Locality - Cost of Care,Hunts OP Team - Care,Residential Care
Cambridgeshire County Council,10-Jun-20,51301385957,-700.00,HC-ONE,CARE ESTABLISHMENT,OP - Hunts Locality - Cost of Care,Hunts OP Team - Care,Residential Care
Cambridgeshire County Council,10-Jun-20,51301385957,-700.00,HC-ONE,CARE ESTABLISHMENT,OP - Hunts Locality - Cost of Care,Hunts OP Team - Care,Residential Care
Cambridgeshire County Council,10-Jun-20,51301386078,-700.00,THE CAMBRIDGE HOUSING SOCIETY LTD,CARE ESTABLISHMENT,OP - City & South Locality - Cost of Care,Older People - City & South - Care,Residential Care
Cambridgeshire County Council,10-Jun-20,51301386078,-700.00,THE CAMBRIDGE HOUSING SOCIETY LTD,CARE ESTABLISHMENT,OP - City & South Locality - Cost of Care,Older People - City & South - Care,Residential Care
Cambridgeshire County Council,10-Jun-20,51301386078,-700.00,THE CAMBRIDGE HOUSING SOCIETY LTD,CARE ESTABLISHMENT,OP - City & South Locality - Cost of Care,Older People - City & South - Care,Residential Care
Cambridgeshire County Council,10-Jun-20,51301386078,-700.00,THE CAMBRIDGE HOUSING SOCIETY LTD,CARE ESTABLISHMENT,OP - City & South Locality - Cost of Care,Older People - City & South - Care,Residential Care
Cambridgeshire County Council,10-Jun-20,51301386078,-700.00,THE CAMBRIDGE HOUSING SOCIETY LTD,CARE ESTABLISHMENT,OP - City & South Locality - Cost of Care,Older People - City & South - Care,Residential Care
Cambridgeshire County Council,10-Jun-20,51301386078,-700.00,THE CAMBRIDGE HOUSING SOCIETY LTD,CARE ESTABLISHMENT,OP - City & South Locality - Cost of Care,Older People - City & South - Care,Residential Care
Cambridgeshire County Council,10-Jun-20,51301386078,-700.00,THE CAMBRIDGE HOUSING SOCIETY LTD,CARE ESTABLISHMENT,OP - City & South Locality - Cost of Care,Older People - City & South - Care,Residential Care
Cambridgeshire County Council,10-Jun-20,51301385963,-700.00,BROWN'S FIELD HOUSE (ABBEYFIELD SOCIETY),CARE ESTABLISHMENT,OP - City & South Locality - Cost of Care,Older People - City & South - Care,Residential Care
Cambridgeshire County Council,10-Jun-20,51301385963,-700.00,BROWN'S FIELD HOUSE (ABBEYFIELD SOCIETY),CARE ESTABLISHMENT,OP - City & South Locality - Cost of Care,Older People - City & South - Care,Residential Care
Cambridgeshire County Council,10-Jun-20,51301385963,-700.00,BROWN'S FIELD HOUSE (ABBEYFIELD SOCIETY),CARE ESTABLISHMENT,OP - City & South Locality - Cost of Care,Older People - City & South - Care,Residential Care
Cambridgeshire County Council,10-Jun-20,51301385963,-700.00,BROWN'S FIELD HOUSE (ABBEYFIELD SOCIETY),CARE ESTABLISHMENT,OP - City & South Locality - Cost of Care,Older People - City & South - Care,Residential Care
Cambridgeshire County Council,10-Jun-20,51301385963,-700.00,BROWN'S FIELD HOUSE (ABBEYFIELD SOCIETY),CARE ESTABLISHMENT,OP - City & South Locality - Cost of Care,Older People - City & South - Care,Residential Care
Cambridgeshire County Council,10-Jun-20,51301385746,-690.00,BUCHAN HEALTHCARE LTD,CARE ESTABLISHMENT,OP - City & South Locality - Cost of Care,Older People - City & South - Care,Residential Care
Cambridgeshire County Council,10-Jun-20,51301385746,-690.00,BUCHAN HEALTHCARE LTD,CARE ESTABLISHMENT,OP - City & South Locality - Cost of Care,Older People - City & South - Care,Residential Care
Cambridgeshire County Council,10-Jun-20,51301385746,-690.00,BUCHAN HEALTHCARE LTD,CARE ESTABLISHMENT,OP - City & South Locality - Cost of Care,Older People - City & South - Care,Residential Care
Cambridgeshire County Council,10-Jun-20,51301385746,-690.00,BUCHAN HEALTHCARE LTD,CARE ESTABLISHMENT,OP - City & South Locality - Cost of Care,Older People - City & South - Care,Residential Care
Cambridgeshire County Council,10-Jun-20,51301385746,-690.00,BUCHAN HEALTHCARE LTD,CARE ESTABLISHMENT,OP - City & South Locality - Cost of Care,Older People - City & South - Care,Residential Care
Cambridgeshire County Council,10-Jun-20,51301385746,-690.00,BUCHAN HEALTHCARE LTD,CARE ESTABLISHMENT,OP - City & South Locality - Cost of Care,Older People - City & South - Care,Residential Care
Cambridgeshire County Council,10-Jun-20,51301385746,-690.00,BUCHAN HEALTHCARE LTD,CARE ESTABLISHMENT,OP - City & South Locality - Cost of Care,Older People - City & South - Care,Residential Care
Cambridgeshire County Council,10-Jun-20,51301385746,-690.00,BUCHAN HEALTHCARE LTD,CARE ESTABLISHMENT,OP - City & South Locality - Cost of Care,Older People - City & South - Care,Residential Care
Cambridgeshire County Council,10-Jun-20,51301385746,-690.00,BUCHAN HEALTHCARE LTD,CARE ESTABLISHMENT,OP - City & South Locality - Cost of Care,Older People - City & South - Care,Residential Care
Cambridgeshire County Council,10-Jun-20,51301385746,-690.00,BUCHAN HEALTHCARE LTD,CARE ESTABLISHMENT,OP - City & South Locality - Cost of Care,Older People - City & South - Care,Residential Care
Cambridgeshire County Council,10-Jun-20,51301385746,-690.00,BUCHAN HEALTHCARE LTD,CARE ESTABLISHMENT,OP - City & South Locality - Cost of Care,Older People - City & South - Care,Residential Care
Cambridgeshire County Council,10-Jun-20,51301385746,-690.00,BUCHAN HEALTHCARE LTD,CARE ESTABLISHMENT,OP - City & South Locality - Cost of Care,Older People - City & South - Care,Residential Care
Cambridgeshire County Council,10-Jun-20,51301385746,-690.00,BUCHAN HEALTHCARE LTD,CARE ESTABLISHMENT,OP - City & South Locality - Cost of Care,Older People - City & South - Care,Residential Care
Cambridgeshire County Council,10-Jun-20,51301385746,-690.00,BUCHAN HEALTHCARE LTD,CARE ESTABLISHMENT,OP - City & South Locality - Cost of Care,Older People - City & South - Care,Residential Care
Cambridgeshire County Council,10-Jun-20,51301386085,-684.44,THE CAMBRIDGE NURSING CENTRE,CARE ESTABLISHMENT,OP - City & South Locality - Cost of Care,Older People - City & South - Care,Nursing Care
Cambridgeshire County Council,10-Jun-20,51301386085,-684.44,THE CAMBRIDGE NURSING CENTRE,CARE ESTABLISHMENT,OP - City & South Locality - Cost of Care,Older People - City & South - Care,Nursing Care
Cambridgeshire County Council,10-Jun-20,51301386085,-684.44,THE CAMBRIDGE NURSING CENTRE,CARE ESTABLISHMENT,OP - City & South Locality - Cost of Care,Older People - City & South - Care,Nursing Care
Cambridgeshire County Council,10-Jun-20,51301386085,-684.44,THE CAMBRIDGE NURSING CENTRE,CARE ESTABLISHMENT,OP - City & South Locality - Cost of Care,Older People - City & South - Care,Nursing Care
Cambridgeshire County Council,10-Jun-20,51301386085,-684.44,THE CAMBRIDGE NURSING CENTRE,CARE ESTABLISHMENT,OP - City & South Locality - Cost of Care,Older People - City & South - Care,Nursing Care
Cambridgeshire County Council,10-Jun-20,51301386085,-684.44,THE CAMBRIDGE NURSING CENTRE,CARE ESTABLISHMENT,OP - City & South Locality - Cost of Care,Older People - City & South - Care,Nursing Care
Cambridgeshire County Council,10-Jun-20,51301386085,-684.44,THE CAMBRIDGE NURSING CENTRE,CARE ESTABLISHMENT,OP - City & South Locality - Cost of Care,Older People - City & South - Care,Nursing Care
Cambridgeshire County Council,10-Jun-20,51301386085,-684.44,THE CAMBRIDGE NURSING CENTRE,CARE ESTABLISHMENT,OP - City & South Locality - Cost of Care,Older People - City & South - Care,Nursing Care
Cambridgeshire County Council,25-Jun-20,51301393921,-682.99,Redacted Personal Data ,SERVICE USER,LD - South Locality - Cost of Care,LD - South Cambs - Care,Direct Payments
Cambridgeshire County Council,25-Jun-20,51301393921,-682.99,Redacted Personal Data ,SERVICE USER,LD - South Locality - Cost of Care,LD - South Cambs - Care,Direct Payments
Cambridgeshire County Council,25-Jun-20,51301393921,-682.99,Redacted Personal Data ,SERVICE USER,LD - South Locality - Cost of Care,LD - South Cambs - Care,Direct Payments
Cambridgeshire County Council,10-Jun-20,51301385730,-676.21,Accomplish Group Support Limited,CARE ESTABLISHMENT,Autism and Adult Support - Cost of Care,Autism and Adult Support - Care,Residential Care
Cambridgeshire County Council,10-Jun-20,51301388541,-675.00,HARDWICK DENE,CARE ESTABLISHMENT,OP - Hunts Locality - Cost of Care,Hunts OP Team - Care,Residential Care
Cambridgeshire County Council,10-Jun-20,51301388541,-675.00,HARDWICK DENE,CARE ESTABLISHMENT,OP - Hunts Locality - Cost of Care,Hunts OP Team - Care,Residential Care
Cambridgeshire County Council,10-Jun-20,51301388541,-675.00,HARDWICK DENE,CARE ESTABLISHMENT,OP - Hunts Locality - Cost of Care,Hunts OP Team - Care,Residential Care
Cambridgeshire County Council,19-Jun-20,51301391556,-674.56,Redacted Personal Data ,SERVICE USER,LD - Young Adults Team,LD - Young Adults - Care,Direct Payments
Cambridgeshire County Council,19-Jun-20,51301391556,-674.56,Redacted Personal Data ,SERVICE USER,LD - Young Adults Team,LD - Young Adults - Care,Direct Payments
Cambridgeshire County Council,04-Jun-20,51301379660,-660.36,THERA EAST ANGLIA,CARE ESTABLISHMENT,LD - Hunts Locality - Cost of Care,LD - Huntingdonshire - Care,Domiciliary Care
Cambridgeshire County Council,10-Jun-20,51301388238,-654.03,BETTER HOME CARE,CARE ESTABLISHMENT,OP - City & South Locality - Cost of Care,Older People - City & South - Care,Domiciliary Care
Cambridgeshire County Council,10-Jun-20,51301388537,-650.00,THE FIRS (Barrels Care),CARE ESTABLISHMENT,OP - East Cambs Locality - Cost of Care,East Cambs - O P Team - Care,Residential Care
Cambridgeshire County Council,10-Jun-20,51301388537,-650.00,THE FIRS (Barrels Care),CARE ESTABLISHMENT,OP - East Cambs Locality - Cost of Care,East Cambs - O P Team - Care,Residential Care
Cambridgeshire County Council,10-Jun-20,51301388537,-650.00,THE FIRS (Barrels Care),CARE ESTABLISHMENT,OP - East Cambs Locality - Cost of Care,East Cambs - O P Team - Care,Residential Care
Cambridgeshire County Council,10-Jun-20,51301388537,-650.00,THE FIRS (Barrels Care),CARE ESTABLISHMENT,OP - East Cambs Locality - Cost of Care,East Cambs - O P Team - Care,Residential Care
Cambridgeshire County Council,10-Jun-20,51301388537,-650.00,THE FIRS (Barrels Care),CARE ESTABLISHMENT,OP - East Cambs Locality - Cost of Care,East Cambs - O P Team - Care,Residential Care
Cambridgeshire County Council,10-Jun-20,51301388537,-650.00,THE FIRS (Barrels Care),CARE ESTABLISHMENT,OP - East Cambs Locality - Cost of Care,East Cambs - O P Team - Care,Residential Care
Cambridgeshire County Council,10-Jun-20,51301385245,-650.00,THE HILLINGS LIMITED,CARE ESTABLISHMENT,OP - Hunts Locality - Cost of Care,Hunts OP Team - Care,Residential Care
Cambridgeshire County Council,19-Jun-20,51301391563,-650.00,Redacted Personal Data ,SERVICE USER,OP - East Cambs Locality - Cost of Care,East Cambs - O P Team - Care,Direct Payments
Cambridgeshire County Council,19-Jun-20,51301391563,-650.00,Redacted Personal Data ,SERVICE USER,OP - East Cambs Locality - Cost of Care,East Cambs - O P Team - Care,Direct Payments
Cambridgeshire County Council,19-Jun-20,51301391563,-650.00,Redacted Personal Data ,SERVICE USER,OP - East Cambs Locality - Cost of Care,East Cambs - O P Team - Care,Direct Payments
Cambridgeshire County Council,19-Jun-20,51301391563,-650.00,Redacted Personal Data ,SERVICE USER,OP - East Cambs Locality - Cost of Care,East Cambs - O P Team - Care,Direct Payments
Cambridgeshire County Council,19-Jun-20,51301391563,-650.00,Redacted Personal Data ,SERVICE USER,OP - East Cambs Locality - Cost of Care,East Cambs - O P Team - Care,Direct Payments
Cambridgeshire County Council,19-Jun-20,51301391563,-650.00,Redacted Personal Data ,SERVICE USER,OP - East Cambs Locality - Cost of Care,East Cambs - O P Team - Care,Direct Payments
Cambridgeshire County Council,19-Jun-20,51301391563,-650.00,Redacted Personal Data ,SERVICE USER,OP - East Cambs Locality - Cost of Care,East Cambs - O P Team - Care,Direct Payments
Cambridgeshire County Council,19-Jun-20,51301391563,-650.00,Redacted Personal Data ,SERVICE USER,OP - East Cambs Locality - Cost of Care,East Cambs - O P Team - Care,Direct Payments
Cambridgeshire County Council,19-Jun-20,51301391563,-650.00,Redacted Personal Data ,SERVICE USER,OP - East Cambs Locality - Cost of Care,East Cambs - O P Team - Care,Direct Payments
Cambridgeshire County Council,04-Jun-20,51301380227,-647.17,WESTMINSTER HOMECARE LIMITED,CARE ESTABLISHMENT,LD - East Locality - Cost of Care,LD - East Cambs - Care,Supported Living
Cambridgeshire County Council,04-Jun-20,51301380227,-647.17,WESTMINSTER HOMECARE LIMITED,CARE ESTABLISHMENT,LD - East Locality - Cost of Care,LD - East Cambs - Care,Supported Living
Cambridgeshire County Council,04-Jun-20,51301380227,-647.17,WESTMINSTER HOMECARE LIMITED,CARE ESTABLISHMENT,LD - East Locality - Cost of Care,LD - East Cambs - Care,Supported Living
Cambridgeshire County Council,04-Jun-20,51301380227,-647.17,WESTMINSTER HOMECARE LIMITED,CARE ESTABLISHMENT,LD - East Locality - Cost of Care,LD - East Cambs - Care,Supported Living
Cambridgeshire County Council,04-Jun-20,51301380227,-647.17,WESTMINSTER HOMECARE LIMITED,CARE ESTABLISHMENT,LD - East Locality - Cost of Care,LD - East Cambs - Care,Supported Living
Cambridgeshire County Council,04-Jun-20,51301380227,-647.17,WESTMINSTER HOMECARE LIMITED,CARE ESTABLISHMENT,LD - East Locality - Cost of Care,LD - East Cambs - Care,Supported Living
Cambridgeshire County Council,04-Jun-20,51301380227,-647.17,WESTMINSTER HOMECARE LIMITED,CARE ESTABLISHMENT,LD - East Locality - Cost of Care,LD - East Cambs - Care,Supported Living
Cambridgeshire County Council,04-Jun-20,51301377734,-645.00,METHODIST HOMES FOR THE AGED (MHA),CARE ESTABLISHMENT,OP - East Cambs Locality - Cost of Care,East Cambs - O P Team - Care,Residential Care
Cambridgeshire County Council,04-Jun-20,51301377734,-645.00,METHODIST HOMES FOR THE AGED (MHA),CARE ESTABLISHMENT,OP - East Cambs Locality - Cost of Care,East Cambs - O P Team - Care,Residential Care
Cambridgeshire County Council,04-Jun-20,51301377734,-645.00,METHODIST HOMES FOR THE AGED (MHA),CARE ESTABLISHMENT,OP - East Cambs Locality - Cost of Care,East Cambs - O P Team - Care,Residential Care
Cambridgeshire County Council,04-Jun-20,51301377734,-645.00,METHODIST HOMES FOR THE AGED (MHA),CARE ESTABLISHMENT,OP - East Cambs Locality - Cost of Care,East Cambs - O P Team - Care,Residential Care
Cambridgeshire County Council,04-Jun-20,51301377734,-645.00,METHODIST HOMES FOR THE AGED (MHA),CARE ESTABLISHMENT,OP - East Cambs Locality - Cost of Care,East Cambs - O P Team - Care,Residential Care
Cambridgeshire County Council,04-Jun-20,51301377734,-645.00,METHODIST HOMES FOR THE AGED (MHA),CARE ESTABLISHMENT,OP - East Cambs Locality - Cost of Care,East Cambs - O P Team - Care,Residential Care
Cambridgeshire County Council,04-Jun-20,51301377734,-645.00,METHODIST HOMES FOR THE AGED (MHA),CARE ESTABLISHMENT,OP - East Cambs Locality - Cost of Care,East Cambs - O P Team - Care,Residential Care
Cambridgeshire County Council,04-Jun-20,51301377734,-645.00,METHODIST HOMES FOR THE AGED (MHA),CARE ESTABLISHMENT,OP - East Cambs Locality - Cost of Care,East Cambs - O P Team - Care,Residential Care
Cambridgeshire County Council,04-Jun-20,51301377734,-645.00,METHODIST HOMES FOR THE AGED (MHA),CARE ESTABLISHMENT,OP - East Cambs Locality - Cost of Care,East Cambs - O P Team - Care,Residential Care
Cambridgeshire County Council,04-Jun-20,51301377734,-645.00,METHODIST HOMES FOR THE AGED (MHA),CARE ESTABLISHMENT,OP - East Cambs Locality - Cost of Care,East Cambs - O P Team - Care,Residential Care
Cambridgeshire County Council,04-Jun-20,51301377734,-645.00,METHODIST HOMES FOR THE AGED (MHA),CARE ESTABLISHMENT,OP - East Cambs Locality - Cost of Care,East Cambs - O P Team - Care,Residential Care
Cambridgeshire County Council,10-Jun-20,51301380128,-645.00,PRIMROSE HEALTHCARE,CARE ESTABLISHMENT,OP - City & South Locality - Cost of Care,Older People - City & South - Care,Rehabilitation And Respite Care
Cambridgeshire County Council,10-Jun-20,51301385412,-630.00,KINGFISHER HOUSE,CARE ESTABLISHMENT,Physical Disablity - Cost of Care,Countywide PD Service - Care,Nursing Care
Cambridgeshire County Council,10-Jun-20,51301385412,-630.00,KINGFISHER HOUSE,CARE ESTABLISHMENT,Physical Disablity - Cost of Care,Countywide PD Service - Care,Nursing Care
Cambridgeshire County Council,10-Jun-20,51301385742,-625.00,HUNTERS HEALTHCARE (HUNTERS DOWN),CARE ESTABLISHMENT,OP - Hunts Locality - Cost of Care,Hunts OP Team - Care,Residential Care
Cambridgeshire County Council,10-Jun-20,51301385742,-625.00,HUNTERS HEALTHCARE (HUNTERS DOWN),CARE ESTABLISHMENT,OP - Hunts Locality - Cost of Care,Hunts OP Team - Care,Residential Care
Cambridgeshire County Council,10-Jun-20,51301385742,-625.00,HUNTERS HEALTHCARE (HUNTERS DOWN),CARE ESTABLISHMENT,OP - Hunts Locality - Cost of Care,Hunts OP Team - Care,Residential Care
Cambridgeshire County Council,10-Jun-20,51301385344,-620.00,LITTLEPORT GRANGE,CARE ESTABLISHMENT,OP - East Cambs Locality - Cost of Care,East Cambs - O P Team - Care,Residential Care
Cambridgeshire County Council,10-Jun-20,51301385344,-620.00,LITTLEPORT GRANGE,CARE ESTABLISHMENT,OP - East Cambs Locality - Cost of Care,East Cambs - O P Team - Care,Residential Care
Cambridgeshire County Council,10-Jun-20,51301385953,-619.00,BROWN'S FIELD HOUSE (ABBEYFIELD SOCIETY),CARE ESTABLISHMENT,OP - City & South Locality - Cost of Care,Older People - City & South - Care,Residential Care
Cambridgeshire County Council,10-Jun-20,51301385953,-619.00,BROWN'S FIELD HOUSE (ABBEYFIELD SOCIETY),CARE ESTABLISHMENT,OP - City & South Locality - Cost of Care,Older People - City & South - Care,Residential Care
Cambridgeshire County Council,10-Jun-20,51301385953,-619.00,BROWN'S FIELD HOUSE (ABBEYFIELD SOCIETY),CARE ESTABLISHMENT,OP - City & South Locality - Cost of Care,Older People - City & South - Care,Residential Care
Cambridgeshire County Council,10-Jun-20,51301385953,-619.00,BROWN'S FIELD HOUSE (ABBEYFIELD SOCIETY),CARE ESTABLISHMENT,OP - City & South Locality - Cost of Care,Older People - City & South - Care,Residential Care
Cambridgeshire County Council,10-Jun-20,51301385953,-619.00,BROWN'S FIELD HOUSE (ABBEYFIELD SOCIETY),CARE ESTABLISHMENT,OP - City & South Locality - Cost of Care,Older People - City & South - Care,Residential Care
Cambridgeshire County Council,10-Jun-20,51301385953,-619.00,BROWN'S FIELD HOUSE (ABBEYFIELD SOCIETY),CARE ESTABLISHMENT,OP - City & South Locality - Cost of Care,Older People - City & South - Care,Residential Care
Cambridgeshire County Council,10-Jun-20,51301385429,-618.00,ARIA COURT,CARE ESTABLISHMENT,OP - Fenland Locality - Cost of Care,Older People - Fenland - Care,Nursing Care
Cambridgeshire County Council,10-Jun-20,51301385429,-618.00,ARIA COURT,CARE ESTABLISHMENT,OP - Fenland Locality - Cost of Care,Older People - Fenland - Care,Nursing Care
Cambridgeshire County Council,10-Jun-20,51301385447,-618.00,ARIA COURT,CARE ESTABLISHMENT,OP - Fenland Locality - Cost of Care,Older People - Fenland - Care,Nursing Care
Cambridgeshire County Council,10-Jun-20,51301385429,-618.00,ARIA COURT,CARE ESTABLISHMENT,OP - Fenland Locality - Cost of Care,Older People - Fenland - Care,Nursing Care
Cambridgeshire County Council,10-Jun-20,51301385429,-618.00,ARIA COURT,CARE ESTABLISHMENT,OP - Fenland Locality - Cost of Care,Older People - Fenland - Care,Nursing Care
Cambridgeshire County Council,10-Jun-20,51301385429,-618.00,ARIA COURT,CARE ESTABLISHMENT,OP - Fenland Locality - Cost of Care,Older People - Fenland - Care,Nursing Care
Cambridgeshire County Council,10-Jun-20,51301385429,-618.00,ARIA COURT,CARE ESTABLISHMENT,OP - Fenland Locality - Cost of Care,Older People - Fenland - Care,Nursing Care
Cambridgeshire County Council,10-Jun-20,51301385429,-618.00,ARIA COURT,CARE ESTABLISHMENT,OP - Fenland Locality - Cost of Care,Older People - Fenland - Care,Nursing Care
Cambridgeshire County Council,10-Jun-20,51301385429,-618.00,ARIA COURT,CARE ESTABLISHMENT,OP - Fenland Locality - Cost of Care,Older People - Fenland - Care,Nursing Care
Cambridgeshire County Council,10-Jun-20,51301385429,-618.00,ARIA COURT,CARE ESTABLISHMENT,OP - Fenland Locality - Cost of Care,Older People - Fenland - Care,Nursing Care
Cambridgeshire County Council,10-Jun-20,51301385429,-618.00,ARIA COURT,CARE ESTABLISHMENT,OP - Fenland Locality - Cost of Care,Older People - Fenland - Care,Nursing Care
Cambridgeshire County Council,10-Jun-20,51301385429,-618.00,ARIA COURT,CARE ESTABLISHMENT,OP - Fenland Locality - Cost of Care,Older People - Fenland - Care,Nursing Care
Cambridgeshire County Council,10-Jun-20,51301385429,-618.00,ARIA COURT,CARE ESTABLISHMENT,OP - Fenland Locality - Cost of Care,Older People - Fenland - Care,Nursing Care
Cambridgeshire County Council,10-Jun-20,51301385447,-618.00,ARIA COURT,CARE ESTABLISHMENT,OP - Fenland Locality - Cost of Care,Older People - Fenland - Care,Nursing Care
Cambridgeshire County Council,10-Jun-20,51301387093,-609.00,TRINITY CARESTAFF SOLUTIONS LIMITED,CARE ESTABLISHMENT,OP - Hunts Locality - Cost of Care,Hunts OP Team - Care,Domiciliary Care
Cambridgeshire County Council,04-Jun-20,51301375215,-606.45,CONQUEST CARE HOMES (SOHAM) LTD,CARE ESTABLISHMENT,LD - East Locality - Cost of Care,LD - East Cambs - Care,Residential Care
Cambridgeshire County Council,04-Jun-20,51301375215,-606.45,CONQUEST CARE HOMES (SOHAM) LTD,CARE ESTABLISHMENT,LD - East Locality - Cost of Care,LD - East Cambs - Care,Residential Care
Cambridgeshire County Council,04-Jun-20,51301375215,-606.45,CONQUEST CARE HOMES (SOHAM) LTD,CARE ESTABLISHMENT,LD - East Locality - Cost of Care,LD - East Cambs - Care,Residential Care
Cambridgeshire County Council,04-Jun-20,51301375215,-606.45,CONQUEST CARE HOMES (SOHAM) LTD,CARE ESTABLISHMENT,LD - East Locality - Cost of Care,LD - East Cambs - Care,Residential Care
Cambridgeshire County Council,04-Jun-20,51301375215,-606.45,CONQUEST CARE HOMES (SOHAM) LTD,CARE ESTABLISHMENT,LD - East Locality - Cost of Care,LD - East Cambs - Care,Residential Care
Cambridgeshire County Council,04-Jun-20,51301375215,-606.45,CONQUEST CARE HOMES (SOHAM) LTD,CARE ESTABLISHMENT,LD - East Locality - Cost of Care,LD - East Cambs - Care,Residential Care
Cambridgeshire County Council,04-Jun-20,51301375215,-606.45,CONQUEST CARE HOMES (SOHAM) LTD,CARE ESTABLISHMENT,LD - East Locality - Cost of Care,LD - East Cambs - Care,Residential Care
Cambridgeshire County Council,04-Jun-20,51301375215,-606.45,CONQUEST CARE HOMES (SOHAM) LTD,CARE ESTABLISHMENT,LD - East Locality - Cost of Care,LD - East Cambs - Care,Residential Care
Cambridgeshire County Council,04-Jun-20,51301375215,-606.45,CONQUEST CARE HOMES (SOHAM) LTD,CARE ESTABLISHMENT,LD - East Locality - Cost of Care,LD - East Cambs - Care,Residential Care
Cambridgeshire County Council,04-Jun-20,51301375215,-606.45,CONQUEST CARE HOMES (SOHAM) LTD,CARE ESTABLISHMENT,LD - East Locality - Cost of Care,LD - East Cambs - Care,Residential Care
Cambridgeshire County Council,04-Jun-20,51301375215,-606.45,CONQUEST CARE HOMES (SOHAM) LTD,CARE ESTABLISHMENT,LD - East Locality - Cost of Care,LD - East Cambs - Care,Residential Care
Cambridgeshire County Council,10-Jun-20,51301388295,-605.47,AVERY HOUSE CARE HOME,CARE ESTABLISHMENT,Physical Disablity - Cost of Care,Countywide PD Service - Care,Residential Care
Cambridgeshire County Council,10-Jun-20,51301388295,-605.47,AVERY HOUSE CARE HOME,CARE ESTABLISHMENT,Physical Disablity - Cost of Care,Countywide PD Service - Care,Residential Care
Cambridgeshire County Council,10-Jun-20,51301388295,-605.47,AVERY HOUSE CARE HOME,CARE ESTABLISHMENT,Physical Disablity - Cost of Care,Countywide PD Service - Care,Residential Care
Cambridgeshire County Council,10-Jun-20,51301388295,-605.47,AVERY HOUSE CARE HOME,CARE ESTABLISHMENT,Physical Disablity - Cost of Care,Countywide PD Service - Care,Residential Care
Cambridgeshire County Council,10-Jun-20,51301388295,-605.47,AVERY HOUSE CARE HOME,CARE ESTABLISHMENT,Physical Disablity - Cost of Care,Countywide PD Service - Care,Residential Care
Cambridgeshire County Council,10-Jun-20,51301388295,-605.47,AVERY HOUSE CARE HOME,CARE ESTABLISHMENT,Physical Disablity - Cost of Care,Countywide PD Service - Care,Residential Care
Cambridgeshire County Council,10-Jun-20,51301388295,-605.47,AVERY HOUSE CARE HOME,CARE ESTABLISHMENT,Physical Disablity - Cost of Care,Countywide PD Service - Care,Residential Care
Cambridgeshire County Council,10-Jun-20,51301380069,-600.00,HOME CLOSE LTD,CARE ESTABLISHMENT,OP - East Cambs Locality - Cost of Care,East Cambs - O P Team - Care,Residential Care
Cambridgeshire County Council,10-Jun-20,51301386078,-600.00,THE CAMBRIDGE HOUSING SOCIETY LTD,CARE ESTABLISHMENT,OP - City & South Locality - Cost of Care,Older People - City & South - Care,Residential Care
Cambridgeshire County Council,05-Jun-20,51301380957,-596.00,Florinee Homes Ltd,CARE ESTABLISHMENT,LAC Placements,Placements - supported accommodation,Agency Placements - In County
Cambridgeshire County Council,10-Jun-20,51301386085,-586.66,THE CAMBRIDGE NURSING CENTRE,CARE ESTABLISHMENT,OP - City & South Locality - Cost of Care,Older People - City & South - Care,Nursing Care
Cambridgeshire County Council,10-Jun-20,51301385842,-584.85,FARRINGTON CARE HOMES LTD T/A WOODLANDS RESIDENTIAL CARE HOME,CARE ESTABLISHMENT,OP - Hunts Locality - Cost of Care,Hunts OP Team - Care,Residential Care
Cambridgeshire County Council,10-Jun-20,51301385842,-584.85,FARRINGTON CARE HOMES LTD T/A WOODLANDS RESIDENTIAL CARE HOME,CARE ESTABLISHMENT,OP - Hunts Locality - Cost of Care,Hunts OP Team - Care,Residential Care
Cambridgeshire County Council,10-Jun-20,51301385842,-584.85,FARRINGTON CARE HOMES LTD T/A WOODLANDS RESIDENTIAL CARE HOME,CARE ESTABLISHMENT,OP - Hunts Locality - Cost of Care,Hunts OP Team - Care,Residential Care
Cambridgeshire County Council,10-Jun-20,51301385842,-584.85,FARRINGTON CARE HOMES LTD T/A WOODLANDS RESIDENTIAL CARE HOME,CARE ESTABLISHMENT,OP - Hunts Locality - Cost of Care,Hunts OP Team - Care,Residential Care
Cambridgeshire County Council,10-Jun-20,51301385842,-584.85,FARRINGTON CARE HOMES LTD T/A WOODLANDS RESIDENTIAL CARE HOME,CARE ESTABLISHMENT,OP - Hunts Locality - Cost of Care,Hunts OP Team - Care,Residential Care
Cambridgeshire County Council,10-Jun-20,51301385842,-584.85,FARRINGTON CARE HOMES LTD T/A WOODLANDS RESIDENTIAL CARE HOME,CARE ESTABLISHMENT,OP - Hunts Locality - Cost of Care,Hunts OP Team - Care,Residential Care
Cambridgeshire County Council,10-Jun-20,51301388489,-581.71,AURORA ORCHARD MANOR,CARE ESTABLISHMENT,LD - Young Adults Team,LD - Young Adults - Care,Residential Care
Cambridgeshire County Council,10-Jun-20,51301388541,-578.57,HARDWICK DENE,CARE ESTABLISHMENT,OP - Hunts Locality - Cost of Care,Hunts OP Team - Care,Residential Care
Cambridgeshire County Council,10-Jun-20,51301385727,-575.00,SPRINGFIELD RESIDENTIAL CARE,CARE ESTABLISHMENT,OP - Fenland Locality - Cost of Care,Older People - Fenland - Care,Residential Care
Cambridgeshire County Council,10-Jun-20,51301385727,-575.00,SPRINGFIELD RESIDENTIAL CARE,CARE ESTABLISHMENT,OP - Fenland Locality - Cost of Care,Older People - Fenland - Care,Residential Care
Cambridgeshire County Council,10-Jun-20,51301385727,-575.00,SPRINGFIELD RESIDENTIAL CARE,CARE ESTABLISHMENT,OP - Fenland Locality - Cost of Care,Older People - Fenland - Care,Residential Care
Cambridgeshire County Council,10-Jun-20,51301385727,-575.00,SPRINGFIELD RESIDENTIAL CARE,CARE ESTABLISHMENT,OP - Fenland Locality - Cost of Care,Older People - Fenland - Care,Residential Care
Cambridgeshire County Council,10-Jun-20,51301385727,-575.00,SPRINGFIELD RESIDENTIAL CARE,CARE ESTABLISHMENT,OP - Fenland Locality - Cost of Care,Older People - Fenland - Care,Residential Care
Cambridgeshire County Council,10-Jun-20,51301385727,-575.00,SPRINGFIELD RESIDENTIAL CARE,CARE ESTABLISHMENT,OP - Fenland Locality - Cost of Care,Older People - Fenland - Care,Residential Care
Cambridgeshire County Council,10-Jun-20,51301385727,-575.00,SPRINGFIELD RESIDENTIAL CARE,CARE ESTABLISHMENT,OP - Fenland Locality - Cost of Care,Older People - Fenland - Care,Residential Care
Cambridgeshire County Council,10-Jun-20,51301385727,-575.00,SPRINGFIELD RESIDENTIAL CARE,CARE ESTABLISHMENT,OP - Fenland Locality - Cost of Care,Older People - Fenland - Care,Residential Care
Cambridgeshire County Council,10-Jun-20,51301385727,-575.00,SPRINGFIELD RESIDENTIAL CARE,CARE ESTABLISHMENT,OP - Fenland Locality - Cost of Care,Older People - Fenland - Care,Residential Care
Cambridgeshire County Council,12-Jun-20,51301389428,-572.86,FOUR OAKS HEALTHCARE LIMITED,CARE ESTABLISHMENT,OP - City & South Locality - Cost of Care,Older People - City & South - Care,Homecare
Cambridgeshire County Council,10-Jun-20,51301388354,-555.47,AVERY HOUSE CARE HOME,CARE ESTABLISHMENT,OP - Hunts Locality - Cost of Care,Hunts OP Team - Care,Residential Care
Cambridgeshire County Council,10-Jun-20,51301388354,-555.47,AVERY HOUSE CARE HOME,CARE ESTABLISHMENT,OP - Hunts Locality - Cost of Care,Hunts OP Team - Care,Residential Care
Cambridgeshire County Council,10-Jun-20,51301388354,-555.47,AVERY HOUSE CARE HOME,CARE ESTABLISHMENT,OP - Hunts Locality - Cost of Care,Hunts OP Team - Care,Residential Care
Cambridgeshire County Council,10-Jun-20,51301388354,-555.47,AVERY HOUSE CARE HOME,CARE ESTABLISHMENT,OP - Hunts Locality - Cost of Care,Hunts OP Team - Care,Residential Care
Cambridgeshire County Council,10-Jun-20,51301387572,-555.03,QUALITY HOMECARE,CARE ESTABLISHMENT,Physical Disablity - Cost of Care,Countywide PD Service - Care,Domiciliary Care
Cambridgeshire County Council,10-Jun-20,51301386169,-555.03,MIHOMECARE LTD (THE CARE AGENCY),CARE ESTABLISHMENT,OP - Fenland Locality - Cost of Care,Older People - Fenland - Care,Domiciliary Care
Cambridgeshire County Council,10-Jun-20,51301386169,-555.03,MIHOMECARE LTD (THE CARE AGENCY),CARE ESTABLISHMENT,OP - Fenland Locality - Cost of Care,Older People - Fenland - Care,Domiciliary Care
Cambridgeshire County Council,10-Jun-20,51301386552,-555.00,FITZWILLIAM HEALTHCARE LTD,CARE ESTABLISHMENT,OPMH - City & South,Older People Mental Health City & South,Residential Care
Cambridgeshire County Council,10-Jun-20,51301386552,-555.00,FITZWILLIAM HEALTHCARE LTD,CARE ESTABLISHMENT,OPMH - City & South,Older People Mental Health City & South,Residential Care
Cambridgeshire County Council,10-Jun-20,51301386552,-555.00,FITZWILLIAM HEALTHCARE LTD,CARE ESTABLISHMENT,OPMH - City & South,Older People Mental Health City & South,Residential Care
Cambridgeshire County Council,10-Jun-20,51301386552,-555.00,FITZWILLIAM HEALTHCARE LTD,CARE ESTABLISHMENT,OPMH - City & South,Older People Mental Health City & South,Residential Care
Cambridgeshire County Council,10-Jun-20,51301386552,-555.00,FITZWILLIAM HEALTHCARE LTD,CARE ESTABLISHMENT,OPMH - City & South,Older People Mental Health City & South,Residential Care
Cambridgeshire County Council,10-Jun-20,51301386552,-555.00,FITZWILLIAM HEALTHCARE LTD,CARE ESTABLISHMENT,OPMH - City & South,Older People Mental Health City & South,Residential Care
Cambridgeshire County Council,10-Jun-20,51301385874,-554.20,HC-ONE,CARE ESTABLISHMENT,OP - Hunts Locality - Cost of Care,Hunts OP Team - Care,Nursing Care
Cambridgeshire County Council,10-Jun-20,51301385874,-554.20,HC-ONE,CARE ESTABLISHMENT,OP - Hunts Locality - Cost of Care,Hunts OP Team - Care,Nursing Care
Cambridgeshire County Council,10-Jun-20,51301385874,-554.20,HC-ONE,CARE ESTABLISHMENT,OP - Hunts Locality - Cost of Care,Hunts OP Team - Care,Nursing Care
Cambridgeshire County Council,10-Jun-20,51301385874,-554.20,HC-ONE,CARE ESTABLISHMENT,OP - Hunts Locality - Cost of Care,Hunts OP Team - Care,Nursing Care
Cambridgeshire County Council,10-Jun-20,51301385874,-554.20,HC-ONE,CARE ESTABLISHMENT,OP - Hunts Locality - Cost of Care,Hunts OP Team - Care,Nursing Care
Cambridgeshire County Council,10-Jun-20,51301385925,-554.13,BARCHESTER HEALTHCARE HOMES LTD,CARE ESTABLISHMENT,OP - City & South Locality - Cost of Care,Older People - City & South - Care,Nursing Care
Cambridgeshire County Council,10-Jun-20,51301385925,-554.13,BARCHESTER HEALTHCARE HOMES LTD,CARE ESTABLISHMENT,OP - City & South Locality - Cost of Care,Older People - City & South - Care,Nursing Care
Cambridgeshire County Council,10-Jun-20,51301385925,-554.13,BARCHESTER HEALTHCARE HOMES LTD,CARE ESTABLISHMENT,OP - City & South Locality - Cost of Care,Older People - City & South - Care,Nursing Care
Cambridgeshire County Council,10-Jun-20,51301385925,-554.13,BARCHESTER HEALTHCARE HOMES LTD,CARE ESTABLISHMENT,OP - City & South Locality - Cost of Care,Older People - City & South - Care,Nursing Care
Cambridgeshire County Council,10-Jun-20,51301388366,-550.00,HARDWICK DENE,CARE ESTABLISHMENT,OP - Hunts Locality - Cost of Care,Hunts OP Team - Care,Residential Care
Cambridgeshire County Council,10-Jun-20,51301388366,-550.00,HARDWICK DENE,CARE ESTABLISHMENT,OP - Hunts Locality - Cost of Care,Hunts OP Team - Care,Residential Care
Cambridgeshire County Council,10-Jun-20,51301388366,-550.00,HARDWICK DENE,CARE ESTABLISHMENT,OP - Hunts Locality - Cost of Care,Hunts OP Team - Care,Residential Care
Cambridgeshire County Council,10-Jun-20,51301388366,-550.00,HARDWICK DENE,CARE ESTABLISHMENT,OP - Hunts Locality - Cost of Care,Hunts OP Team - Care,Residential Care
Cambridgeshire County Council,10-Jun-20,51301388366,-550.00,HARDWICK DENE,CARE ESTABLISHMENT,OP - Hunts Locality - Cost of Care,Hunts OP Team - Care,Residential Care
Cambridgeshire County Council,10-Jun-20,51301388366,-550.00,HARDWICK DENE,CARE ESTABLISHMENT,OP - Hunts Locality - Cost of Care,Hunts OP Team - Care,Residential Care
Cambridgeshire County Council,10-Jun-20,51301385988,-550.00,LILY HOUSE,CARE ESTABLISHMENT,OP - East Cambs Locality - Cost of Care,East Cambs - O P Team - Care,Residential Care
Cambridgeshire County Council,10-Jun-20,51301385988,-550.00,LILY HOUSE,CARE ESTABLISHMENT,OP - East Cambs Locality - Cost of Care,East Cambs - O P Team - Care,Residential Care
Cambridgeshire County Council,10-Jun-20,51301385988,-550.00,LILY HOUSE,CARE ESTABLISHMENT,OP - East Cambs Locality - Cost of Care,East Cambs - O P Team - Care,Residential Care
Cambridgeshire County Council,10-Jun-20,51301385988,-550.00,LILY HOUSE,CARE ESTABLISHMENT,OP - East Cambs Locality - Cost of Care,East Cambs - O P Team - Care,Residential Care
Cambridgeshire County Council,10-Jun-20,51301385988,-550.00,LILY HOUSE,CARE ESTABLISHMENT,OP - East Cambs Locality - Cost of Care,East Cambs - O P Team - Care,Residential Care
Cambridgeshire County Council,10-Jun-20,51301385988,-550.00,LILY HOUSE,CARE ESTABLISHMENT,OP - East Cambs Locality - Cost of Care,East Cambs - O P Team - Care,Residential Care
Cambridgeshire County Council,10-Jun-20,51301385988,-550.00,LILY HOUSE,CARE ESTABLISHMENT,OP - East Cambs Locality - Cost of Care,East Cambs - O P Team - Care,Residential Care
Cambridgeshire County Council,10-Jun-20,51301385988,-550.00,LILY HOUSE,CARE ESTABLISHMENT,OP - East Cambs Locality - Cost of Care,East Cambs - O P Team - Care,Residential Care
Cambridgeshire County Council,10-Jun-20,51301385988,-550.00,LILY HOUSE,CARE ESTABLISHMENT,OP - East Cambs Locality - Cost of Care,East Cambs - O P Team - Care,Residential Care
Cambridgeshire County Council,10-Jun-20,51301385988,-550.00,LILY HOUSE,CARE ESTABLISHMENT,OP - East Cambs Locality - Cost of Care,East Cambs - O P Team - Care,Residential Care
Cambridgeshire County Council,10-Jun-20,51301385988,-550.00,LILY HOUSE,CARE ESTABLISHMENT,OP - East Cambs Locality - Cost of Care,East Cambs - O P Team - Care,Residential Care
Cambridgeshire County Council,15-Jun-20,51301390804,-550.00,ROSE COTTAGE RESIDENTIAL HOME,CARE ESTABLISHMENT,OP - Hunts Locality - Cost of Care,Hunts OP Team - Care,Residential Care
Cambridgeshire County Council,15-Jun-20,51301390802,-550.00,ROSE COTTAGE RESIDENTIAL HOME,CARE ESTABLISHMENT,OP - Hunts Locality - Cost of Care,Hunts OP Team - Care,Residential Care
Cambridgeshire County Council,15-Jun-20,51301390803,-550.00,ROSE COTTAGE RESIDENTIAL HOME,CARE ESTABLISHMENT,OP - Hunts Locality - Cost of Care,Hunts OP Team - Care,Residential Care
Cambridgeshire County Council,15-Jun-20,51301390798,-550.00,ROSE COTTAGE RESIDENTIAL HOME,CARE ESTABLISHMENT,OP - Hunts Locality - Cost of Care,Hunts OP Team - Care,Residential Care
Cambridgeshire County Council,15-Jun-20,51301390799,-550.00,ROSE COTTAGE RESIDENTIAL HOME,CARE ESTABLISHMENT,OP - Hunts Locality - Cost of Care,Hunts OP Team - Care,Residential Care
Cambridgeshire County Council,15-Jun-20,51301390800,-550.00,ROSE COTTAGE RESIDENTIAL HOME,CARE ESTABLISHMENT,OP - Hunts Locality - Cost of Care,Hunts OP Team - Care,Residential Care
Cambridgeshire County Council,15-Jun-20,51301390801,-550.00,ROSE COTTAGE RESIDENTIAL HOME,CARE ESTABLISHMENT,OP - Hunts Locality - Cost of Care,Hunts OP Team - Care,Residential Care
Cambridgeshire County Council,25-Jun-20,51301393919,-546.09,Redacted Personal Data ,SERVICE USER,LD - Fenland Locality - Cost of Care,LD - Fenland  - Care,Direct Payments
Cambridgeshire County Council,04-Jun-20,51301379774,-545.71,THE EDMUND TRUST,CARE ESTABLISHMENT,LD - South Locality - Cost of Care,LD - South Cambs - Care,Supported Living
Cambridgeshire County Council,10-Jun-20,51301388155,-545.03,Careuk247 Home Care Ltd,COMPANY,OP - Hunts Locality - Cost of Care,Hunts OP Team - Care,Domiciliary Care
Cambridgeshire County Council,10-Jun-20,51301388155,-545.03,Careuk247 Home Care Ltd,COMPANY,OP - Hunts Locality - Cost of Care,Hunts OP Team - Care,Domiciliary Care
Cambridgeshire County Council,10-Jun-20,51301388155,-545.03,Careuk247 Home Care Ltd,COMPANY,OP - Hunts Locality - Cost of Care,Hunts OP Team - Care,Domiciliary Care
Cambridgeshire County Council,10-Jun-20,51301388155,-545.03,Careuk247 Home Care Ltd,COMPANY,OP - Hunts Locality - Cost of Care,Hunts OP Team - Care,Domiciliary Care
Cambridgeshire County Council,10-Jun-20,51301388155,-545.03,Careuk247 Home Care Ltd,COMPANY,OP - Hunts Locality - Cost of Care,Hunts OP Team - Care,Domiciliary Care
Cambridgeshire County Council,10-Jun-20,51301388155,-545.03,Careuk247 Home Care Ltd,COMPANY,OP - Hunts Locality - Cost of Care,Hunts OP Team - Care,Domiciliary Care
Cambridgeshire County Council,10-Jun-20,51301388155,-545.03,Careuk247 Home Care Ltd,COMPANY,OP - Hunts Locality - Cost of Care,Hunts OP Team - Care,Domiciliary Care
Cambridgeshire County Council,12-Jun-20,51301388740,-540.25,FENLAND DISTRICT COUNCIL,OTHER PUBLIC BODIES,Corporate Offices,Murrow Children's Centre,Business rates
Cambridgeshire County Council,10-Jun-20,51301388155,-537.37,Careuk247 Home Care Ltd,COMPANY,OP - Hunts Locality - Cost of Care,Hunts OP Team - Care,Domiciliary Care
Cambridgeshire County Council,10-Jun-20,51301388609,-537.21,Redacted Personal Data ,INDIVIDUAL,Children's Disability Direct Payments,CSC Direct Payments,Direct Payments
Cambridgeshire County Council,10-Jun-20,51301385457,-537.00,THE RED HOUSE RESIDENTIAL & NURSING HOME,CARE ESTABLISHMENT,OP - Hunts Locality - Cost of Care,Hunts OP Team - Care,Residential Care
Cambridgeshire County Council,10-Jun-20,51301385162,-535.71,GRACEFIELD NURSING AND RESIDENTIAL HOME,CARE ESTABLISHMENT,OP - City & South Locality - Cost of Care,Older People - City & South - Care,Residential Care
Cambridgeshire County Council,15-Jun-20,51301390797,-535.71,ROSE COTTAGE RESIDENTIAL HOME,CARE ESTABLISHMENT,OP - Hunts Locality - Cost of Care,Hunts OP Team - Care,Residential Care
Cambridgeshire County Council,10-Jun-20,51301385182,-535.32,Arlington Manor Care Home,CARE ESTABLISHMENT,OP - City & South Locality - Cost of Care,Older People - City & South - Care,Nursing Care
Cambridgeshire County Council,10-Jun-20,51301388355,-534.86,MAYCROFT CARE HOME LTD,CARE ESTABLISHMENT,OP - City & South Locality - Cost of Care,Older People - City & South - Care,Residential Care
Cambridgeshire County Council,24-Jun-20,51301393605,-533.49,AURORA ORCHARD MANOR,CARE ESTABLISHMENT,LD - South Locality - Cost of Care,LD - South Cambs - Care,Day Care
Cambridgeshire County Council,24-Jun-20,51301393605,-533.49,AURORA ORCHARD MANOR,CARE ESTABLISHMENT,LD - South Locality - Cost of Care,LD - South Cambs - Care,Day Care
Cambridgeshire County Council,24-Jun-20,51301393605,-533.49,AURORA ORCHARD MANOR,CARE ESTABLISHMENT,LD - South Locality - Cost of Care,LD - South Cambs - Care,Day Care
Cambridgeshire County Council,24-Jun-20,51301393605,-533.49,AURORA ORCHARD MANOR,CARE ESTABLISHMENT,LD - South Locality - Cost of Care,LD - South Cambs - Care,Day Care
Cambridgeshire County Council,24-Jun-20,51301393605,-533.49,AURORA ORCHARD MANOR,CARE ESTABLISHMENT,LD - South Locality - Cost of Care,LD - South Cambs - Care,Day Care
Cambridgeshire County Council,24-Jun-20,51301393605,-533.49,AURORA ORCHARD MANOR,CARE ESTABLISHMENT,LD - South Locality - Cost of Care,LD - South Cambs - Care,Day Care
Cambridgeshire County Council,24-Jun-20,51301393605,-533.49,AURORA ORCHARD MANOR,CARE ESTABLISHMENT,LD - South Locality - Cost of Care,LD - South Cambs - Care,Day Care
Cambridgeshire County Council,24-Jun-20,51301393605,-533.49,AURORA ORCHARD MANOR,CARE ESTABLISHMENT,LD - South Locality - Cost of Care,LD - South Cambs - Care,Day Care
Cambridgeshire County Council,24-Jun-20,51301393605,-533.49,AURORA ORCHARD MANOR,CARE ESTABLISHMENT,LD - South Locality - Cost of Care,LD - South Cambs - Care,Day Care
Cambridgeshire County Council,24-Jun-20,51301393605,-533.49,AURORA ORCHARD MANOR,CARE ESTABLISHMENT,LD - South Locality - Cost of Care,LD - South Cambs - Care,Day Care
Cambridgeshire County Council,24-Jun-20,51301393605,-533.49,AURORA ORCHARD MANOR,CARE ESTABLISHMENT,LD - South Locality - Cost of Care,LD - South Cambs - Care,Day Care
Cambridgeshire County Council,24-Jun-20,51301393605,-533.49,AURORA ORCHARD MANOR,CARE ESTABLISHMENT,LD - South Locality - Cost of Care,LD - South Cambs - Care,Day Care
Cambridgeshire County Council,24-Jun-20,51301393605,-533.49,AURORA ORCHARD MANOR,CARE ESTABLISHMENT,LD - South Locality - Cost of Care,LD - South Cambs - Care,Day Care
Cambridgeshire County Council,24-Jun-20,51301393605,-533.49,AURORA ORCHARD MANOR,CARE ESTABLISHMENT,LD - South Locality - Cost of Care,LD - South Cambs - Care,Day Care
Cambridgeshire County Council,24-Jun-20,51301393605,-533.49,AURORA ORCHARD MANOR,CARE ESTABLISHMENT,LD - South Locality - Cost of Care,LD - South Cambs - Care,Day Care
Cambridgeshire County Council,24-Jun-20,51301393605,-533.49,AURORA ORCHARD MANOR,CARE ESTABLISHMENT,LD - South Locality - Cost of Care,LD - South Cambs - Care,Day Care
Cambridgeshire County Council,24-Jun-20,51301393605,-533.49,AURORA ORCHARD MANOR,CARE ESTABLISHMENT,LD - South Locality - Cost of Care,LD - South Cambs - Care,Day Care
Cambridgeshire County Council,24-Jun-20,51301393605,-533.49,AURORA ORCHARD MANOR,CARE ESTABLISHMENT,LD - South Locality - Cost of Care,LD - South Cambs - Care,Day Care
Cambridgeshire County Council,24-Jun-20,51301393605,-533.49,AURORA ORCHARD MANOR,CARE ESTABLISHMENT,LD - South Locality - Cost of Care,LD - South Cambs - Care,Day Care
Cambridgeshire County Council,24-Jun-20,51301393605,-533.49,AURORA ORCHARD MANOR,CARE ESTABLISHMENT,LD - South Locality - Cost of Care,LD - South Cambs - Care,Day Care
Cambridgeshire County Council,24-Jun-20,51301393605,-533.49,AURORA ORCHARD MANOR,CARE ESTABLISHMENT,LD - South Locality - Cost of Care,LD - South Cambs - Care,Day Care
Cambridgeshire County Council,24-Jun-20,51301393605,-533.49,AURORA ORCHARD MANOR,CARE ESTABLISHMENT,LD - South Locality - Cost of Care,LD - South Cambs - Care,Day Care
Cambridgeshire County Council,24-Jun-20,51301393605,-533.49,AURORA ORCHARD MANOR,CARE ESTABLISHMENT,LD - South Locality - Cost of Care,LD - South Cambs - Care,Day Care
Cambridgeshire County Council,24-Jun-20,51301393605,-533.49,AURORA ORCHARD MANOR,CARE ESTABLISHMENT,LD - South Locality - Cost of Care,LD - South Cambs - Care,Day Care
Cambridgeshire County Council,24-Jun-20,51301393605,-533.49,AURORA ORCHARD MANOR,CARE ESTABLISHMENT,LD - South Locality - Cost of Care,LD - South Cambs - Care,Day Care
Cambridgeshire County Council,24-Jun-20,51301393605,-533.49,AURORA ORCHARD MANOR,CARE ESTABLISHMENT,LD - South Locality - Cost of Care,LD - South Cambs - Care,Day Care
Cambridgeshire County Council,24-Jun-20,51301393605,-533.49,AURORA ORCHARD MANOR,CARE ESTABLISHMENT,LD - South Locality - Cost of Care,LD - South Cambs - Care,Day Care
Cambridgeshire County Council,24-Jun-20,51301393605,-533.49,AURORA ORCHARD MANOR,CARE ESTABLISHMENT,LD - South Locality - Cost of Care,LD - South Cambs - Care,Day Care
Cambridgeshire County Council,24-Jun-20,51301393605,-533.49,AURORA ORCHARD MANOR,CARE ESTABLISHMENT,LD - South Locality - Cost of Care,LD - South Cambs - Care,Day Care
Cambridgeshire County Council,24-Jun-20,51301393605,-533.49,AURORA ORCHARD MANOR,CARE ESTABLISHMENT,LD - South Locality - Cost of Care,LD - South Cambs - Care,Day Care
Cambridgeshire County Council,24-Jun-20,51301393605,-533.49,AURORA ORCHARD MANOR,CARE ESTABLISHMENT,LD - South Locality - Cost of Care,LD - South Cambs - Care,Day Care
Cambridgeshire County Council,24-Jun-20,51301393605,-533.49,AURORA ORCHARD MANOR,CARE ESTABLISHMENT,LD - South Locality - Cost of Care,LD - South Cambs - Care,Day Care
Cambridgeshire County Council,24-Jun-20,51301393605,-533.49,AURORA ORCHARD MANOR,CARE ESTABLISHMENT,LD - South Locality - Cost of Care,LD - South Cambs - Care,Day Care
Cambridgeshire County Council,24-Jun-20,51301393605,-533.49,AURORA ORCHARD MANOR,CARE ESTABLISHMENT,LD - South Locality - Cost of Care,LD - South Cambs - Care,Day Care
Cambridgeshire County Council,24-Jun-20,51301393605,-533.49,AURORA ORCHARD MANOR,CARE ESTABLISHMENT,LD - South Locality - Cost of Care,LD - South Cambs - Care,Day Care
Cambridgeshire County Council,24-Jun-20,51301393605,-533.49,AURORA ORCHARD MANOR,CARE ESTABLISHMENT,LD - South Locality - Cost of Care,LD - South Cambs - Care,Day Care
Cambridgeshire County Council,24-Jun-20,51301393605,-533.49,AURORA ORCHARD MANOR,CARE ESTABLISHMENT,LD - South Locality - Cost of Care,LD - South Cambs - Care,Day Care
Cambridgeshire County Council,24-Jun-20,51301393605,-533.49,AURORA ORCHARD MANOR,CARE ESTABLISHMENT,LD - South Locality - Cost of Care,LD - South Cambs - Care,Day Care
Cambridgeshire County Council,24-Jun-20,51301393605,-533.49,AURORA ORCHARD MANOR,CARE ESTABLISHMENT,LD - South Locality - Cost of Care,LD - South Cambs - Care,Day Care
Cambridgeshire County Council,10-Jun-20,51301385344,-531.43,LITTLEPORT GRANGE,CARE ESTABLISHMENT,OP - East Cambs Locality - Cost of Care,East Cambs - O P Team - Care,Residential Care
Cambridgeshire County Council,10-Jun-20,51301386743,-528.26,BETTER HEALTHCARE SERVICES LTD,CARE ESTABLISHMENT,OP - Fenland Locality - Cost of Care,Older People - Fenland - Care,Domiciliary Care
Cambridgeshire County Council,10-Jun-20,51301386743,-528.26,BETTER HEALTHCARE SERVICES LTD,CARE ESTABLISHMENT,OP - Fenland Locality - Cost of Care,Older People - Fenland - Care,Domiciliary Care
Cambridgeshire County Council,10-Jun-20,51301386743,-528.26,BETTER HEALTHCARE SERVICES LTD,CARE ESTABLISHMENT,OP - Fenland Locality - Cost of Care,Older People - Fenland - Care,Domiciliary Care
Cambridgeshire County Council,10-Jun-20,51301388155,-527.15,Careuk247 Home Care Ltd,COMPANY,OP - Hunts Locality - Cost of Care,Hunts OP Team - Care,Domiciliary Care
Cambridgeshire County Council,10-Jun-20,51301388155,-527.15,Careuk247 Home Care Ltd,COMPANY,OP - Hunts Locality - Cost of Care,Hunts OP Team - Care,Domiciliary Care
Cambridgeshire County Council,10-Jun-20,51301388155,-527.15,Careuk247 Home Care Ltd,COMPANY,OP - Hunts Locality - Cost of Care,Hunts OP Team - Care,Domiciliary Care
Cambridgeshire County Council,10-Jun-20,51301388155,-527.15,Careuk247 Home Care Ltd,COMPANY,OP - Hunts Locality - Cost of Care,Hunts OP Team - Care,Domiciliary Care
Cambridgeshire County Council,10-Jun-20,51301388155,-527.15,Careuk247 Home Care Ltd,COMPANY,OP - Hunts Locality - Cost of Care,Hunts OP Team - Care,Domiciliary Care
Cambridgeshire County Council,10-Jun-20,51301388155,-527.15,Careuk247 Home Care Ltd,COMPANY,OP - Hunts Locality - Cost of Care,Hunts OP Team - Care,Domiciliary Care
Cambridgeshire County Council,10-Jun-20,51301388155,-527.15,Careuk247 Home Care Ltd,COMPANY,OP - Hunts Locality - Cost of Care,Hunts OP Team - Care,Domiciliary Care
Cambridgeshire County Council,10-Jun-20,51301388155,-527.15,Careuk247 Home Care Ltd,COMPANY,OP - Hunts Locality - Cost of Care,Hunts OP Team - Care,Domiciliary Care
Cambridgeshire County Council,10-Jun-20,51301388155,-527.15,Careuk247 Home Care Ltd,COMPANY,OP - Hunts Locality - Cost of Care,Hunts OP Team - Care,Domiciliary Care
Cambridgeshire County Council,10-Jun-20,51301388155,-527.15,Careuk247 Home Care Ltd,COMPANY,OP - Hunts Locality - Cost of Care,Hunts OP Team - Care,Domiciliary Care
Cambridgeshire County Council,10-Jun-20,51301388155,-527.15,Careuk247 Home Care Ltd,COMPANY,OP - Hunts Locality - Cost of Care,Hunts OP Team - Care,Domiciliary Care
Cambridgeshire County Council,10-Jun-20,51301388155,-527.15,Careuk247 Home Care Ltd,COMPANY,OP - Hunts Locality - Cost of Care,Hunts OP Team - Care,Domiciliary Care
Cambridgeshire County Council,10-Jun-20,51301388155,-527.15,Careuk247 Home Care Ltd,COMPANY,OP - Hunts Locality - Cost of Care,Hunts OP Team - Care,Domiciliary Care
Cambridgeshire County Council,10-Jun-20,51301388155,-527.15,Careuk247 Home Care Ltd,COMPANY,OP - Hunts Locality - Cost of Care,Hunts OP Team - Care,Domiciliary Care
Cambridgeshire County Council,10-Jun-20,51301388155,-527.15,Careuk247 Home Care Ltd,COMPANY,OP - Hunts Locality - Cost of Care,Hunts OP Team - Care,Domiciliary Care
Cambridgeshire County Council,10-Jun-20,51301386058,-524.60,ABBEY HEALTHCARE (HUNTINGDON) LTD,CARE ESTABLISHMENT,OP - Hunts Locality - Cost of Care,Hunts OP Team - Care,Nursing Care
Cambridgeshire County Council,10-Jun-20,51301385582,-520.00,THE CHESTNUTS RESIDENTIAL HOME,CARE ESTABLISHMENT,OP - Fenland Locality - Cost of Care,Older People - Fenland - Care,Residential Care
Cambridgeshire County Council,10-Jun-20,51301385582,-520.00,THE CHESTNUTS RESIDENTIAL HOME,CARE ESTABLISHMENT,OP - Fenland Locality - Cost of Care,Older People - Fenland - Care,Residential Care
Cambridgeshire County Council,15-Jun-20,51301356619,-518.60,HILTON PARK CARE CENTRE,CARE ESTABLISHMENT,LD - South Locality - Cost of Care,LD - South Cambs - Care,Short Term Other
Cambridgeshire County Council,10-Jun-20,51301385927,-506.77,BARCHESTER HEALTHCARE HOMES LTD,CARE ESTABLISHMENT,OPMH - City & South,Older People Mental Health City & South,Nursing Care
Cambridgeshire County Council,10-Jun-20,51301385927,-506.77,BARCHESTER HEALTHCARE HOMES LTD,CARE ESTABLISHMENT,OPMH - City & South,Older People Mental Health City & South,Nursing Care
Cambridgeshire County Council,10-Jun-20,51301385927,-506.77,BARCHESTER HEALTHCARE HOMES LTD,CARE ESTABLISHMENT,OPMH - City & South,Older People Mental Health City & South,Nursing Care
Cambridgeshire County Council,10-Jun-20,51301385927,-506.77,BARCHESTER HEALTHCARE HOMES LTD,CARE ESTABLISHMENT,OPMH - City & South,Older People Mental Health City & South,Nursing Care
Cambridgeshire County Council,10-Jun-20,51301385927,-506.77,BARCHESTER HEALTHCARE HOMES LTD,CARE ESTABLISHMENT,OPMH - City & South,Older People Mental Health City & South,Nursing Care
Cambridgeshire County Council,10-Jun-20,51301385927,-506.77,BARCHESTER HEALTHCARE HOMES LTD,CARE ESTABLISHMENT,OPMH - City & South,Older People Mental Health City & South,Nursing Care
Cambridgeshire County Council,10-Jun-20,51301385927,-506.77,BARCHESTER HEALTHCARE HOMES LTD,CARE ESTABLISHMENT,OPMH - City & South,Older People Mental Health City & South,Nursing Care
Cambridgeshire County Council,04-Jun-20,51301375215,-506.64,CONQUEST CARE HOMES (SOHAM) LTD,CARE ESTABLISHMENT,LD - East Locality - Cost of Care,LD - East Cambs - Care,Residential Care
Cambridgeshire County Council,30-Jun-20,51301394659,500.17,SPS Training,EDUCATION,Cambridgeshire Skills - March CC,Cambridgeshire Skills - March Community Centre - Learning,Grants
Cambridgeshire County Council,08-Jun-20,51301381937,500.59,Redacted Personal Data ,PARENT/GUARDIAN,Physical Disablity - Cost of Care,Countywide PD Service - Care,Direct Payments
Cambridgeshire County Council,08-Jun-20,51301381937,500.59,Redacted Personal Data ,PARENT/GUARDIAN,Physical Disablity - Cost of Care,Countywide PD Service - Care,Direct Payments
Cambridgeshire County Council,08-Jun-20,51301381937,500.59,Redacted Personal Data ,PARENT/GUARDIAN,Physical Disablity - Cost of Care,Countywide PD Service - Care,Direct Payments
Cambridgeshire County Council,08-Jun-20,51301381937,500.59,Redacted Personal Data ,PARENT/GUARDIAN,Physical Disablity - Cost of Care,Countywide PD Service - Care,Direct Payments
Cambridgeshire County Council,22-Jun-20,51301391837,500.64,CAMBRIDGESHIRE HOMECARE (J&M CARE LTD),CARE ESTABLISHMENT,OP - Hunts Locality - Cost of Care,Hunts OP Team - Care,Domiciliary Care
Cambridgeshire County Council,22-Jun-20,51301391837,500.64,CAMBRIDGESHIRE HOMECARE (J&M CARE LTD),CARE ESTABLISHMENT,OP - Hunts Locality - Cost of Care,Hunts OP Team - Care,Domiciliary Care
Cambridgeshire County Council,10-Jun-20,51301388451,500.83,CARETECH COMMUNITY SERVICES,CARE ESTABLISHMENT,LD - South Locality - Cost of Care,LD - South Cambs - Care,Residential Care
Cambridgeshire County Council,10-Jun-20,51301388451,500.83,CARETECH COMMUNITY SERVICES,CARE ESTABLISHMENT,LD - South Locality - Cost of Care,LD - South Cambs - Care,Residential Care
Cambridgeshire County Council,10-Jun-20,51301388451,500.83,CARETECH COMMUNITY SERVICES,CARE ESTABLISHMENT,LD - South Locality - Cost of Care,LD - South Cambs - Care,Residential Care
Cambridgeshire County Council,10-Jun-20,51301388451,500.83,CARETECH COMMUNITY SERVICES,CARE ESTABLISHMENT,LD - South Locality - Cost of Care,LD - South Cambs - Care,Residential Care
Cambridgeshire County Council,10-Jun-20,51301385836,500.94,THE CAMBRIDGE NURSING CENTRE,CARE ESTABLISHMENT,OPMH - City & South,Older People Mental Health E Cambs,Nursing Care
Cambridgeshire County Council,10-Jun-20,51301385836,500.94,THE CAMBRIDGE NURSING CENTRE,CARE ESTABLISHMENT,OPMH - City & South,Older People Mental Health E Cambs,Nursing Care
Cambridgeshire County Council,10-Jun-20,51301385836,500.94,THE CAMBRIDGE NURSING CENTRE,CARE ESTABLISHMENT,OPMH - City & South,Older People Mental Health E Cambs,Nursing Care
Cambridgeshire County Council,10-Jun-20,51301385836,500.94,THE CAMBRIDGE NURSING CENTRE,CARE ESTABLISHMENT,OPMH - City & South,Older People Mental Health E Cambs,Nursing Care
Cambridgeshire County Council,03-Jun-20,51301379159,500.95,Redacted Personal Data ,INDIVIDUAL,LAC Transport,LAC Transport - Home to School,Social Care Transport
Cambridgeshire County Council,09-Jun-20,51301384688,501.12,LGSS LAW LTD,TRADE SUPPLIER,Legal & Governance Services,Legal - Corporate & Democratic,External Legal Fees
Cambridgeshire County Council,10-Jun-20,51301385068,501.14,GOLD CARE HOMES,CARE ESTABLISHMENT,AMH - Hunts & Fens,E Cambs & Fenland Mental Health Team,Residential Care
Cambridgeshire County Council,10-Jun-20,51301385068,501.14,GOLD CARE HOMES,CARE ESTABLISHMENT,AMH - Hunts & Fens,E Cambs & Fenland Mental Health Team,Residential Care
Cambridgeshire County Council,10-Jun-20,51301385068,501.14,GOLD CARE HOMES,CARE ESTABLISHMENT,AMH - Hunts & Fens,E Cambs & Fenland Mental Health Team,Residential Care
Cambridgeshire County Council,10-Jun-20,51301385068,501.14,GOLD CARE HOMES,CARE ESTABLISHMENT,AMH - Hunts & Fens,E Cambs & Fenland Mental Health Team,Residential Care
Cambridgeshire County Council,10-Jun-20,51301381306,501.60,BDP SOCIAL CARE LTD,TRADE SUPPLIER,South Child Looked After Team 2,South Child Looked After Team 2,Professional Fees and Hired Services
Cambridgeshire County Council,04-Jun-20,51301379942,501.71,THE HELPING HANDS GROUP,CARE ESTABLISHMENT,LD - Young Adults Team,LD - Young Adults - Special Needs,Supported Living
Cambridgeshire County Council,04-Jun-20,51301379942,501.71,THE HELPING HANDS GROUP,CARE ESTABLISHMENT,LD - Young Adults Team,LD - Young Adults - Special Needs,Supported Living
Cambridgeshire County Council,04-Jun-20,51301379942,501.71,THE HELPING HANDS GROUP,CARE ESTABLISHMENT,LD - Young Adults Team,LD - Young Adults - Special Needs,Supported Living
Cambridgeshire County Council,04-Jun-20,51301379942,501.71,THE HELPING HANDS GROUP,CARE ESTABLISHMENT,LD - Young Adults Team,LD - Young Adults - Special Needs,Supported Living
Cambridgeshire County Council,10-Jun-20,51301385291,503.00,GLENNFIELD CARE CENTRE (OP),CARE ESTABLISHMENT,OP - Fenland Locality - Cost of Care,Older People - Fenland - Care,Residential Care
Cambridgeshire County Council,10-Jun-20,51301385291,503.00,GLENNFIELD CARE CENTRE (OP),CARE ESTABLISHMENT,OP - Fenland Locality - Cost of Care,Older People - Fenland - Care,Residential Care
Cambridgeshire County Council,10-Jun-20,51301385291,503.00,GLENNFIELD CARE CENTRE (OP),CARE ESTABLISHMENT,OP - Fenland Locality - Cost of Care,Older People - Fenland - Care,Residential Care
Cambridgeshire County Council,10-Jun-20,51301385291,503.00,GLENNFIELD CARE CENTRE (OP),CARE ESTABLISHMENT,OP - Fenland Locality - Cost of Care,Older People - Fenland - Care,Residential Care
Cambridgeshire County Council,10-Jun-20,51301385526,503.15,FORD HOUSE CARE HOME,CARE ESTABLISHMENT,OP - Hunts Locality - Cost of Care,Hunts OP Team - Care,Nursing Care
Cambridgeshire County Council,10-Jun-20,51301385526,503.15,FORD HOUSE CARE HOME,CARE ESTABLISHMENT,OP - Hunts Locality - Cost of Care,Hunts OP Team - Care,Nursing Care
Cambridgeshire County Council,10-Jun-20,51301385526,503.15,FORD HOUSE CARE HOME,CARE ESTABLISHMENT,OP - Hunts Locality - Cost of Care,Hunts OP Team - Care,Nursing Care
Cambridgeshire County Council,10-Jun-20,51301385526,503.15,FORD HOUSE CARE HOME,CARE ESTABLISHMENT,OP - Hunts Locality - Cost of Care,Hunts OP Team - Care,Nursing Care
Cambridgeshire County Council,08-Jun-20,51301382034,503.87,Redacted Personal Data ,SERVICE USER,LD - Young Adults Team,LD - Young Adults - Care,Direct Payments
Cambridgeshire County Council,08-Jun-20,51301382034,503.87,Redacted Personal Data ,SERVICE USER,LD - Young Adults Team,LD - Young Adults - Care,Direct Payments
Cambridgeshire County Council,08-Jun-20,51301382034,503.87,Redacted Personal Data ,SERVICE USER,LD - Young Adults Team,LD - Young Adults - Care,Direct Payments
Cambridgeshire County Council,08-Jun-20,51301382034,503.87,Redacted Personal Data ,SERVICE USER,LD - Young Adults Team,LD - Young Adults - Care,Direct Payments
Cambridgeshire County Council,01-Jun-20,51301378168,503.88,Redacted Personal Data ,FOSTER PARENT,Fostering,FCP allowances,Adoption Allowances
Cambridgeshire County Council,01-Jun-20,51301378170,503.88,Redacted Personal Data ,FOSTER PARENT,Fostering,FCP allowances,Adoption Allowances
Cambridgeshire County Council,09-Jun-20,51301384259,504.00,IAN MAY T/A SILVER SERVICE TAXI,TRADE SUPPLIER,LD - South Locality - Cost of Care,LD - South Cambs - Care,Service User Transport
Cambridgeshire County Council,17-Jun-20,51301391163,504.00,IMPERIAL COLLEGE PROJECTS LIMITED,TRADE SUPPLIER,Coroners,Coroners General,Testing
Cambridgeshire County Council,19-Jun-20,51301391702,504.00,DATA FACILITIES (YORKSHIRE) LTD,TRADE SUPPLIER,County Farms,County Farms,County Farms Maintenance
Cambridgeshire County Council,23-Jun-20,51301391222,504.00,ENTERPRISE FLEX-E-RENT,TRADE SUPPLIER,Corporate Offices,Pool Cars,Leased Vehicle Costs
Cambridgeshire County Council,10-Jun-20,51301385156,504.78,South Street Care Home,CARE ESTABLISHMENT,AMH - Hunts & Fens,Hunts Mental Health Team,Residential Care
Cambridgeshire County Council,10-Jun-20,51301385156,504.78,South Street Care Home,CARE ESTABLISHMENT,AMH - Hunts & Fens,Hunts Mental Health Team,Residential Care
Cambridgeshire County Council,10-Jun-20,51301385148,504.78,South Street Care Home,CARE ESTABLISHMENT,AMH - Hunts & Fens,Hunts Mental Health Team,Residential Care
Cambridgeshire County Council,10-Jun-20,51301385156,504.78,South Street Care Home,CARE ESTABLISHMENT,AMH - Hunts & Fens,Hunts Mental Health Team,Residential Care
Cambridgeshire County Council,10-Jun-20,51301385148,504.78,South Street Care Home,CARE ESTABLISHMENT,AMH - Hunts & Fens,Hunts Mental Health Team,Residential Care
Cambridgeshire County Council,10-Jun-20,51301385148,504.78,South Street Care Home,CARE ESTABLISHMENT,AMH - Hunts & Fens,Hunts Mental Health Team,Residential Care
Cambridgeshire County Council,10-Jun-20,51301385148,504.78,South Street Care Home,CARE ESTABLISHMENT,AMH - Hunts & Fens,Hunts Mental Health Team,Residential Care
Cambridgeshire County Council,10-Jun-20,51301385156,504.78,South Street Care Home,CARE ESTABLISHMENT,AMH - Hunts & Fens,Hunts Mental Health Team,Residential Care
Cambridgeshire County Council,10-Jun-20,51301386523,504.79,KLAIR HOUSE,CARE ESTABLISHMENT,LD - East Locality - Cost of Care,LD - East Cambs - Care,Residential Care
Cambridgeshire County Council,10-Jun-20,51301386523,504.79,KLAIR HOUSE,CARE ESTABLISHMENT,LD - East Locality - Cost of Care,LD - East Cambs - Care,Residential Care
Cambridgeshire County Council,10-Jun-20,51301386523,504.79,KLAIR HOUSE,CARE ESTABLISHMENT,LD - East Locality - Cost of Care,LD - East Cambs - Care,Residential Care
Cambridgeshire County Council,10-Jun-20,51301386523,504.79,KLAIR HOUSE,CARE ESTABLISHMENT,LD - East Locality - Cost of Care,LD - East Cambs - Care,Residential Care
Cambridgeshire County Council,08-Jun-20,51301381570,504.81,Redacted Personal Data ,PARENT/GUARDIAN,LD - Fenland Locality - Cost of Care,LD - Fenland  - Care,Direct Payments
Cambridgeshire County Council,08-Jun-20,51301381570,504.81,Redacted Personal Data ,PARENT/GUARDIAN,LD - Fenland Locality - Cost of Care,LD - Fenland  - Care,Direct Payments
Cambridgeshire County Council,08-Jun-20,51301381570,504.81,Redacted Personal Data ,PARENT/GUARDIAN,LD - Fenland Locality - Cost of Care,LD - Fenland  - Care,Direct Payments
Cambridgeshire County Council,08-Jun-20,51301381570,504.81,Redacted Personal Data ,PARENT/GUARDIAN,LD - Fenland Locality - Cost of Care,LD - Fenland  - Care,Direct Payments
Cambridgeshire County Council,26-Jun-20,51301394147,504.97,BOTTISHAM VILLAGE COLLEGE,EDUCATION,Cambridgeshire Skills - Ely Library,Cambridgeshire Skills - Ely - Learning,Grants
Cambridgeshire County Council,10-Jun-20,51301385788,505.32,WINSTON HOUSE(2CARE),CARE ESTABLISHMENT,AMH - City South,Cambridge South Mental Health,Residential Care
Cambridgeshire County Council,10-Jun-20,51301385788,505.32,WINSTON HOUSE(2CARE),CARE ESTABLISHMENT,AMH - City South,Cambridge South Mental Health,Residential Care
Cambridgeshire County Council,10-Jun-20,51301385788,505.32,WINSTON HOUSE(2CARE),CARE ESTABLISHMENT,AMH - City South,Cambridge South Mental Health,Residential Care
Cambridgeshire County Council,10-Jun-20,51301385788,505.32,WINSTON HOUSE(2CARE),CARE ESTABLISHMENT,AMH - City South,Cambridge South Mental Health,Residential Care
Cambridgeshire County Council,03-Jun-20,51301379153,505.35,Redacted Personal Data ,INDIVIDUAL,Hunts Children's Team 1,Hunts Children's Team 1,Social Care Transport
Cambridgeshire County Council,10-Jun-20,51301386222,505.58,MK WORLDWIDE LTD (T/A LEAD CARE),CARE ESTABLISHMENT,OP - City & South Locality - Cost of Care,Older People - City & South - Care,Domiciliary Care
Cambridgeshire County Council,10-Jun-20,51301386222,505.58,MK WORLDWIDE LTD (T/A LEAD CARE),CARE ESTABLISHMENT,OP - City & South Locality - Cost of Care,Older People - City & South - Care,Domiciliary Care
Cambridgeshire County Council,10-Jun-20,51301386222,505.58,MK WORLDWIDE LTD (T/A LEAD CARE),CARE ESTABLISHMENT,OP - City & South Locality - Cost of Care,Older People - City & South - Care,Domiciliary Care
Cambridgeshire County Council,10-Jun-20,51301386222,505.58,MK WORLDWIDE LTD (T/A LEAD CARE),CARE ESTABLISHMENT,OP - City & South Locality - Cost of Care,Older People - City & South - Care,Domiciliary Care
Cambridgeshire County Council,10-Jun-20,51301386120,505.58,MK WORLDWIDE LTD (T/A LEAD CARE),CARE ESTABLISHMENT,Physical Disablity - Cost of Care,Countywide PD Service - Care,Domiciliary Care
Cambridgeshire County Council,10-Jun-20,51301386120,505.58,MK WORLDWIDE LTD (T/A LEAD CARE),CARE ESTABLISHMENT,Physical Disablity - Cost of Care,Countywide PD Service - Care,Domiciliary Care
Cambridgeshire County Council,10-Jun-20,51301386120,505.58,MK WORLDWIDE LTD (T/A LEAD CARE),CARE ESTABLISHMENT,Physical Disablity - Cost of Care,Countywide PD Service - Care,Domiciliary Care
Cambridgeshire County Council,10-Jun-20,51301386120,505.58,MK WORLDWIDE LTD (T/A LEAD CARE),CARE ESTABLISHMENT,Physical Disablity - Cost of Care,Countywide PD Service - Care,Domiciliary Care
Cambridgeshire County Council,12-Jun-20,51301384203,506.10,LGSS LAW LTD,TRADE SUPPLIER,LD - South Service Manager,LD - South Service Manager,External Legal Fees
Cambridgeshire County Council,08-Jun-20,51301381852,506.30,Redacted Personal Data ,SERVICE USER,LD - South Locality - Cost of Care,LD - South Cambs - Care,Direct Payments
Cambridgeshire County Council,08-Jun-20,51301381852,506.30,Redacted Personal Data ,SERVICE USER,LD - South Locality - Cost of Care,LD - South Cambs - Care,Direct Payments
Cambridgeshire County Council,08-Jun-20,51301381852,506.30,Redacted Personal Data ,SERVICE USER,LD - South Locality - Cost of Care,LD - South Cambs - Care,Direct Payments
Cambridgeshire County Council,08-Jun-20,51301381852,506.30,Redacted Personal Data ,SERVICE USER,LD - South Locality - Cost of Care,LD - South Cambs - Care,Direct Payments
Cambridgeshire County Council,30-Jun-20,51301389631,506.44,LITTLE ABINGTON PARISH COUNCIL,OTHER PUBLIC BODIES,Highways Maintenance,Highways Maintenance - Works,Village Maintenance
Cambridgeshire County Council,04-Jun-20,51301375215,506.64,CONQUEST CARE HOMES (SOHAM) LTD,CARE ESTABLISHMENT,LD - East Locality - Cost of Care,LD - East Cambs - Care,Residential Care
Cambridgeshire County Council,10-Jun-20,51301385120,507.01,CARE UK COMMUNITY PARTNERSHIPS LTD,CARE ESTABLISHMENT,OP - City & South Locality - Cost of Care,Older People - City & South - Care,Residential Care
Cambridgeshire County Council,10-Jun-20,51301385120,507.01,CARE UK COMMUNITY PARTNERSHIPS LTD,CARE ESTABLISHMENT,OP - City & South Locality - Cost of Care,Older People - City & South - Care,Residential Care
Cambridgeshire County Council,10-Jun-20,51301385120,507.01,CARE UK COMMUNITY PARTNERSHIPS LTD,CARE ESTABLISHMENT,OP - City & South Locality - Cost of Care,Older People - City & South - Care,Residential Care
Cambridgeshire County Council,10-Jun-20,51301385120,507.01,CARE UK COMMUNITY PARTNERSHIPS LTD,CARE ESTABLISHMENT,OP - City & South Locality - Cost of Care,Older People - City & South - Care,Residential Care
Cambridgeshire County Council,08-Jun-20,51301381903,507.10,Redacted Personal Data ,SERVICE USER,Physical Disablity - Cost of Care,Countywide PD Service - Care,Direct Payments
Cambridgeshire County Council,08-Jun-20,51301381903,507.10,Redacted Personal Data ,SERVICE USER,Physical Disablity - Cost of Care,Countywide PD Service - Care,Direct Payments
Cambridgeshire County Council,08-Jun-20,51301381903,507.10,Redacted Personal Data ,SERVICE USER,Physical Disablity - Cost of Care,Countywide PD Service - Care,Direct Payments
Cambridgeshire County Council,08-Jun-20,51301381903,507.10,Redacted Personal Data ,SERVICE USER,Physical Disablity - Cost of Care,Countywide PD Service - Care,Direct Payments
Cambridgeshire County Council,10-Jun-20,51301385870,507.96,THE CAMBRIDGE NURSING CENTRE,CARE ESTABLISHMENT,OP - City & South Locality - Cost of Care,Older People - City & South - Care,Nursing Care
Cambridgeshire County Council,10-Jun-20,51301385870,507.96,THE CAMBRIDGE NURSING CENTRE,CARE ESTABLISHMENT,OP - City & South Locality - Cost of Care,Older People - City & South - Care,Nursing Care
Cambridgeshire County Council,10-Jun-20,51301385870,507.96,THE CAMBRIDGE NURSING CENTRE,CARE ESTABLISHMENT,OP - City & South Locality - Cost of Care,Older People - City & South - Care,Nursing Care
Cambridgeshire County Council,10-Jun-20,51301385870,507.96,THE CAMBRIDGE NURSING CENTRE,CARE ESTABLISHMENT,OP - City & South Locality - Cost of Care,Older People - City & South - Care,Nursing Care
Cambridgeshire County Council,10-Jun-20,51301387969,508.13,AFFINITY TRUST,CARE ESTABLISHMENT,LD - Fenland Locality - Cost of Care,LD - Fenland  - Care,Domiciliary Care
Cambridgeshire County Council,10-Jun-20,51301387969,508.13,AFFINITY TRUST,CARE ESTABLISHMENT,LD - Fenland Locality - Cost of Care,LD - Fenland  - Care,Domiciliary Care
Cambridgeshire County Council,10-Jun-20,51301387969,508.13,AFFINITY TRUST,CARE ESTABLISHMENT,LD - Fenland Locality - Cost of Care,LD - Fenland  - Care,Domiciliary Care
Cambridgeshire County Council,10-Jun-20,51301387969,508.13,AFFINITY TRUST,CARE ESTABLISHMENT,LD - Fenland Locality - Cost of Care,LD - Fenland  - Care,Domiciliary Care
Cambridgeshire County Council,10-Jun-20,51301385518,508.63,VOYAGE,CARE ESTABLISHMENT,LD - East Locality - Cost of Care,LD - East Cambs - Care,Residential Care
Cambridgeshire County Council,10-Jun-20,51301385518,508.63,VOYAGE,CARE ESTABLISHMENT,LD - East Locality - Cost of Care,LD - East Cambs - Care,Residential Care
Cambridgeshire County Council,10-Jun-20,51301385518,508.63,VOYAGE,CARE ESTABLISHMENT,LD - East Locality - Cost of Care,LD - East Cambs - Care,Residential Care
Cambridgeshire County Council,10-Jun-20,51301385518,508.63,VOYAGE,CARE ESTABLISHMENT,LD - East Locality - Cost of Care,LD - East Cambs - Care,Residential Care
Cambridgeshire County Council,08-Jun-20,51301381672,508.66,Redacted Personal Data ,INDIVIDUAL,OP - City & South Locality - Cost of Care,Older People - City & South - Care,Direct Payments
Cambridgeshire County Council,08-Jun-20,51301381672,508.66,Redacted Personal Data ,INDIVIDUAL,OP - City & South Locality - Cost of Care,Older People - City & South - Care,Direct Payments
Cambridgeshire County Council,08-Jun-20,51301381672,508.66,Redacted Personal Data ,INDIVIDUAL,OP - City & South Locality - Cost of Care,Older People - City & South - Care,Direct Payments
Cambridgeshire County Council,08-Jun-20,51301381672,508.66,Redacted Personal Data ,INDIVIDUAL,OP - City & South Locality - Cost of Care,Older People - City & South - Care,Direct Payments
Cambridgeshire County Council,10-Jun-20,51301385292,509.00,ARIA COURT,CARE ESTABLISHMENT,OP - Fenland Locality - Cost of Care,Older People - Fenland - Care,Residential Care
Cambridgeshire County Council,10-Jun-20,51301385292,509.00,ARIA COURT,CARE ESTABLISHMENT,OP - Fenland Locality - Cost of Care,Older People - Fenland - Care,Residential Care
Cambridgeshire County Council,10-Jun-20,51301385292,509.00,ARIA COURT,CARE ESTABLISHMENT,OP - Fenland Locality - Cost of Care,Older People - Fenland - Care,Residential Care
Cambridgeshire County Council,10-Jun-20,51301385292,509.00,ARIA COURT,CARE ESTABLISHMENT,OP - Fenland Locality - Cost of Care,Older People - Fenland - Care,Residential Care
Cambridgeshire County Council,10-Jun-20,51301385260,509.00,LITTLEPORT GRANGE,CARE ESTABLISHMENT,OP - East Cambs Locality - Cost of Care,East Cambs - O P Team - Care,Residential Care
Cambridgeshire County Council,10-Jun-20,51301385260,509.00,LITTLEPORT GRANGE,CARE ESTABLISHMENT,OP - East Cambs Locality - Cost of Care,East Cambs - O P Team - Care,Residential Care
Cambridgeshire County Council,10-Jun-20,51301385260,509.00,LITTLEPORT GRANGE,CARE ESTABLISHMENT,OP - East Cambs Locality - Cost of Care,East Cambs - O P Team - Care,Residential Care
Cambridgeshire County Council,10-Jun-20,51301385260,509.00,LITTLEPORT GRANGE,CARE ESTABLISHMENT,OP - East Cambs Locality - Cost of Care,East Cambs - O P Team - Care,Residential Care
Cambridgeshire County Council,10-Jun-20,51301385589,509.00,LABURNUM LODGE,CARE ESTABLISHMENT,OP - East Cambs Locality - Cost of Care,East Cambs - O P Team - Care,Residential Care
Cambridgeshire County Council,10-Jun-20,51301385589,509.00,LABURNUM LODGE,CARE ESTABLISHMENT,OP - East Cambs Locality - Cost of Care,East Cambs - O P Team - Care,Residential Care
Cambridgeshire County Council,10-Jun-20,51301385589,509.00,LABURNUM LODGE,CARE ESTABLISHMENT,OP - East Cambs Locality - Cost of Care,East Cambs - O P Team - Care,Residential Care
Cambridgeshire County Council,10-Jun-20,51301385589,509.00,LABURNUM LODGE,CARE ESTABLISHMENT,OP - East Cambs Locality - Cost of Care,East Cambs - O P Team - Care,Residential Care
Cambridgeshire County Council,10-Jun-20,51301385515,509.00,OLIVEMEDE RESIDENTIAL HOME,CARE ESTABLISHMENT,OP - Hunts Locality - Cost of Care,Hunts OP Team - Care,Residential Care
Cambridgeshire County Council,10-Jun-20,51301385515,509.00,OLIVEMEDE RESIDENTIAL HOME,CARE ESTABLISHMENT,OP - Hunts Locality - Cost of Care,Hunts OP Team - Care,Residential Care
Cambridgeshire County Council,10-Jun-20,51301385515,509.00,OLIVEMEDE RESIDENTIAL HOME,CARE ESTABLISHMENT,OP - Hunts Locality - Cost of Care,Hunts OP Team - Care,Residential Care
Cambridgeshire County Council,10-Jun-20,51301385515,509.00,OLIVEMEDE RESIDENTIAL HOME,CARE ESTABLISHMENT,OP - Hunts Locality - Cost of Care,Hunts OP Team - Care,Residential Care
Cambridgeshire County Council,22-Jun-20,51301392016,509.22,Redacted Personal Data ,INDIVIDUAL,Nursery Schools,Early Years - Funded 3s/4s,Care & Ed Childcare Settings
Cambridgeshire County Council,08-Jun-20,51301381371,509.36,Redacted Personal Data ,SERVICE USER,Physical Disablity - Cost of Care,Countywide PD Service - Care,Direct Payments
Cambridgeshire County Council,08-Jun-20,51301381371,509.36,Redacted Personal Data ,SERVICE USER,Physical Disablity - Cost of Care,Countywide PD Service - Care,Direct Payments
Cambridgeshire County Council,08-Jun-20,51301381371,509.36,Redacted Personal Data ,SERVICE USER,Physical Disablity - Cost of Care,Countywide PD Service - Care,Direct Payments
Cambridgeshire County Council,08-Jun-20,51301381371,509.36,Redacted Personal Data ,SERVICE USER,Physical Disablity - Cost of Care,Countywide PD Service - Care,Direct Payments
Cambridgeshire County Council,01-Jun-20,51301368138,510.00,RANDSTAD PUBLIC SERVICES (EDU),EDUCATION,SEND Specialist Services - Head of Service,SEND Specialist Services - SEMH Support Programme,Professional Fees and Hired Services
Cambridgeshire County Council,08-Jun-20,51301382237,510.00,Redacted Personal Data ,INDIVIDUAL,OP - Hunts Locality - Cost of Care,Hunts OP Team - Care,Direct Payments
Cambridgeshire County Council,08-Jun-20,51301382237,510.00,Redacted Personal Data ,INDIVIDUAL,OP - Hunts Locality - Cost of Care,Hunts OP Team - Care,Direct Payments
Cambridgeshire County Council,08-Jun-20,51301382237,510.00,Redacted Personal Data ,INDIVIDUAL,OP - Hunts Locality - Cost of Care,Hunts OP Team - Care,Direct Payments
Cambridgeshire County Council,08-Jun-20,51301382237,510.00,Redacted Personal Data ,INDIVIDUAL,OP - Hunts Locality - Cost of Care,Hunts OP Team - Care,Direct Payments
Cambridgeshire County Council,10-Jun-20,51301385083,510.00,AISLING LODGE (MD CARE HOMES),CARE ESTABLISHMENT,OP - Hunts Locality - Cost of Care,Hunts OP Team - Care,Residential Care
Cambridgeshire County Council,10-Jun-20,51301385083,510.00,AISLING LODGE (MD CARE HOMES),CARE ESTABLISHMENT,OP - Hunts Locality - Cost of Care,Hunts OP Team - Care,Residential Care
Cambridgeshire County Council,10-Jun-20,51301385083,510.00,AISLING LODGE (MD CARE HOMES),CARE ESTABLISHMENT,OP - Hunts Locality - Cost of Care,Hunts OP Team - Care,Residential Care
Cambridgeshire County Council,10-Jun-20,51301385083,510.00,AISLING LODGE (MD CARE HOMES),CARE ESTABLISHMENT,OP - Hunts Locality - Cost of Care,Hunts OP Team - Care,Residential Care
Cambridgeshire County Council,15-Jun-20,51301378630,510.00,RANDSTAD PUBLIC SERVICES (EDU),EDUCATION,SEND Specialist Services - Head of Service,SEND Specialist Services - SEMH Support Programme,Professional Fees and Hired Services
Cambridgeshire County Council,29-Jun-20,51301384720,510.00,RANDSTAD PUBLIC SERVICES (EDU),EDUCATION,SEND Specialist Services - Head of Service,SEND Specialist Services - SEMH Support Programme,Professional Fees and Hired Services
Cambridgeshire County Council,10-Jun-20,51301386856,510.41,Beaumont HEALTHCARE LTD,CARE ESTABLISHMENT,OPMH - City & South,Older People Mental Health City & South,Domiciliary Care
Cambridgeshire County Council,10-Jun-20,51301386856,510.41,Beaumont HEALTHCARE LTD,CARE ESTABLISHMENT,OPMH - City & South,Older People Mental Health City & South,Domiciliary Care
Cambridgeshire County Council,10-Jun-20,51301386856,510.41,Beaumont HEALTHCARE LTD,CARE ESTABLISHMENT,OPMH - City & South,Older People Mental Health City & South,Domiciliary Care
Cambridgeshire County Council,10-Jun-20,51301386856,510.41,Beaumont HEALTHCARE LTD,CARE ESTABLISHMENT,OPMH - City & South,Older People Mental Health City & South,Domiciliary Care
Cambridgeshire County Council,15-Jun-20,51301389990,510.57,SENSE NATIONAL DEAF & BLIND,CARE ESTABLISHMENT,Strategic Management - Adults,Adults Assistant Director,Residential Care
Cambridgeshire County Council,15-Jun-20,51301389990,510.57,SENSE NATIONAL DEAF & BLIND,CARE ESTABLISHMENT,Strategic Management - Adults,Adults Assistant Director,Residential Care
Cambridgeshire County Council,15-Jun-20,51301389990,510.57,SENSE NATIONAL DEAF & BLIND,CARE ESTABLISHMENT,Strategic Management - Adults,Adults Assistant Director,Residential Care
Cambridgeshire County Council,15-Jun-20,51301389990,510.57,SENSE NATIONAL DEAF & BLIND,CARE ESTABLISHMENT,Strategic Management - Adults,Adults Assistant Director,Residential Care
Cambridgeshire County Council,08-Jun-20,51301381883,510.62,Redacted Personal Data ,SERVICE USER,LD - South Locality - Cost of Care,LD - South Cambs - Care,Direct Payments
Cambridgeshire County Council,08-Jun-20,51301381883,510.62,Redacted Personal Data ,SERVICE USER,LD - South Locality - Cost of Care,LD - South Cambs - Care,Direct Payments
Cambridgeshire County Council,08-Jun-20,51301381883,510.62,Redacted Personal Data ,SERVICE USER,LD - South Locality - Cost of Care,LD - South Cambs - Care,Direct Payments
Cambridgeshire County Council,08-Jun-20,51301381883,510.62,Redacted Personal Data ,SERVICE USER,LD - South Locality - Cost of Care,LD - South Cambs - Care,Direct Payments
Cambridgeshire County Council,10-Jun-20,51301386826,510.93,BETTER HEALTHCARE SERVICES LTD,CARE ESTABLISHMENT,OP - Hunts Locality - Cost of Care,Hunts OP Team - Care,Domiciliary Care
Cambridgeshire County Council,10-Jun-20,51301386826,510.93,BETTER HEALTHCARE SERVICES LTD,CARE ESTABLISHMENT,OP - Hunts Locality - Cost of Care,Hunts OP Team - Care,Domiciliary Care
Cambridgeshire County Council,10-Jun-20,51301386826,510.93,BETTER HEALTHCARE SERVICES LTD,CARE ESTABLISHMENT,OP - Hunts Locality - Cost of Care,Hunts OP Team - Care,Domiciliary Care
Cambridgeshire County Council,10-Jun-20,51301386826,510.93,BETTER HEALTHCARE SERVICES LTD,CARE ESTABLISHMENT,OP - Hunts Locality - Cost of Care,Hunts OP Team - Care,Domiciliary Care
Cambridgeshire County Council,10-Jun-20,51301388155,510.93,Careuk247 Home Care Ltd,COMPANY,OP - Hunts Locality - Cost of Care,Hunts OP Team - Care,Domiciliary Care
Cambridgeshire County Council,10-Jun-20,51301388155,510.93,Careuk247 Home Care Ltd,COMPANY,OP - Hunts Locality - Cost of Care,Hunts OP Team - Care,Domiciliary Care
Cambridgeshire County Council,10-Jun-20,51301388155,510.93,Careuk247 Home Care Ltd,COMPANY,OP - Hunts Locality - Cost of Care,Hunts OP Team - Care,Domiciliary Care
Cambridgeshire County Council,10-Jun-20,51301388155,510.93,Careuk247 Home Care Ltd,COMPANY,OP - Hunts Locality - Cost of Care,Hunts OP Team - Care,Domiciliary Care
Cambridgeshire County Council,10-Jun-20,51301388155,510.93,Careuk247 Home Care Ltd,COMPANY,OP - Hunts Locality - Cost of Care,Hunts OP Team - Care,Domiciliary Care
Cambridgeshire County Council,10-Jun-20,51301388155,510.93,Careuk247 Home Care Ltd,COMPANY,OP - Hunts Locality - Cost of Care,Hunts OP Team - Care,Domiciliary Care
Cambridgeshire County Council,10-Jun-20,51301388155,510.93,Careuk247 Home Care Ltd,COMPANY,OP - Hunts Locality - Cost of Care,Hunts OP Team - Care,Domiciliary Care
Cambridgeshire County Council,10-Jun-20,51301388155,510.93,Careuk247 Home Care Ltd,COMPANY,OP - Hunts Locality - Cost of Care,Hunts OP Team - Care,Domiciliary Care
Cambridgeshire County Council,10-Jun-20,51301388155,510.93,Careuk247 Home Care Ltd,COMPANY,OP - Hunts Locality - Cost of Care,Hunts OP Team - Care,Domiciliary Care
Cambridgeshire County Council,10-Jun-20,51301388155,510.93,Careuk247 Home Care Ltd,COMPANY,OP - Hunts Locality - Cost of Care,Hunts OP Team - Care,Domiciliary Care
Cambridgeshire County Council,10-Jun-20,51301388155,510.93,Careuk247 Home Care Ltd,COMPANY,OP - Hunts Locality - Cost of Care,Hunts OP Team - Care,Domiciliary Care
Cambridgeshire County Council,10-Jun-20,51301388155,510.93,Careuk247 Home Care Ltd,COMPANY,OP - Hunts Locality - Cost of Care,Hunts OP Team - Care,Domiciliary Care
Cambridgeshire County Council,10-Jun-20,51301388155,510.93,Careuk247 Home Care Ltd,COMPANY,OP - Hunts Locality - Cost of Care,Hunts OP Team - Care,Domiciliary Care
Cambridgeshire County Council,10-Jun-20,51301388155,510.93,Careuk247 Home Care Ltd,COMPANY,OP - Hunts Locality - Cost of Care,Hunts OP Team - Care,Domiciliary Care
Cambridgeshire County Council,10-Jun-20,51301388155,510.93,Careuk247 Home Care Ltd,COMPANY,OP - Hunts Locality - Cost of Care,Hunts OP Team - Care,Domiciliary Care
Cambridgeshire County Council,03-Jun-20,51301379134,511.00,CAMBRIDGE CITY COUNCIL,OTHER PUBLIC BODIES,Corporate Offices,Cherry Hinton Library,Business rates
Cambridgeshire County Council,29-Jun-20,51301394346,511.00,CAMBRIDGE CITY COUNCIL,OTHER PUBLIC BODIES,Corporate Offices,Cherry Hinton Library,Business rates
Cambridgeshire County Council,04-Jun-20,51301380521,511.08,AFFINITY TRUST,CARE ESTABLISHMENT,LD - Young Adults Team,LD - Young Adults - Care,Supported Living
Cambridgeshire County Council,04-Jun-20,51301380521,511.08,AFFINITY TRUST,CARE ESTABLISHMENT,LD - Young Adults Team,LD - Young Adults - Care,Supported Living
Cambridgeshire County Council,04-Jun-20,51301380521,511.08,AFFINITY TRUST,CARE ESTABLISHMENT,LD - Young Adults Team,LD - Young Adults - Care,Supported Living
Cambridgeshire County Council,04-Jun-20,51301380521,511.08,AFFINITY TRUST,CARE ESTABLISHMENT,LD - Young Adults Team,LD - Young Adults - Care,Supported Living
Cambridgeshire County Council,10-Jun-20,51301387983,511.08,AFFINITY TRUST,CARE ESTABLISHMENT,LD - Hunts Locality - Cost of Care,LD - Huntingdonshire - Special Needs,Domiciliary Care
Cambridgeshire County Council,10-Jun-20,51301387983,511.08,AFFINITY TRUST,CARE ESTABLISHMENT,LD - Hunts Locality - Cost of Care,LD - Huntingdonshire - Special Needs,Domiciliary Care
Cambridgeshire County Council,10-Jun-20,51301387983,511.08,AFFINITY TRUST,CARE ESTABLISHMENT,LD - Hunts Locality - Cost of Care,LD - Huntingdonshire - Special Needs,Domiciliary Care
Cambridgeshire County Council,10-Jun-20,51301387983,511.08,AFFINITY TRUST,CARE ESTABLISHMENT,LD - Hunts Locality - Cost of Care,LD - Huntingdonshire - Special Needs,Domiciliary Care
Cambridgeshire County Council,10-Jun-20,51301385817,511.50,MIDFIELD LODGE CARE CENTRE,CARE ESTABLISHMENT,OP - City & South Locality - Cost of Care,Older People - City & South - Care,Residential Care
Cambridgeshire County Council,10-Jun-20,51301385817,511.50,MIDFIELD LODGE CARE CENTRE,CARE ESTABLISHMENT,OP - City & South Locality - Cost of Care,Older People - City & South - Care,Residential Care
Cambridgeshire County Council,10-Jun-20,51301385817,511.50,MIDFIELD LODGE CARE CENTRE,CARE ESTABLISHMENT,OP - City & South Locality - Cost of Care,Older People - City & South - Care,Residential Care
Cambridgeshire County Council,10-Jun-20,51301385817,511.50,MIDFIELD LODGE CARE CENTRE,CARE ESTABLISHMENT,OP - City & South Locality - Cost of Care,Older People - City & South - Care,Residential Care
Cambridgeshire County Council,11-Jun-20,51301383056,511.56,LGSS LAW LTD,TRADE SUPPLIER,Exec Director,Executive Director - Place & Economy,External Legal Fees
Cambridgeshire County Council,29-Jun-20,51301394204,511.69,NEWTON PARISH COUNCIL,OTHER PUBLIC BODIES,Highways Maintenance,Highways Maintenance - Works,Village Maintenance
Cambridgeshire County Council,09-Jun-20,51301384264,512.00,IAN MAY T/A SILVER SERVICE TAXI,TRADE SUPPLIER,OP - City & South Locality - Cost of Care,Older People - City & South - Care,Social Care Transport
Cambridgeshire County Council,03-Jun-20,51301379171,512.04,Redacted Personal Data ,INDIVIDUAL,LAC Transport,LAC Transport - Home to School,Social Care Transport
Cambridgeshire County Council,04-Jun-20,51301380133,512.31,Serenity in Mind,CARE ESTABLISHMENT,LD - Hunts Locality - Cost of Care,LD - Huntingdonshire - Care,Supported Living
Cambridgeshire County Council,04-Jun-20,51301380133,512.31,Serenity in Mind,CARE ESTABLISHMENT,LD - Hunts Locality - Cost of Care,LD - Huntingdonshire - Care,Supported Living
Cambridgeshire County Council,04-Jun-20,51301380133,512.31,Serenity in Mind,CARE ESTABLISHMENT,LD - Hunts Locality - Cost of Care,LD - Huntingdonshire - Care,Supported Living
Cambridgeshire County Council,04-Jun-20,51301380133,512.31,Serenity in Mind,CARE ESTABLISHMENT,LD - Hunts Locality - Cost of Care,LD - Huntingdonshire - Care,Supported Living
Cambridgeshire County Council,04-Jun-20,51301380133,512.31,Serenity in Mind,CARE ESTABLISHMENT,LD - Hunts Locality - Cost of Care,LD - Huntingdonshire - Care,Supported Living
Cambridgeshire County Council,04-Jun-20,51301380133,512.31,Serenity in Mind,CARE ESTABLISHMENT,LD - Hunts Locality - Cost of Care,LD - Huntingdonshire - Care,Supported Living
Cambridgeshire County Council,04-Jun-20,51301380133,512.31,Serenity in Mind,CARE ESTABLISHMENT,LD - Hunts Locality - Cost of Care,LD - Huntingdonshire - Care,Supported Living
Cambridgeshire County Council,04-Jun-20,51301380133,512.31,Serenity in Mind,CARE ESTABLISHMENT,LD - Hunts Locality - Cost of Care,LD - Huntingdonshire - Care,Supported Living
Cambridgeshire County Council,04-Jun-20,51301380133,512.31,Serenity in Mind,CARE ESTABLISHMENT,LD - Hunts Locality - Cost of Care,LD - Huntingdonshire - Care,Supported Living
Cambridgeshire County Council,04-Jun-20,51301380133,512.31,Serenity in Mind,CARE ESTABLISHMENT,LD - Hunts Locality - Cost of Care,LD - Huntingdonshire - Care,Supported Living
Cambridgeshire County Council,04-Jun-20,51301380133,512.31,Serenity in Mind,CARE ESTABLISHMENT,LD - Hunts Locality - Cost of Care,LD - Huntingdonshire - Care,Supported Living
Cambridgeshire County Council,04-Jun-20,51301380133,512.31,Serenity in Mind,CARE ESTABLISHMENT,LD - Hunts Locality - Cost of Care,LD - Huntingdonshire - Care,Supported Living
Cambridgeshire County Council,22-Jun-20,51301378280,512.50,Alison Wyatt t/a Breakthrough Therapy Solutions,EDUCATION,Early Years Specialist Support,Procurement - TA Therapy in Special Schools,Independent School Placements
Cambridgeshire County Council,08-Jun-20,51301381823,512.51,Redacted Personal Data ,SERVICE USER,LD - South Locality - Cost of Care,LD - South Cambs - Care,Direct Payments
Cambridgeshire County Council,08-Jun-20,51301381823,512.51,Redacted Personal Data ,SERVICE USER,LD - South Locality - Cost of Care,LD - South Cambs - Care,Direct Payments
Cambridgeshire County Council,08-Jun-20,51301381823,512.51,Redacted Personal Data ,SERVICE USER,LD - South Locality - Cost of Care,LD - South Cambs - Care,Direct Payments
Cambridgeshire County Council,08-Jun-20,51301381823,512.51,Redacted Personal Data ,SERVICE USER,LD - South Locality - Cost of Care,LD - South Cambs - Care,Direct Payments
Cambridgeshire County Council,08-Jun-20,51301381803,512.63,Redacted Personal Data ,SERVICE USER,LD - South Locality - Cost of Care,LD - South Cambs - Care,Direct Payments
Cambridgeshire County Council,08-Jun-20,51301381803,512.63,Redacted Personal Data ,SERVICE USER,LD - South Locality - Cost of Care,LD - South Cambs - Care,Direct Payments
Cambridgeshire County Council,08-Jun-20,51301381803,512.63,Redacted Personal Data ,SERVICE USER,LD - South Locality - Cost of Care,LD - South Cambs - Care,Direct Payments
Cambridgeshire County Council,08-Jun-20,51301381803,512.63,Redacted Personal Data ,SERVICE USER,LD - South Locality - Cost of Care,LD - South Cambs - Care,Direct Payments
Cambridgeshire County Council,04-Jun-20,51301379687,512.84,THERA EAST ANGLIA,CARE ESTABLISHMENT,LD - East Locality - Cost of Care,LD - East Cambs - Care,Domiciliary Care
Cambridgeshire County Council,04-Jun-20,51301379687,512.84,THERA EAST ANGLIA,CARE ESTABLISHMENT,LD - East Locality - Cost of Care,LD - East Cambs - Care,Domiciliary Care
Cambridgeshire County Council,04-Jun-20,51301379687,512.84,THERA EAST ANGLIA,CARE ESTABLISHMENT,LD - East Locality - Cost of Care,LD - East Cambs - Care,Domiciliary Care
Cambridgeshire County Council,04-Jun-20,51301379687,512.84,THERA EAST ANGLIA,CARE ESTABLISHMENT,LD - East Locality - Cost of Care,LD - East Cambs - Care,Domiciliary Care
Cambridgeshire County Council,04-Jun-20,51301379652,512.99,THERA EAST ANGLIA,CARE ESTABLISHMENT,LD - South Locality - Cost of Care,LD - South Cambs - Care,Domiciliary Care
Cambridgeshire County Council,04-Jun-20,51301379652,512.99,THERA EAST ANGLIA,CARE ESTABLISHMENT,LD - South Locality - Cost of Care,LD - South Cambs - Care,Domiciliary Care
Cambridgeshire County Council,04-Jun-20,51301379652,512.99,THERA EAST ANGLIA,CARE ESTABLISHMENT,LD - South Locality - Cost of Care,LD - South Cambs - Care,Domiciliary Care
Cambridgeshire County Council,04-Jun-20,51301379652,512.99,THERA EAST ANGLIA,CARE ESTABLISHMENT,LD - South Locality - Cost of Care,LD - South Cambs - Care,Domiciliary Care
Cambridgeshire County Council,04-Jun-20,51301379652,512.99,THERA EAST ANGLIA,CARE ESTABLISHMENT,LD - South Locality - Cost of Care,LD - South Cambs - Care,Domiciliary Care
Cambridgeshire County Council,04-Jun-20,51301379652,512.99,THERA EAST ANGLIA,CARE ESTABLISHMENT,LD - South Locality - Cost of Care,LD - South Cambs - Care,Domiciliary Care
Cambridgeshire County Council,04-Jun-20,51301379652,512.99,THERA EAST ANGLIA,CARE ESTABLISHMENT,LD - South Locality - Cost of Care,LD - South Cambs - Care,Domiciliary Care
Cambridgeshire County Council,04-Jun-20,51301379652,512.99,THERA EAST ANGLIA,CARE ESTABLISHMENT,LD - South Locality - Cost of Care,LD - South Cambs - Care,Domiciliary Care
Cambridgeshire County Council,12-Jun-20,51301382975,513.00,LGSS LAW LTD,TRADE SUPPLIER,Highways General,Highways,External Legal Fees
Cambridgeshire County Council,30-Jun-20,51301394644,513.00,WEIGHTMANS LLP,TRADE SUPPLIER,Insurance Fund,Liability,Insurance Fund External
Cambridgeshire County Council,10-Jun-20,51301388433,513.04,TONY STOCKS T/A GUYATT HOUSE,CARE ESTABLISHMENT,LD - East Locality - Cost of Care,LD - East Cambs - Care,Residential Care
Cambridgeshire County Council,10-Jun-20,51301388433,513.04,TONY STOCKS T/A GUYATT HOUSE,CARE ESTABLISHMENT,LD - East Locality - Cost of Care,LD - East Cambs - Care,Residential Care
Cambridgeshire County Council,10-Jun-20,51301388433,513.04,TONY STOCKS T/A GUYATT HOUSE,CARE ESTABLISHMENT,LD - East Locality - Cost of Care,LD - East Cambs - Care,Residential Care
Cambridgeshire County Council,10-Jun-20,51301388433,513.04,TONY STOCKS T/A GUYATT HOUSE,CARE ESTABLISHMENT,LD - East Locality - Cost of Care,LD - East Cambs - Care,Residential Care
Cambridgeshire County Council,10-Jun-20,51301385290,513.43,ORCHARD HOUSE NURSING HOME,CARE ESTABLISHMENT,OP - Fenland Locality - Cost of Care,Older People - Fenland - Care,Residential Care
Cambridgeshire County Council,10-Jun-20,51301385290,513.43,ORCHARD HOUSE NURSING HOME,CARE ESTABLISHMENT,OP - Fenland Locality - Cost of Care,Older People - Fenland - Care,Residential Care
Cambridgeshire County Council,10-Jun-20,51301385290,513.43,ORCHARD HOUSE NURSING HOME,CARE ESTABLISHMENT,OP - Fenland Locality - Cost of Care,Older People - Fenland - Care,Residential Care
Cambridgeshire County Council,10-Jun-20,51301385290,513.43,ORCHARD HOUSE NURSING HOME,CARE ESTABLISHMENT,OP - Fenland Locality - Cost of Care,Older People - Fenland - Care,Residential Care
Cambridgeshire County Council,04-Jun-20,51301380113,513.50,BROAD OAKS (MENCAP),CARE ESTABLISHMENT,AMH - Hunts & Fens,E Cambs & Fenland Mental Health Team,Supported Living
Cambridgeshire County Council,04-Jun-20,51301380113,513.50,BROAD OAKS (MENCAP),CARE ESTABLISHMENT,AMH - Hunts & Fens,E Cambs & Fenland Mental Health Team,Supported Living
Cambridgeshire County Council,04-Jun-20,51301380113,513.50,BROAD OAKS (MENCAP),CARE ESTABLISHMENT,AMH - Hunts & Fens,E Cambs & Fenland Mental Health Team,Supported Living
Cambridgeshire County Council,04-Jun-20,51301380113,513.50,BROAD OAKS (MENCAP),CARE ESTABLISHMENT,AMH - Hunts & Fens,E Cambs & Fenland Mental Health Team,Supported Living
Cambridgeshire County Council,10-Jun-20,51301387997,513.60,AFFINITY TRUST,CARE ESTABLISHMENT,LD - Hunts Locality - Cost of Care,LD - Huntingdonshire - Care,Domiciliary Care
Cambridgeshire County Council,10-Jun-20,51301387997,513.60,AFFINITY TRUST,CARE ESTABLISHMENT,LD - Hunts Locality - Cost of Care,LD - Huntingdonshire - Care,Domiciliary Care
Cambridgeshire County Council,10-Jun-20,51301387997,513.60,AFFINITY TRUST,CARE ESTABLISHMENT,LD - Hunts Locality - Cost of Care,LD - Huntingdonshire - Care,Domiciliary Care
Cambridgeshire County Council,10-Jun-20,51301387997,513.60,AFFINITY TRUST,CARE ESTABLISHMENT,LD - Hunts Locality - Cost of Care,LD - Huntingdonshire - Care,Domiciliary Care
Cambridgeshire County Council,23-Jun-20,51301378643,513.60,JOHNSONS 1871 LTD,TRADE SUPPLIER,Shire Hall Relocation,Shire Hall Relocation,"Fixtures, Fittings and Furnishings"
Cambridgeshire County Council,08-Jun-20,51301381683,513.74,Redacted Personal Data ,INDIVIDUAL,OP - City & South Locality - Cost of Care,Older People - City & South - Care,Direct Payments
Cambridgeshire County Council,08-Jun-20,51301381683,513.74,Redacted Personal Data ,INDIVIDUAL,OP - City & South Locality - Cost of Care,Older People - City & South - Care,Direct Payments
Cambridgeshire County Council,08-Jun-20,51301381683,513.74,Redacted Personal Data ,INDIVIDUAL,OP - City & South Locality - Cost of Care,Older People - City & South - Care,Direct Payments
Cambridgeshire County Council,08-Jun-20,51301381683,513.74,Redacted Personal Data ,INDIVIDUAL,OP - City & South Locality - Cost of Care,Older People - City & South - Care,Direct Payments
Cambridgeshire County Council,08-Jun-20,51301381380,513.74,Redacted Personal Data ,INDIVIDUAL,OP - Fenland Locality - Cost of Care,Older People - Fenland - Care,Direct Payments
Cambridgeshire County Council,08-Jun-20,51301381380,513.74,Redacted Personal Data ,INDIVIDUAL,OP - Fenland Locality - Cost of Care,Older People - Fenland - Care,Direct Payments
Cambridgeshire County Council,08-Jun-20,51301381380,513.74,Redacted Personal Data ,INDIVIDUAL,OP - Fenland Locality - Cost of Care,Older People - Fenland - Care,Direct Payments
Cambridgeshire County Council,08-Jun-20,51301381380,513.74,Redacted Personal Data ,INDIVIDUAL,OP - Fenland Locality - Cost of Care,Older People - Fenland - Care,Direct Payments
Cambridgeshire County Council,08-Jun-20,51301381488,513.74,Redacted Personal Data ,INDIVIDUAL,Physical Disablity - Cost of Care,Countywide PD Service - Care,Direct Payments
Cambridgeshire County Council,08-Jun-20,51301381488,513.74,Redacted Personal Data ,INDIVIDUAL,Physical Disablity - Cost of Care,Countywide PD Service - Care,Direct Payments
Cambridgeshire County Council,08-Jun-20,51301381488,513.74,Redacted Personal Data ,INDIVIDUAL,Physical Disablity - Cost of Care,Countywide PD Service - Care,Direct Payments
Cambridgeshire County Council,08-Jun-20,51301381488,513.74,Redacted Personal Data ,INDIVIDUAL,Physical Disablity - Cost of Care,Countywide PD Service - Care,Direct Payments
Cambridgeshire County Council,08-Jun-20,51301381707,513.74,Redacted Personal Data ,INDIVIDUAL,OP - Hunts Locality - Cost of Care,Hunts OP Team - Care,Direct Payments
Cambridgeshire County Council,08-Jun-20,51301381707,513.74,Redacted Personal Data ,INDIVIDUAL,OP - Hunts Locality - Cost of Care,Hunts OP Team - Care,Direct Payments
Cambridgeshire County Council,08-Jun-20,51301381707,513.74,Redacted Personal Data ,INDIVIDUAL,OP - Hunts Locality - Cost of Care,Hunts OP Team - Care,Direct Payments
Cambridgeshire County Council,08-Jun-20,51301381707,513.74,Redacted Personal Data ,INDIVIDUAL,OP - Hunts Locality - Cost of Care,Hunts OP Team - Care,Direct Payments
Cambridgeshire County Council,04-Jun-20,51301379696,513.79,THERA EAST ANGLIA,CARE ESTABLISHMENT,LD - East Locality - Cost of Care,LD - East Cambs - Care,Domiciliary Care
Cambridgeshire County Council,04-Jun-20,51301379696,513.79,THERA EAST ANGLIA,CARE ESTABLISHMENT,LD - East Locality - Cost of Care,LD - East Cambs - Care,Domiciliary Care
Cambridgeshire County Council,04-Jun-20,51301379696,513.79,THERA EAST ANGLIA,CARE ESTABLISHMENT,LD - East Locality - Cost of Care,LD - East Cambs - Care,Domiciliary Care
Cambridgeshire County Council,04-Jun-20,51301379696,513.79,THERA EAST ANGLIA,CARE ESTABLISHMENT,LD - East Locality - Cost of Care,LD - East Cambs - Care,Domiciliary Care
Cambridgeshire County Council,15-Jun-20,51301389906,513.80,ST MARTINS CENTRE,CARE ESTABLISHMENT,OP - City & South Locality - Cost of Care,Older People - City & South - Care,Day Care
Cambridgeshire County Council,12-Jun-20,51301389481,514.29,A CLASS CARE LTD,CARE ESTABLISHMENT,OP - City & South Locality - Cost of Care,Older People - City & South - Care,Homecare
Cambridgeshire County Council,16-Jun-20,51301390777,514.59,ST AUGUSTINES DAY CENTRE,CARE ESTABLISHMENT,OP - Fenland Locality - Cost of Care,Older People - Fenland - Care,Day Care
Cambridgeshire County Council,16-Jun-20,51301390777,514.59,ST AUGUSTINES DAY CENTRE,CARE ESTABLISHMENT,OP - Fenland Locality - Cost of Care,Older People - Fenland - Care,Day Care
Cambridgeshire County Council,16-Jun-20,51301390777,514.59,ST AUGUSTINES DAY CENTRE,CARE ESTABLISHMENT,OP - Fenland Locality - Cost of Care,Older People - Fenland - Care,Day Care
Cambridgeshire County Council,16-Jun-20,51301390777,514.59,ST AUGUSTINES DAY CENTRE,CARE ESTABLISHMENT,OP - Fenland Locality - Cost of Care,Older People - Fenland - Care,Day Care
Cambridgeshire County Council,16-Jun-20,51301390777,514.59,ST AUGUSTINES DAY CENTRE,CARE ESTABLISHMENT,OP - Fenland Locality - Cost of Care,Older People - Fenland - Care,Day Care
Cambridgeshire County Council,16-Jun-20,51301390777,514.59,ST AUGUSTINES DAY CENTRE,CARE ESTABLISHMENT,OP - Fenland Locality - Cost of Care,Older People - Fenland - Care,Day Care
Cambridgeshire County Council,16-Jun-20,51301390777,514.59,ST AUGUSTINES DAY CENTRE,CARE ESTABLISHMENT,OP - Fenland Locality - Cost of Care,Older People - Fenland - Care,Day Care
Cambridgeshire County Council,16-Jun-20,51301390777,514.59,ST AUGUSTINES DAY CENTRE,CARE ESTABLISHMENT,OP - Fenland Locality - Cost of Care,Older People - Fenland - Care,Day Care
Cambridgeshire County Council,16-Jun-20,51301390777,514.59,ST AUGUSTINES DAY CENTRE,CARE ESTABLISHMENT,OP - Fenland Locality - Cost of Care,Older People - Fenland - Care,Day Care
Cambridgeshire County Council,16-Jun-20,51301390777,514.59,ST AUGUSTINES DAY CENTRE,CARE ESTABLISHMENT,OP - Fenland Locality - Cost of Care,Older People - Fenland - Care,Day Care
Cambridgeshire County Council,16-Jun-20,51301390777,514.59,ST AUGUSTINES DAY CENTRE,CARE ESTABLISHMENT,OP - Fenland Locality - Cost of Care,Older People - Fenland - Care,Day Care
Cambridgeshire County Council,16-Jun-20,51301390777,514.59,ST AUGUSTINES DAY CENTRE,CARE ESTABLISHMENT,OP - Fenland Locality - Cost of Care,Older People - Fenland - Care,Day Care
Cambridgeshire County Council,16-Jun-20,51301390777,514.59,ST AUGUSTINES DAY CENTRE,CARE ESTABLISHMENT,OP - Fenland Locality - Cost of Care,Older People - Fenland - Care,Day Care
Cambridgeshire County Council,16-Jun-20,51301390777,514.59,ST AUGUSTINES DAY CENTRE,CARE ESTABLISHMENT,OP - Fenland Locality - Cost of Care,Older People - Fenland - Care,Day Care
Cambridgeshire County Council,16-Jun-20,51301390777,514.59,ST AUGUSTINES DAY CENTRE,CARE ESTABLISHMENT,OP - Fenland Locality - Cost of Care,Older People - Fenland - Care,Day Care
Cambridgeshire County Council,16-Jun-20,51301390777,514.59,ST AUGUSTINES DAY CENTRE,CARE ESTABLISHMENT,OP - Fenland Locality - Cost of Care,Older People - Fenland - Care,Day Care
Cambridgeshire County Council,16-Jun-20,51301390777,514.59,ST AUGUSTINES DAY CENTRE,CARE ESTABLISHMENT,OP - Fenland Locality - Cost of Care,Older People - Fenland - Care,Day Care
Cambridgeshire County Council,16-Jun-20,51301390777,514.59,ST AUGUSTINES DAY CENTRE,CARE ESTABLISHMENT,OP - Fenland Locality - Cost of Care,Older People - Fenland - Care,Day Care
Cambridgeshire County Council,16-Jun-20,51301390777,514.59,ST AUGUSTINES DAY CENTRE,CARE ESTABLISHMENT,OP - Fenland Locality - Cost of Care,Older People - Fenland - Care,Day Care
Cambridgeshire County Council,16-Jun-20,51301390777,514.59,ST AUGUSTINES DAY CENTRE,CARE ESTABLISHMENT,OP - Fenland Locality - Cost of Care,Older People - Fenland - Care,Day Care
Cambridgeshire County Council,16-Jun-20,51301390777,514.59,ST AUGUSTINES DAY CENTRE,CARE ESTABLISHMENT,OP - Fenland Locality - Cost of Care,Older People - Fenland - Care,Day Care
Cambridgeshire County Council,16-Jun-20,51301390777,514.59,ST AUGUSTINES DAY CENTRE,CARE ESTABLISHMENT,OP - Fenland Locality - Cost of Care,Older People - Fenland - Care,Day Care
Cambridgeshire County Council,16-Jun-20,51301390777,514.59,ST AUGUSTINES DAY CENTRE,CARE ESTABLISHMENT,OP - Fenland Locality - Cost of Care,Older People - Fenland - Care,Day Care
Cambridgeshire County Council,16-Jun-20,51301390777,514.59,ST AUGUSTINES DAY CENTRE,CARE ESTABLISHMENT,OP - Fenland Locality - Cost of Care,Older People - Fenland - Care,Day Care
Cambridgeshire County Council,16-Jun-20,51301390777,514.59,ST AUGUSTINES DAY CENTRE,CARE ESTABLISHMENT,OP - Fenland Locality - Cost of Care,Older People - Fenland - Care,Day Care
Cambridgeshire County Council,16-Jun-20,51301390777,514.59,ST AUGUSTINES DAY CENTRE,CARE ESTABLISHMENT,OP - Fenland Locality - Cost of Care,Older People - Fenland - Care,Day Care
Cambridgeshire County Council,16-Jun-20,51301390777,514.59,ST AUGUSTINES DAY CENTRE,CARE ESTABLISHMENT,OP - Fenland Locality - Cost of Care,Older People - Fenland - Care,Day Care
Cambridgeshire County Council,16-Jun-20,51301390777,514.59,ST AUGUSTINES DAY CENTRE,CARE ESTABLISHMENT,OP - Fenland Locality - Cost of Care,Older People - Fenland - Care,Day Care
Cambridgeshire County Council,16-Jun-20,51301390777,514.59,ST AUGUSTINES DAY CENTRE,CARE ESTABLISHMENT,OP - Fenland Locality - Cost of Care,Older People - Fenland - Care,Day Care
Cambridgeshire County Council,16-Jun-20,51301390777,514.59,ST AUGUSTINES DAY CENTRE,CARE ESTABLISHMENT,OP - Fenland Locality - Cost of Care,Older People - Fenland - Care,Day Care
Cambridgeshire County Council,16-Jun-20,51301390777,514.59,ST AUGUSTINES DAY CENTRE,CARE ESTABLISHMENT,OP - Fenland Locality - Cost of Care,Older People - Fenland - Care,Day Care
Cambridgeshire County Council,16-Jun-20,51301390777,514.59,ST AUGUSTINES DAY CENTRE,CARE ESTABLISHMENT,OP - Fenland Locality - Cost of Care,Older People - Fenland - Care,Day Care
Cambridgeshire County Council,16-Jun-20,51301390777,514.59,ST AUGUSTINES DAY CENTRE,CARE ESTABLISHMENT,OP - Fenland Locality - Cost of Care,Older People - Fenland - Care,Day Care
Cambridgeshire County Council,16-Jun-20,51301390777,514.59,ST AUGUSTINES DAY CENTRE,CARE ESTABLISHMENT,OP - Fenland Locality - Cost of Care,Older People - Fenland - Care,Day Care
Cambridgeshire County Council,16-Jun-20,51301390777,514.59,ST AUGUSTINES DAY CENTRE,CARE ESTABLISHMENT,OP - Fenland Locality - Cost of Care,Older People - Fenland - Care,Day Care
Cambridgeshire County Council,16-Jun-20,51301390777,514.59,ST AUGUSTINES DAY CENTRE,CARE ESTABLISHMENT,OP - Fenland Locality - Cost of Care,Older People - Fenland - Care,Day Care
Cambridgeshire County Council,16-Jun-20,51301390777,514.59,ST AUGUSTINES DAY CENTRE,CARE ESTABLISHMENT,OP - Fenland Locality - Cost of Care,Older People - Fenland - Care,Day Care
Cambridgeshire County Council,16-Jun-20,51301390777,514.59,ST AUGUSTINES DAY CENTRE,CARE ESTABLISHMENT,OP - Fenland Locality - Cost of Care,Older People - Fenland - Care,Day Care
Cambridgeshire County Council,16-Jun-20,51301390777,514.59,ST AUGUSTINES DAY CENTRE,CARE ESTABLISHMENT,OP - Fenland Locality - Cost of Care,Older People - Fenland - Care,Day Care
Cambridgeshire County Council,16-Jun-20,51301390777,514.59,ST AUGUSTINES DAY CENTRE,CARE ESTABLISHMENT,OP - Fenland Locality - Cost of Care,Older People - Fenland - Care,Day Care
Cambridgeshire County Council,16-Jun-20,51301390777,514.59,ST AUGUSTINES DAY CENTRE,CARE ESTABLISHMENT,OP - Fenland Locality - Cost of Care,Older People - Fenland - Care,Day Care
Cambridgeshire County Council,16-Jun-20,51301390777,514.59,ST AUGUSTINES DAY CENTRE,CARE ESTABLISHMENT,OP - Fenland Locality - Cost of Care,Older People - Fenland - Care,Day Care
Cambridgeshire County Council,16-Jun-20,51301390777,514.59,ST AUGUSTINES DAY CENTRE,CARE ESTABLISHMENT,OP - Fenland Locality - Cost of Care,Older People - Fenland - Care,Day Care
Cambridgeshire County Council,16-Jun-20,51301390777,514.59,ST AUGUSTINES DAY CENTRE,CARE ESTABLISHMENT,OP - Fenland Locality - Cost of Care,Older People - Fenland - Care,Day Care
Cambridgeshire County Council,16-Jun-20,51301390777,514.59,ST AUGUSTINES DAY CENTRE,CARE ESTABLISHMENT,OP - Fenland Locality - Cost of Care,Older People - Fenland - Care,Day Care
Cambridgeshire County Council,16-Jun-20,51301390777,514.59,ST AUGUSTINES DAY CENTRE,CARE ESTABLISHMENT,OP - Fenland Locality - Cost of Care,Older People - Fenland - Care,Day Care
